Workbook

Sheet Ohjeistus
B2: Sääntelytaakkalaskuri, versio 2020 (päivitetty 9.4.2020)
B4: Yrityksiin kohdistuvan sääntelytaakan arviointi ja Yksi yhdestä -periaatteen soveltaminen - Miksi ja mitä?
C6: Tarkoituksenmukainen sääntely on välttämätöntä toimivan yhteiskunnan ja kansantalouden turvaamiseksi. Sääntelystä yrityksille aiheutuvat kustannukset voivat kuitenkin heikentää kilpailukykyä ja työllisyyttä.* Siten on tärkeää, että sääntelyä sujuvoitetaan tunnistamalla tarpeettoman raskaita menettelyitä ja sujuvoitetaan niitä. Marinin hallituksen hallitusohjelmassa Osallistava ja osaava Suomi on päätetty Yksi yhdestä -kokeilun laajentamisesta: Kehitetään lainsäädäntöä laajentamalla asteittain Yksi yhdestä -periaatetta painottaen määrällisyyden sijaan kuitenkin lainsäädännön tarkoituksenmukaisuutta. Periaatetta on kokeiltu säännönmukaisesti työ- ja elinkeinoministeriössä vuodesta 2017 alkaen. Yksi yhdestä –kokeilun tavoitteena ensivaiheessa on, että hankkeen myötä uuden sääntelyn vaikutukset yrityksiin kohdistuvaan sääntelytaakkaan arvioidaan kaikissa ministeriöissä yhdenmukaisesti. Vaikutukset arvioidaan myös mahdollisimman pitkälle euromääräisesti, vähintään kuitenkin hallinnollisen taakan osalta. Lisäksi tavoitteena on, että Yksi yhdestä -periaatteen avulla pystytään hillitsemään sääntelytaakan kasvua. Laskemalla euromääräiset arviot sääntelytaakan lisäyksestä tai vähenemisestä* on ainoa keino nähdä sääntelytaakan suuruus ja kehityssuunta.
C14: Yksi yhdestä -periaatteen soveltamiseksi ja euromääräisen sääntelytaakan laskemiseksi TEM:ssä on laadittu tämä laskentapohja ja ohjeistus lainvalmistelijoille sekä vaikutusarviointeja tekeville. Laskurin on tarkoitus helpottaa lainvalmistelijoita vaikutusarvioinnin tekemisessä sekä edesauttaa arviointien yhdenmukaisuutta. Tätä laskuria voi käyttää yrityksiin kohdistuvan sääntelytaakan arviointiin siten kuin OM:n ohjeessa (2007:6) ohjeistetaan riippumatta sovelletaanko Yksi yhdestä -periaatetta.
B18: Laskentapohjan käyttö: Yksityiskohtaisemmat ohjeet tämän laskentapohjan käyttöön ovat seuraavalla välilehdellä. Ohjeita on lisäksi välilehdillä sellaisissa soluissa, joissa on punainen kulma. Vie osoitin hiirellä punakulmasolun päälle, niin näet ohjeen. Kokeile esimerkkiä tässä solussa.
C20: Toimi siis seuraavasti:
B21: 1. | C21: Lue ohjeet ja tee tarvittavat merkinnät tarkistuslistaan välilehdellä "Tarkistuslista"
B22: 2. | C22: Täytä ohjeistuksen mukaisesti tarvittavat tiedot välilehdelle "1_Velvoiteluettelo"
B23: 3. | C23: Täytä ohjeistuksen mukaisesti tarvittavat tiedot välilehdelle "2B_Työkustannus"
B24: 4. | C24: Täytä ohjeistuksen mukaisesti tarvittavat tiedot välilehdelle "3_Muut kustannukset"
B25: 5. | C25: Katso yhteenveto välilehdeltä "5_Yhteenveto"
B26: 6. | C26: Täytä tarvittaessa tietoja välilehdelle "4_Poikkeukset" (vain tarvittaessa)
C28: Tietoja syötetään vain keltaisille välilehdille, keltaisiin soluihin.
C29: Käytä tarvittaessa apuna välilehtiä "Apu1_ … Apu5_ "
C30: Älä tee mitään punaisille välilehdille "Annualisoitu NPV", "Listat (älä muuta)" ym.
C32: Katso ohjeeksi myös TEM:n Yksi yhdestä -kokeiluhankkeen tiedote ja loppuraportti (19.12.2017)
C33: sekä OM:n ohjeet säädösehdotusten vaikutusten arviointiin (OM:n ohje 2007:6)
C34: Seuraa alla olevaa kaaviota sekä seuraavalla välilehdellä olevia ohjeita ja syötä tarvittavat tiedot/arviot tämän laskentapohjan välilehdille 1, 2 ja 3 (sekä tarvittaessa 4)
C84: klikkaa kuvaa tai: http://lainvalmistelu.finlex.fi/
B88: *Lähteitä ja ohjeita
C89: Honkatukia J ja Rauhanen T, 2011, Yritysten hallinnollisen taakan vähentämisen kokonaistaloudelliset vaikutukset. VATT.
C90: Kox H, 2005, Intra-EU differences in regulation-caused administrative burden for companies. CPB Netherlands Bureau for Economic Policy Analysis.
C91: Tang P and Verweij G, 2004, Reducing the administrative burden in the European Union. CPB Netherlands Bureau for Economic Policy Analysis.
C92: OM:n ohjeet säädösehdotusten vaikutusten arviointiin (OM:n ohje 2007:6)
C93: SCM Network, 2005, International Standard Cost Model Manual, SCM Network. Saatavilla OECD:n www-sivustolta http://www.oecd.org/gov/regulatory-policy/34227698.pdf
C94: Lainsäädännön arviointineuvoston lausunnot, http://vnk.fi/arviointineuvosto
C95: Hyytinen A. ja Moisio M., 2017, Lainsäädännön arviointineuvosto – lainvalmistelun vaikutusarviointia, Kansantaloudellinen aikakauskirja, 113. vsk, 2/2017, sivu 211.
C96: Valtiontalouden tarkastusvirasto VTV, 2017, EU-lainsäädännön täytäntöönpano, tarkastuskertomus 12/2017. https://www.vtv.fi/files/5808/12_2017_EU-lainsaadannon_taytantoonpano.pdf
B98: Laskuriversio 2020-1.15 (28.2.2020)
B99: Kehittäjät: Erno Mähönen ja Henrikki Oravainen
B100: Julkaisija: työ- ja elinkeinoministeriö

Sheet Tarkistuslista
B1: Ohje: Yrityksiin kohdistuvien sääntelytaakkavaikutusten arviointi sekä Yksi yhdestä -periaatteen soveltaminen
B3: Yleisiä ohjeita | F3: Ok? | G3: Lähde / lisäohje / tämän taulukon välilehtien käyttö
B4: 1. | C4: Yksi yhdestä -periaatetta sovelletaan kansallista alkuperää olevaan ja EU:n minimisääntelyn ylittävään lainsäädäntöön. | G4: Ks. TEM:n tiedote ja loppuraportti (19.12.2017)
B5: 2. | C5: Yritysvaikutukset on arvioitava normaaliin tapaan kaikissa esityksissä, myös niissä, jotka ovat EU:n minimisääntelyä. | G5: Ks. OM:n ohje s. 18-
B6: 3. | C6: Kiinnitä huomiota yritysvaikutusten arviointiin mahdollisimman varhaisessa vaiheessa lain valmisteluprosessia. | G6: Ks. Finlexin ohjeet lainvalmistelun prosessista
B7: 4. | C7: Täytä tietoja vain keltaiseksi maalattuihin soluihin. | G7: Esimerkki keltaisesta täyttösolusta
B8: 5. | C8: Tietoja tarvitsee syöttää vain välilehdille 1, 2 ja 3 (sekä tarvittaessa välilehdelle 4) | G8: Ks. Välilehdet 1, 2 ja 3 sekä tarvittaessa 4
B9: Ks. välilehti 1_Velvoiteluettelo ja hae vastauksia seuraaviin kysymyksiin:
B10: 6. | C10: Onko lainsäädännöllä yritysvaikutuksia? Jos on, mitä tietoa vaikutusten tekemiseksi vaaditaan ja mistä saada tietoa? | G10: Ks. välilehti Apu5_Tietolähteitä
B11: 7. | C11: Tunnista ja yksilöi HE:sta yrityksille lisätaakkaa tai kustannussäästöjä aiheuttavat yksittäiset pykälät/menettelyt. | G11: Ks. välilehti 1
B12: 8. | C12: Tunnista, mitkä edellisistä ovat puhtaasti kansallista alkuperää ja mitkä EU-pohjaista. | G12: Ks. välilehti 1, sekä VTV:n tarkastuskeromus 12/2017
B13: 9. | C13: Mitkä ovat kansallisen lainsäädännön yrityksille aiheuttamat taakanlisäykset tai taakankevennykset? | G13: Ks. välilehdet "1_" - "5_".
B14: 10. | C14: Jos kyse on EU-direktiivin implementoinnista, arvioi vaihtoehtoja, joilla direktiivi voitaisiin implementoida.
C15: 10.1 | D15: Aseta vaihtoehdot järjestykseen yrityksille vähiten ja eniten taakkaa aiheuttavan vaihtoehdon mukaan
C16: 10.2 | D16: Mikä vaihtoehdoista valitaan
C17: 10.3 | D17: Valitaanko implementointiin yrityksille vähiten taakkaa aiheuttava vaihtoehto?
C18: 10.4 | D18: Perustele, miksi valitaan juuri kyseinen vaihtoehto.
C19: 10.5 | D19: Jos valitaan vähiten taakkaa aiheuttava vaihtoehto, kyse on niin sanotusta EU-minimisääntelystä
C20: 10.6 | D20: Mitkä ovat EU-minimisääntelyn yrityksille aiheuttamat taakanlisäykset? | G20: Ks. välilehdet "1_" - "5_".
C21: 10.7 | D21: Mitkä ovat taakkavaikutukset, jotka aiheutuvat EU-minimisääntelyn ylittävästä osasta (ns. kansallinen lisä, gold plating)? | G21: Ks. välilehdet "1_" - "5_".
B23: 11. | C23: Nimeä velvoitteet ja täytä niiden voimaantulovuosi ja luonne välilehdelle 1_Velvoiteluettelo | G23: Ks. välilehti 1
B24: Laske edellä olevista velvoitteista aiheutuvat kustannussäästöt tai kustannuslisäykset seuraavasti:
B25: 12. | C25: Selvitä ja/tai arvioi, mitkä taakkavaikutukset ovat kertaluonteisia lain tullessa voimaan ja mitkä toistuvat vuosittain. | G25: Ks. välilehti 2B
B26: 13. | C26: Selvitä toistuvien velvoitteiden osalta, kuinka monta kertaa vuodessa ne toistuvat (frekvenssi) | G26: HE:n sisällön mukaisesti
B27: 14. | C27: Selvitä, kuinka montaa yritystä velvoite koskee (kohdejoukko) | G27: Ks. välilehti Apu5_Tietolähteitä
B28: 15. | C28: Selvitä ja/tai arvioi, vaatiiko velvoitteen hoitaminen työpanosta ja kuinka kauan yritykseltä kuluu kyseisen velvoitteen hoitamiseen | G28: Ks. välilehti 2B
B29: 16. | C29: Käytä lähtökohtaisesti velvoitteen suorittajana 'Asiantuntijaa', kk-palkka 3600 eur. Tarvittaessa selvitä ja/tai arvioi, minkä vaativuustason ja palkkaluokan työntekijät suorittavat kyseistä velvoitetta. | G29: Ks. välilehti 2B
B30: 17. | C30: Syötä edelliset tiedot välilehdelle 2B
B31: 18. | C31: Kun kaikki tarvittavat tiedot on täydennetty välilehdelle 2, siirry välilehdelle 3
B32: 19. | C32: Selvitä ja/tai arvioi velvoitteiden lisäyksistä tai niiden purkamisesta yrityksille aiheutuvat muut kustannukset. Sekä säästöt että kustannukset ilmoitetaan positiivisina lukuina. Laskuri muuttaa lopputuloksen etumerkin automaattisesti. | G32: Jos kyse esim, jostain lain edellyttämästä laitehankinnasta katso Apu3
B33: 20. | C33: Syötä tiedot mahdollisista muista kustannuksista välilehdelle 3
B34: 21. | C34: Ts. selvitä ja täytä välilehdille 2 ja 3 tarvittavat tiedot yhtäältä niin sanotun standardikustannusmallin (SCM) avulla ja toisaalta selvitä ja täytä myös kaikki muut lakiehdotuksen kustannuslisäykset (esim. vaadittavat investoinnit tai tietojärjestelmämuutokset) ja/tai -säästöt. | G34: Ks. OM:n ohje s. 18-
B36: Katso yhteenveto ja kirjaa euromääräiset yritysvaikutukset HE:een
B37: 22. | C37: Kun kaikki tarvittavat tiedot on täydennetty välilehdille 2 ja 3, siirry välilehdelle 5, jolla näet yhteenvedon
B38: 23. | C38: Arvioi, näyttävätkö Yhteenvedon tiedot järkeviltä. Tarkista ja muuta tietoja tarvitteassa. Kirjaa yhteenvedosta euromääräiset yritysvaikutukset HE:een. Alustavaa arviota voi ja tulee tarkistaa lausuntokierroksella sidosryhmiltä saatavilla tiedoilla.
B40: 24. | C40: Tarvittaessa täydennä vuosittaiset poikkeamat ja toimialan kasvuennuste välilehdelle 4
B42: Tarvittaessa saat lisätietoja ja -ohjeistusta
C43: Erno Mähönen | E43: Puhelin 029 50 47066, erno.mahonen@tem.fi
C44: työ- ja elinkeinoministeriö

Sheet 1_Velvoiteluettelo
A1: Luettelo ja kuvaus lain edellyttämistä velvoitteista, jotka aiheuttavat yrityksille välittömiä kustannuksia, tai sellaisten velvoitteiden poistamisesta
A3: Ohjeet
B5: Erittele muutos yritysten näkökulmasta velvoite kerrallaan. Kirjaa tähän yksittäiset uudet velvoitteet ja poistettavat vanhat velvoitteet. Lisää tarvittaessa Velvoite-rivejä viereisellä painikkeella. Voit myös halutessasi eriyttää tietyn velvoitteen kahdeksi eri velvoitteeksi esim. pienten ja suurten yritysten välille, mikäli yritysvaikutukset ovat merkittävästi erilaiset erikokoisten yritysten välillä, tai eri toimialojen välillä. Kirjoita velvoitteelle 'Nimi' ja 'Kuvaus'. Valitse voimassaolon kesto ja voimaanastumisvuosi. Valitse säädöksen luonne (Kansallinen, EU, lisäys, kevennys).
B11: Kun olet täyttänyt tiedot, siirry välilehdelle 2B_Työkustannus
A13: Perusvuosi* | B13: 2017 | C13: *) Arvioi kustannukset valmisteluhetken nykyrahassa. Laskuri laskee Yksi yhdestä -kirjanpitoa varten valmisteluvuoden kustannuksista vertailukelpoiset arvot valittuun perusvuoteen.
B14: Lain nimi ja HE-numero:
B15: Koko yrityskentän koko, jota lakimuutos koskee (valinnainen tieto**) | E15: **) Tiedon puuttuminen voi vääristää yrityskohtaisia tuloksia.
B16: Velvoite- numero | C16: Nimi (vapaamuotoinen) | D16: Kuvaus muutoksesta lain yritykselle aiheuttamassa velvoitteessa (vapaamuotoinen) | E16: Voimassaolo-aika Valitse solujen valikosta. | F16: Voimaantulo- vuosi (ilmoita yhtenä lukuna esim. "2021") | G16: Säädöksen luonne. Valitse ao. solujen valikosta sopiva kuvailu. Sääntelyä vai sääntelyn keventämistä? EU-minimisääntelyä vai ei? | S16: ='Listat (älä muuta)'!G4+23 -> 23
A17: =IF(AND(ISTEXT(C17),ISNUMBER(F17),ISTEXT(G17)),"ok",IF(AND(ISBLANK(C17),ISBLANK(F17),ISBLANK(G17)),"","täydennä!")) ->  | B17: ="Velvoite"&S17 -> Velvoite1 | E17: toistaiseksi | S17: 1
A18: =IF(AND(ISTEXT(C18),ISNUMBER(F18),ISTEXT(G18)),"ok",IF(AND(ISBLANK(C18),ISBLANK(F18),ISBLANK(G18)),"","täydennä!")) ->  | B18: ="Velvoite"&S18 -> Velvoite2 | E18: toistaiseksi | S18: =S17+1 -> 2
A19: =IF(AND(ISTEXT(C19),ISNUMBER(F19),ISTEXT(G19)),"ok",IF(AND(ISBLANK(C19),ISBLANK(F19),ISBLANK(G19)),"","täydennä!")) ->  | B19: ="Velvoite"&S19 -> Velvoite3 | E19: toistaiseksi | S19: =S18+1 -> 3
A20: =IF(AND(ISTEXT(C20),ISNUMBER(F20),ISTEXT(G20)),"ok",IF(AND(ISBLANK(C20),ISBLANK(F20),ISBLANK(G20)),"","täydennä!")) ->  | B20: ="Velvoite"&S20 -> Velvoite4 | E20: toistaiseksi | S20: =S19+1 -> 4
A21: =IF(AND(ISTEXT(C21),ISNUMBER(F21),ISTEXT(G21)),"ok",IF(AND(ISBLANK(C21),ISBLANK(F21),ISBLANK(G21)),"","täydennä!")) ->  | B21: ="Velvoite"&S21 -> Velvoite5 | E21: toistaiseksi | S21: =S20+1 -> 5
S22: =S21+1 -> 6

Sheet 2B_Työkustannus
A1: Palkkaluokat ja velvoitteen vaatima työaika --> Velvoitteiden aiheuttama hallinnollinen taakka
A3: Ohjeet
C5: Täytä frekvenssi ja yritysten lukumäärä. | F5: Kirjoita tietoja vain keltaiseksi maalattuihin soluihin
C6: Täytä arviot vaadittavista työtunneista. Ks. ohjeita soluista, joissa punainen kulma. | F6: Älä muokkaa harmaalla pohjalla olevia soluja
C7: Kun olet täyttänyt tuntitiedot, siirry välilehdelle 3_Muut kustannukset | F7: =IF(ISTEXT(OFFSET('1_Velvoiteluettelo'!B$21,5,0)),OFFSET('1_Velvoiteluettelo'!B$21,5,0),"") ->  | G7: =IF(ISTEXT(OFFSET('1_Velvoiteluettelo'!C$21,5,0)),OFFSET('1_Velvoiteluettelo'!C$21,5,0),"") -> 
B9: Laskentatekijät | E9: Velvoitteen nimi | F9: =IF(ISTEXT(OFFSET('1_Velvoiteluettelo'!$C17,F106,0)),(OFFSET('1_Velvoiteluettelo'!$C17,F106,0)),"Velvoite"&F106+1) -> Velvoite1 | G9: =IF(ISTEXT(OFFSET('1_Velvoiteluettelo'!$C17,G106,0)),(OFFSET('1_Velvoiteluettelo'!$C17,G106,0)),"Velvoite"&G106+1) -> Velvoite2 | H9: =IF(ISTEXT(OFFSET('1_Velvoiteluettelo'!$C17,H106,0)),(OFFSET('1_Velvoiteluettelo'!$C17,H106,0)),"Velvoite"&H106+1) -> Velvoite3 | I9: =IF(ISTEXT(OFFSET('1_Velvoiteluettelo'!$C17,I106,0)),(OFFSET('1_Velvoiteluettelo'!$C17,I106,0)),"Velvoite"&I106+1) -> Velvoite4 | J9: =IF(ISTEXT(OFFSET('1_Velvoiteluettelo'!$C17,J106,0)),(OFFSET('1_Velvoiteluettelo'!$C17,J106,0)),"Velvoite"&J106+1) -> Velvoite5
B11: A1 | C11: Lukumäärä yrityksistä, joita muutos koskee (kohdejoukko)
B12: A2 | C12: Business-as-usual-osuus 0-100 % (oletus: 0 %) | F12: 0 | G12: 0 | H12: 0 | I12: 0 | J12: 0
B13: A3 | C13: Frekvenssi per vuosi*
B15: B1 | C15: TOISTUVA HALLINNOLLINEN TAAKKA (1. VUOSI JA SEN JÄLKEEN)
D16: Palkkaluokka | E16: Kuukausipalkka | F16: Toistuvat työTUNNIT (raportointi, luvat, yms.) per yritys*
D17: Johtaja | E17: 6800 | F17: 0 | G17: 0 | H17: 0 | I17: 0 | J17: 0
D18: Ylemmän tason asiantuntija, erityisasiantuntija | E18: 4500 | F18: 0 | G18: 0 | H18: 0 | I18: 0 | J18: 0
C19: => | D19: Asiantuntija (oletus) | E19: 3600 | F19: 0 | G19: 0 | H19: 0 | I19: 0 | J19: 0
D20: Yleissihteeri, tallentaja, palkanlaskija | E20: 2900 | F20: 0 | G20: 0 | H20: 0 | I20: 0 | J20: 0
D21: Toimistoavustaja | E21: 2600 | F21: 0 | G21: 0 | H21: 0 | I21: 0 | J21: 0
D22: Muu, mikä? | F22: 0 | G22: 0 | H22: 0 | I22: 0 | J22: 0
D23: =D51 -> Toistuva hlöstökustannus yht kohdeyrityksille p.a. | F23: =F51 -> 0 | G23: =G51 -> 0 | H23: 0 | I23: 0 | J23: =J51 -> 0
D24: Tarkistus | F24: =IF(ISNUMBER(F11),IF(AND(AND(F88>0,ISNUMBER(OFFSET('1_Velvoiteluettelo'!$F17,F106,0))),NOT(F13=0)),"Ok!",IF(AND(AND(F88>0,ISNUMBER(OFFSET('1_Velvoiteluettelo'!$F17,F106,0))),(F13=0)),"Lisää frekvenssi!",IF(AND(F88=0,ISBLANK(OFFSET('1_Velvoiteluettelo'!$F17,F106,0))),"",IF(AND(F88>0,ISBLANK(OFFSET('1_Velvoiteluettelo'!$F17,F106,0))),"Tarkista voimaantulo!","Lisää tunnit (jos tarpeen)")))),IF(ISNUMBER(OFFSET('1_Velvoiteluettelo'!$F17,F106,0)),"Lisää yritysten lukumäärä!","")) ->  | G24: =IF(ISNUMBER(G11),IF(AND(AND(G88>0,ISNUMBER(OFFSET('1_Velvoiteluettelo'!$F17,G106,0))),NOT(G13=0)),"Ok!",IF(AND(AND(G88>0,ISNUMBER(OFFSET('1_Velvoiteluettelo'!$F17,G106,0))),(G13=0)),"Lisää frekvenssi!",IF(AND(G88=0,ISBLANK(OFFSET('1_Velvoiteluettelo'!$F17,G106,0))),"",IF(AND(G88>0,ISBLANK(OFFSET('1_Velvoiteluettelo'!$F17,G106,0))),"Tarkista voimaantulo!","Lisää tunnit (jos tarpeen)")))),IF(ISNUMBER(OFFSET('1_Velvoiteluettelo'!$F17,G106,0)),"Lisää yritysten lukumäärä!","")) ->  | H24: =IF(ISNUMBER(H11),IF(AND(AND(H88>0,ISNUMBER(OFFSET('1_Velvoiteluettelo'!$F17,H106,0))),NOT(H13=0)),"Ok!",IF(AND(AND(H88>0,ISNUMBER(OFFSET('1_Velvoiteluettelo'!$F17,H106,0))),(H13=0)),"Lisää frekvenssi!",IF(AND(H88=0,ISBLANK(OFFSET('1_Velvoiteluettelo'!$F17,H106,0))),"",IF(AND(H88>0,ISBLANK(OFFSET('1_Velvoiteluettelo'!$F17,H106,0))),"Tarkista voimaantulo!","Lisää tunnit (jos tarpeen)")))),IF(ISNUMBER(OFFSET('1_Velvoiteluettelo'!$F17,H106,0)),"Lisää yritysten lukumäärä!","")) ->  | I24: =IF(ISNUMBER(I11),IF(AND(AND(I88>0,ISNUMBER(OFFSET('1_Velvoiteluettelo'!$F17,I106,0))),NOT(I13=0)),"Ok!",IF(AND(AND(I88>0,ISNUMBER(OFFSET('1_Velvoiteluettelo'!$F17,I106,0))),(I13=0)),"Lisää frekvenssi!",IF(AND(I88=0,ISBLANK(OFFSET('1_Velvoiteluettelo'!$F17,I106,0))),"",IF(AND(I88>0,ISBLANK(OFFSET('1_Velvoiteluettelo'!$F17,I106,0))),"Tarkista voimaantulo!","Lisää tunnit (jos tarpeen)")))),IF(ISNUMBER(OFFSET('1_Velvoiteluettelo'!$F17,I106,0)),"Lisää yritysten lukumäärä!","")) ->  | J24: =IF(ISNUMBER(J11),IF(AND(AND(J88>0,ISNUMBER(OFFSET('1_Velvoiteluettelo'!$F17,J106,0))),NOT(J13=0)),"Ok!",IF(AND(AND(J88>0,ISNUMBER(OFFSET('1_Velvoiteluettelo'!$F17,J106,0))),(J13=0)),"Lisää frekvenssi!",IF(AND(J88=0,ISBLANK(OFFSET('1_Velvoiteluettelo'!$F17,J106,0))),"",IF(AND(J88>0,ISBLANK(OFFSET('1_Velvoiteluettelo'!$F17,J106,0))),"Tarkista voimaantulo!","Lisää tunnit (jos tarpeen)")))),IF(ISNUMBER(OFFSET('1_Velvoiteluettelo'!$F17,J106,0)),"Lisää yritysten lukumäärä!","")) -> 
B26: C1 | C26: KERTALUONTEINEN HALLINNOLLINEN TAAKKA (1. VUOSI) (sääntelyyn sopeutuminen)
D27: Palkkaluokka | E27: Kuukausipalkka | F27: Sopeuttamisesta vain kerran koituvat työTUNNIT per yritys
D28: Johtaja | E28: 6800 | F28: 0 | G28: 0 | H28: 0 | I28: 0 | J28: 0
D29: Ylemmän tason asiantuntija, erityisasiantuntija | E29: 4500 | F29: 0 | G29: 0 | H29: 0 | I29: 0 | J29: 0
C30: => | D30: Asiantuntija (oletus) | E30: 3600 | F30: 0 | G30: 0 | H30: 0 | I30: 0 | J30: 0
D31: Yleissihteeri, tallentaja, palkanlaskija | E31: 2900 | F31: 0 | G31: 0 | H31: 0 | I31: 0 | J31: 0
D32: Toimistoavustaja | E32: 2600 | F32: 0 | G32: 0 | H32: 0 | I32: 0 | J32: 0
D33: Muu, mikä? | F33: 0 | G33: 0 | H33: 0 | I33: 0 | J33: 0
D34: Kertaluonteinen hlöstökustannus yht kohdeyrityksille | F34: =F60 -> 0 | G34: =G60 -> 0 | H34: =H60 -> 0 | I34: =I60 -> 0 | J34: =J60 -> 0
D35: Tarkistus | F35: =IF(AND(F97>0,ISNUMBER(OFFSET('1_Velvoiteluettelo'!$F17,F106,0))),"Ok!",IF(AND(F97=0,ISBLANK(OFFSET('1_Velvoiteluettelo'!$F17,F106,0))),"",IF(AND(F97>0,ISBLANK(OFFSET('1_Velvoiteluettelo'!$F17,F106,0))),"Tarkista voimaantulo!","Lisää tunnit jos tarpeen"))) ->  | G35: =IF(AND(G97>0,ISNUMBER(OFFSET('1_Velvoiteluettelo'!$F17,G106,0))),"Ok!",IF(AND(G97=0,ISBLANK(OFFSET('1_Velvoiteluettelo'!$F17,G106,0))),"",IF(AND(G97>0,ISBLANK(OFFSET('1_Velvoiteluettelo'!$F17,G106,0))),"Tarkista voimaantulo!","Lisää tunnit jos tarpeen"))) ->  | H35: =IF(AND(H97>0,ISNUMBER(OFFSET('1_Velvoiteluettelo'!$F17,H106,0))),"Ok!",IF(AND(H97=0,ISBLANK(OFFSET('1_Velvoiteluettelo'!$F17,H106,0))),"",IF(AND(H97>0,ISBLANK(OFFSET('1_Velvoiteluettelo'!$F17,H106,0))),"Tarkista voimaantulo!","Lisää tunnit jos tarpeen"))) ->  | I35: =IF(AND(I97>0,ISNUMBER(OFFSET('1_Velvoiteluettelo'!$F17,I106,0))),"Ok!",IF(AND(I97=0,ISBLANK(OFFSET('1_Velvoiteluettelo'!$F17,I106,0))),"",IF(AND(I97>0,ISBLANK(OFFSET('1_Velvoiteluettelo'!$F17,I106,0))),"Tarkista voimaantulo!","Lisää tunnit jos tarpeen"))) ->  | J35: =IF(AND(J97>0,ISNUMBER(OFFSET('1_Velvoiteluettelo'!$F17,J106,0))),"Ok!",IF(AND(J97=0,ISBLANK(OFFSET('1_Velvoiteluettelo'!$F17,J106,0))),"",IF(AND(J97>0,ISBLANK(OFFSET('1_Velvoiteluettelo'!$F17,J106,0))),"Tarkista voimaantulo!","Lisää tunnit jos tarpeen"))) -> 
D37: Kirjoita tähän perustelut ja kuinka tiedot on hankittu, lähdeviittaukset.
C43: Taustalaskuja - nämä tiedoksi ja nähtäväksi, ei vaadi valmistelijalta toimenpiteitä. Jos yllä olevat tiedot täytetty, siirry seuraaville välilehdille.
C45: B1 | D45: Toistuvat henkilöstökulut tai -säästöt | F45: =F9 -> Velvoite1 | G45: =G9 -> Velvoite2 | H45: =H9 -> Velvoite3 | I45: =I9 -> Velvoite4 | J45: =J9 -> Velvoite5
D46: Käytetty keskipalkka (€/kk) | F46: =IF(ISNUMBER($E$22),F90*$E$90+F91*$E$91+F92*$E$92+F93*$E$93+F94*$E$94+F95*$E$22,F90*$E$90+F91*$E$91+F92*$E$92+F93*$E$93+F94*$E$94) -> 0 | G46: =IF(ISNUMBER($E$22),G90*$E$90+G91*$E$91+G92*$E$92+G93*$E$93+G94*$E$94+G95*$E$22,G90*$E$90+G91*$E$91+G92*$E$92+G93*$E$93+G94*$E$94) -> 0 | H46: 0 | I46: 0 | J46: 0
D47: Kk-työkustannus ml. palkan sivukulu ja yleiskulu | F47: =(1+$E$70)*F46 -> 0 | G47: =(1+$E$70)*G46 -> 0 | H47: 0 | I47: 0 | J47: 0
D48: Tuntitaksa sivu- ja yleiskuluineen (€/h) | F48: =F47/$E$79 -> 0 | G48: =G47/$E$79 -> 0 | H48: 0 | I48: 0 | J48: 0
D49: Tehtävään käytettävät tunnit p.a. | F49: =F88*F13 -> 0 | G49: =G88*G13 -> 0 | H49: =H88*H13 -> 0 | I49: =I88*I13 -> 0 | J49: =J88*J13 -> 0
D50: Kustannukset vuodessa per yritys | F50: =IF(OR(OFFSET('1_Velvoiteluettelo'!$G$17,F106,0)="EU-minimisääntelyä",OFFSET('1_Velvoiteluettelo'!$G$17,F106,0)="Kansallista tai EU-minimin ylittävää lisäsääntelyä"),F49*F48,IF(AND(ISBLANK(OFFSET('1_Velvoiteluettelo'!$G$17,F106,0)),F49>0),"Täydennä sivu 1",(-F49*F48*(1-F12)))) -> 0 | G50: =IF(OR(OFFSET('1_Velvoiteluettelo'!$G$17,G106,0)="EU-minimisääntelyä",OFFSET('1_Velvoiteluettelo'!$G$17,G106,0)="Kansallista tai EU-minimin ylittävää lisäsääntelyä"),G49*G48,IF(AND(ISBLANK(OFFSET('1_Velvoiteluettelo'!$G$17,G106,0)),G49>0),"Täydennä sivu 1",(-G49*G48*(1-G12)))) -> 0 | H50: =IF(OR(OFFSET('1_Velvoiteluettelo'!$G$17,H106,0)="EU-minimisääntelyä",OFFSET('1_Velvoiteluettelo'!$G$17,H106,0)="Kansallista tai EU-minimin ylittävää lisäsääntelyä"),H49*H48,IF(AND(ISBLANK(OFFSET('1_Velvoiteluettelo'!$G$17,H106,0)),H49>0),"Täydennä sivu 1",(-H49*H48*(1-H12)))) -> 0 | I50: =IF(OR(OFFSET('1_Velvoiteluettelo'!$G$17,I106,0)="EU-minimisääntelyä",OFFSET('1_Velvoiteluettelo'!$G$17,I106,0)="Kansallista tai EU-minimin ylittävää lisäsääntelyä"),I49*I48,IF(AND(ISBLANK(OFFSET('1_Velvoiteluettelo'!$G$17,I106,0)),I49>0),"Täydennä sivu 1",(-I49*I48*(1-I12)))) -> 0 | J50: =IF(OR(OFFSET('1_Velvoiteluettelo'!$G$17,J106,0)="EU-minimisääntelyä",OFFSET('1_Velvoiteluettelo'!$G$17,J106,0)="Kansallista tai EU-minimin ylittävää lisäsääntelyä"),J49*J48,IF(AND(ISBLANK(OFFSET('1_Velvoiteluettelo'!$G$17,J106,0)),J49>0),"Täydennä sivu 1",(-J49*J48*(1-J12)))) -> 0
D51: Toistuva hlöstökustannus yht kohdeyrityksille p.a. | F51: =F11*F50*(1-F12) -> 0 | G51: =G11*G50*(1-G12) -> 0 | H51: 0 | I51: 0 | J51: 0
C54: C1 | D54: Kertaluontoiset henkilöstökulut | F54: =F9 -> Velvoite1 | G54: =G9 -> Velvoite2 | H54: =H9 -> Velvoite3 | I54: =I9 -> Velvoite4 | J54: =J9 -> Velvoite5
D55: Henkilöstökulut per yritys | F55: =F58*F59 -> 0 | G55: =G58*G59 -> 0 | H55: 0 | I55: 0 | J55: 0
D56: Käytetty keskipalkka (€/kk) | F56: =IF(ISNUMBER($E$33),F99*$E$90+F100*$E$91+F101*$E$92+F102*$E$93+F103*$E$94+F104*$E$33,F99*$E$90+F100*$E$91+F101*$E$92+F102*$E$93+F103*$E$94) -> 0 | G56: =IF(ISNUMBER($E$33),G99*$E$90+G100*$E$91+G101*$E$92+G102*$E$93+G103*$E$94+G104*$E$33,G99*$E$90+G100*$E$91+G101*$E$92+G102*$E$93+G103*$E$94) -> 0 | H56: 0 | I56: 0 | J56: 0
D57: Kk-työkustannus ml. palkan sivukulu ja yleiskulu | F57: =(1+$E$70)*F56 -> 0 | G57: =(1+$E$70)*G56 -> 0 | H57: 0 | I57: 0 | J57: 0
D58: Tuntitaksa sivu- ja yleiskuluineen (€/h) | F58: =F57/$E$79 -> 0 | G58: =G57/$E$79 -> 0 | H58: 0 | I58: 0 | J58: 0
D59: Tehtävään käytettävät tunnit vuodessa | F59: =F97 -> 0 | G59: =G97 -> 0 | H59: 0 | I59: 0 | J59: 0
D60: Kertaluonteinen hlöstökustannus yht. kohdeyrityksille | F60: =F55*F11*(1-F12) -> 0 | G60: =G55*G11*(1-G12) -> 0 | H60: 0 | I60: 0 | J60: 0
C64: Palkan sivukulu ja yleiskulu
C65: Palkan sivukulu ja yleiskulu perustuvat … Tähän ei tarvitse syöttää tietoa, eikä tätä tarvitse kopioida. Tämä on vain tiedoksi kertoimesta, joka on valmiina laskukaavassa.
D68: Palkkojen sivukulu-% | E68: 0.346
D69: Yleiskulu-% | E69: 0.25
D70: Yhteensä | E70: =E69+E68 -> 0.596 | F70: Palkka kerrotaan kertoimella 1+(tämä %-luku)
C75: Työtunnit (yksityinen sektori)
C76: Tähän ei tarvitse syöttää tietoa, eikä tätä tarvitse kopioida. Tämä on vain tiedoksi jakajasta, joka on valmiina laskukaavassa.
E78: Työtuntia
D79: Kuukaudessa | E79: =E81*22 -> 166.716 | F79: Kuukausipalkka jaetaan tällä tuntimäärällä tuntipalkan laskemiseksi
D80: Viikossa | E80: 37.89
D81: Päivässä | E81: =E80/5 -> 7.578
D87: Tarkat palkkasummat 2017 (säännöllisen työajan keskiansio) | F87: Taustalaskuja, älä muuta alla olevien solujen tietoja
F88: =IF(ISNUMBER($E$22),SUM(F17:F22),SUM(F17:F21)) -> 0 | G88: =IF(ISNUMBER($E$22),SUM(G17:G22),SUM(G17:G21)) -> 0 | H88: =IF(ISNUMBER($E$22),SUM(H17:H22),SUM(H17:H21)) -> 0 | I88: =IF(ISNUMBER($E$22),SUM(I17:I22),SUM(I17:I21)) -> 0 | J88: =IF(ISNUMBER($E$22),SUM(J17:J22),SUM(J17:J21)) -> 0
D89: Palkkaluokka
D90: Johtaja (1 AML 2010) | E90: ='Taustatietoa palkat am lk'!B5 -> 6752 | F90: =IF((F$88>0),(F17/F$88),0) -> 0 | G90: 0 | H90: 0 | I90: 0 | J90: 0
D91: Erityisasiantuntijat (2 AML 2010) | E91: ='Taustatietoa palkat am lk'!B51 -> 4482 | F91: 0 | G91: 0 | H91: 0 | I91: 0 | J91: 0
D92: Asiantuntija (3 AML 2010) | E92: ='Taustatietoa palkat am lk'!B193 -> 3578 | F92: 0 | G92: 0 | H92: 0 | I92: 0 | J92: 0
D93: Yleissihteeri, tallentaja, palkanlaskija (412, 4132, 431 AML 2010) | E93: ='Taustatietoa palkat am lk'!B585 -> 2862.666667 | F93: 0 | G93: 0 | H93: 0 | I93: 0 | J93: 0
D94: Toimistoavustaja (411 AML 2010) | E94: ='Taustatietoa palkat am lk'!B312 -> 2573 | F94: 0 | G94: 0 | H94: 0 | I94: 0 | J94: 0
F95: 0 | G95: 0 | H95: 0 | I95: 0 | J95: 0
D96: Lähde: Tilastokeskus, palkat ja työvoimakustannukset yksityisellä sektorilla
D97: Ks. välilehti Taustatietoa palkat am lk | F97: =IF(ISNUMBER($E$33),SUM(F28:F33),SUM(F28:F32)) -> 0 | G97: =IF(ISNUMBER($E$33),SUM(G28:G33),SUM(G28:G32)) -> 0 | H97: =IF(ISNUMBER($E$33),SUM(H28:H33),SUM(H28:H32)) -> 0 | I97: =IF(ISNUMBER($E$33),SUM(I28:I33),SUM(I28:I32)) -> 0 | J97: =IF(ISNUMBER($E$33),SUM(J28:J33),SUM(J28:J32)) -> 0
F99: =IF((F$97>0),(F28/F$97),0) -> 0 | G99: 0 | H99: 0 | I99: 0 | J99: 0
F100: 0 | G100: 0 | H100: 0 | I100: 0 | J100: 0
F101: 0 | G101: 0 | H101: 0 | I101: 0 | J101: 0
F102: 0 | G102: 0 | H102: 0 | I102: 0 | J102: 0
F103: 0 | G103: 0 | H103: 0 | I103: 0 | J103: 0
F104: 0 | G104: 0 | H104: 0 | I104: 0 | J104: 0
D106: Sarakelaskuri: | E106: ='Listat (älä muuta)'!G4+12 -> 12 | F106: 0 | G106: =F106+1 -> 1 | H106: =G106+1 -> 2 | I106: =H106+1 -> 3 | J106: =I106+1 -> 4 | K106: =J106+1 -> 5 | L106: 4
F109: 0

Sheet 3_Muut kustannukset
A1: Muut toistuvat ja kertaluonteiset kustannuserät --> Kaikki kustannukset yhteensä
A3: Ohjeet
B5: Tällä taulukon välilehdellä lasketaan sääntelytaakka kokonaisuudessaan yritys- ja tehtäväkohtaisesti sekä samalla koskien koko kohdejoukkoa.
B6: Täydennä alla laskentataulukkoon keltaisella pohjalla olevat kohdat B2 (toistuvat) ja C2 (kertaluonteiset) tarpeen mukaan. Ks. ohjeita soluista, joissa punainen kulma.
B7: Kun olet täyttänyt tiedot, siirry joko välilehdelle | I7: "4_Poikkeukset" | J7: tai | K7: "5_Yhteenveto"
D10: A. | E10: Perustiedot, eli kohdejoukko ja frekvenssi (tiedot siirtyy välilehdeltä 2B_työkustannus. Täydennä ja korjaa nämä tarvittaessa edelliselle välilehdelle.)
I12: =IF(ISTEXT(OFFSET('1_Velvoiteluettelo'!$C17,I74,0)),(OFFSET('1_Velvoiteluettelo'!$C17,I74,0)),"Velvoite"&I74+1) -> Velvoite1 | J12: =IF(ISTEXT(OFFSET('1_Velvoiteluettelo'!$C17,J74,0)),(OFFSET('1_Velvoiteluettelo'!$C17,J74,0)),"Velvoite"&J74+1) -> Velvoite2 | K12: =IF(ISTEXT(OFFSET('1_Velvoiteluettelo'!$C17,K74,0)),(OFFSET('1_Velvoiteluettelo'!$C17,K74,0)),"Velvoite"&K74+1) -> Velvoite3 | L12: =IF(ISTEXT(OFFSET('1_Velvoiteluettelo'!$C17,L74,0)),(OFFSET('1_Velvoiteluettelo'!$C17,L74,0)),"Velvoite"&L74+1) -> Velvoite4 | M12: =IF(ISTEXT(OFFSET('1_Velvoiteluettelo'!$C17,M74,0)),(OFFSET('1_Velvoiteluettelo'!$C17,M74,0)),"Velvoite"&M74+1) -> Velvoite5
F13: A1 | G13: Kohdejoukko (yritysten lukumäärä) | I13: =OFFSET('2B_Työkustannus'!$F11,0,1*I74) -> 0 | J13: =OFFSET('2B_Työkustannus'!$F11,0,1*J74) -> 0 | K13: =OFFSET('2B_Työkustannus'!$F11,0,1*K74) -> 0 | L13: =OFFSET('2B_Työkustannus'!$F11,0,1*L74) -> 0 | M13: =OFFSET('2B_Työkustannus'!$F11,0,1*M74) -> 0
F14: A3 | G14: Business-as-Usual-osuus | I14: =OFFSET('2B_Työkustannus'!$F12,0,1*I74) -> 0 | J14: =OFFSET('2B_Työkustannus'!$F12,0,1*J74) -> 0 | K14: =OFFSET('2B_Työkustannus'!$F12,0,1*K74) -> 0 | L14: =OFFSET('2B_Työkustannus'!$F12,0,1*L74) -> 0 | M14: =OFFSET('2B_Työkustannus'!$F12,0,1*M74) -> 0
F15: A3 | G15: Frekvenssi per vuosi | I15: =OFFSET('2B_Työkustannus'!$F13,0,1*I74) -> 0 | J15: =OFFSET('2B_Työkustannus'!$F13,0,1*J74) -> 0 | K15: =OFFSET('2B_Työkustannus'!$F13,0,1*K74) -> 0 | L15: =OFFSET('2B_Työkustannus'!$F13,0,1*L74) -> 0 | M15: =OFFSET('2B_Työkustannus'!$F13,0,1*M74) -> 0
D17: B. | E17: Toistuvat taakkavaikutukset (1. vuosi ja sen jälkeen)
I18: Lain yritykselle aiheuttamat velvoitteet, joista suoria kustannuslisäyksiä tai velvoitteet, joiden purusta kustannussäästöjä
F20: B1 | G20: Toistuvat henkilöstökustannukset tai -säästöt | P20: Yhteensä
G21: Toistuva hlöstökustannus yht kohdeyrityksille p.a. | I21: =OFFSET('2B_Työkustannus'!$F23,0,1*I74) -> 0 | J21: =OFFSET('2B_Työkustannus'!$F23,0,1*J74) -> 0 | K21: =OFFSET('2B_Työkustannus'!$F23,0,1*K74) -> 0 | L21: =OFFSET('2B_Työkustannus'!$F23,0,1*L74) -> 0 | M21: =OFFSET('2B_Työkustannus'!$F23,0,1*M74) -> 0 | P21: =SUM(I21:N21) -> 0
F23: B2 | G23: Muut toistuvat kustannukset velvoitteista tai säästöt velvoitteiden purusta
H24: Hankintakustannukset per frekvenssi | I24: 0 | J24: 0 | K24: 0 | L24: 0 | M24: 0
H25: Välinekustannukset per frekvenssi | I25: 0 | J25: 0 | K25: 0 | L25: 0 | M25: 0
H26: Muut kustannukset per frekvenssi | I26: 0 | J26: 0 | K26: 0 | L26: 0 | M26: 0
H27: Kustannukset yhteensä per yritys p.a. | I27: =IF(OR(OFFSET('1_Velvoiteluettelo'!$G$17,I74,0)="EU-minimisääntelyä",OFFSET('1_Velvoiteluettelo'!$G$17,I74,0)="Kansallista tai EU-minimin ylittävää lisäsääntelyä"),SUM(I24:I26)*I15,IF(AND(ISBLANK(OFFSET('1_Velvoiteluettelo'!$G$17,I74,0)),I24+I25+I26>0),"Täydennä sivu 1",(-SUM(I24:I26)*I15*(1-I14)))) -> 0 | J27: =IF(OR(OFFSET('1_Velvoiteluettelo'!$G$17,J74,0)="EU-minimisääntelyä",OFFSET('1_Velvoiteluettelo'!$G$17,J74,0)="Kansallista tai EU-minimin ylittävää lisäsääntelyä"),SUM(J24:J26)*J15,IF(AND(ISBLANK(OFFSET('1_Velvoiteluettelo'!$G$17,J74,0)),J24+J25+J26>0),"Täydennä sivu 1",(-SUM(J24:J26)*J15*(1-J14)))) -> 0 | K27: =IF(OR(OFFSET('1_Velvoiteluettelo'!$G$17,K74,0)="EU-minimisääntelyä",OFFSET('1_Velvoiteluettelo'!$G$17,K74,0)="Kansallista tai EU-minimin ylittävää lisäsääntelyä"),SUM(K24:K26)*K15,IF(AND(ISBLANK(OFFSET('1_Velvoiteluettelo'!$G$17,K74,0)),K24+K25+K26>0),"Täydennä sivu 1",(-SUM(K24:K26)*K15*(1-K14)))) -> 0 | L27: =IF(OR(OFFSET('1_Velvoiteluettelo'!$G$17,L74,0)="EU-minimisääntelyä",OFFSET('1_Velvoiteluettelo'!$G$17,L74,0)="Kansallista tai EU-minimin ylittävää lisäsääntelyä"),SUM(L24:L26)*L15,IF(AND(ISBLANK(OFFSET('1_Velvoiteluettelo'!$G$17,L74,0)),L24+L25+L26>0),"Täydennä sivu 1",(-SUM(L24:L26)*L15*(1-L14)))) -> 0 | M27: =IF(OR(OFFSET('1_Velvoiteluettelo'!$G$17,M74,0)="EU-minimisääntelyä",OFFSET('1_Velvoiteluettelo'!$G$17,M74,0)="Kansallista tai EU-minimin ylittävää lisäsääntelyä"),SUM(M24:M26)*M15,IF(AND(ISBLANK(OFFSET('1_Velvoiteluettelo'!$G$17,M74,0)),M24+M25+M26>0),"Täydennä sivu 1",(-SUM(M24:M26)*M15*(1-M14)))) -> 0 | P27: =SUM(I27:N27) -> 0
G28: Muut toistuvat kustannukset yht kohdeyrityksille p.a. | I28: =IF(OR(OFFSET('1_Velvoiteluettelo'!$G$17,I74,0)="EU-minimisääntelyä",OFFSET('1_Velvoiteluettelo'!$G$17,I74,0)="Kansallista tai EU-minimin ylittävää lisäsääntelyä"),(I24+I25+I26)*I13*I15,IF(AND(ISBLANK(OFFSET('1_Velvoiteluettelo'!$G$17,I74,0)),I24+I25+I26>0),"Täydennä sivu 1",(-(I24+I25+I26)*I13*I15*(1-I14)))) -> 0 | J28: =IF(OR(OFFSET('1_Velvoiteluettelo'!$G$17,J74,0)="EU-minimisääntelyä",OFFSET('1_Velvoiteluettelo'!$G$17,J74,0)="Kansallista tai EU-minimin ylittävää lisäsääntelyä"),(J24+J25+J26)*J13*J15,IF(AND(ISBLANK(OFFSET('1_Velvoiteluettelo'!$G$17,J74,0)),J24+J25+J26>0),"Täydennä sivu 1",(-(J24+J25+J26)*J13*J15*(1-J14)))) -> 0 | K28: =IF(OR(OFFSET('1_Velvoiteluettelo'!$G$17,K74,0)="EU-minimisääntelyä",OFFSET('1_Velvoiteluettelo'!$G$17,K74,0)="Kansallista tai EU-minimin ylittävää lisäsääntelyä"),(K24+K25+K26)*K13*K15,IF(AND(ISBLANK(OFFSET('1_Velvoiteluettelo'!$G$17,K74,0)),K24+K25+K26>0),"Täydennä sivu 1",(-(K24+K25+K26)*K13*K15*(1-K14)))) -> 0 | L28: =IF(OR(OFFSET('1_Velvoiteluettelo'!$G$17,L74,0)="EU-minimisääntelyä",OFFSET('1_Velvoiteluettelo'!$G$17,L74,0)="Kansallista tai EU-minimin ylittävää lisäsääntelyä"),(L24+L25+L26)*L13*L15,IF(AND(ISBLANK(OFFSET('1_Velvoiteluettelo'!$G$17,L74,0)),L24+L25+L26>0),"Täydennä sivu 1",(-(L24+L25+L26)*L13*L15*(1-L14)))) -> 0 | M28: =IF(OR(OFFSET('1_Velvoiteluettelo'!$G$17,M74,0)="EU-minimisääntelyä",OFFSET('1_Velvoiteluettelo'!$G$17,M74,0)="Kansallista tai EU-minimin ylittävää lisäsääntelyä"),(M24+M25+M26)*M13*M15,IF(AND(ISBLANK(OFFSET('1_Velvoiteluettelo'!$G$17,M74,0)),M24+M25+M26>0),"Täydennä sivu 1",(-(M24+M25+M26)*M13*M15*(1-M14)))) -> 0 | P28: =SUM(I28:N28) -> 0
F30: B Yht | G30: Toistuvat kustannukset yht kohdeyrityksille | I30: =I21+I28 -> 0 | J30: =J21+J28 -> 0 | K30: =K21+K28 -> 0 | L30: =L21+L28 -> 0 | M30: =M21+M28 -> 0 | P30: =SUM(I30:N30) -> 0
D32: C. | E32: Kertaluonteiset taakkavaikutukset (1. vuosi)
I33: Lain yritykselle aiheuttamat velvoitteet, joista suoria kustannuslisäyksiä tai velvoitteet, joiden purusta kustannussäästöjä
F35: C1 | G35: Kertaluonteiset henkilöstökustannukset | P35: Yhteensä
G36: Kertaluontoinen henkilöstökustannus kaikille yrityksille yhteensä | I36: =OFFSET('2B_Työkustannus'!$F60,0,1*I74) -> 0 | J36: =OFFSET('2B_Työkustannus'!$F60,0,1*J74) -> 0 | K36: =OFFSET('2B_Työkustannus'!$F60,0,1*K74) -> 0 | L36: =OFFSET('2B_Työkustannus'!$F60,0,1*L74) -> 0 | M36: =OFFSET('2B_Työkustannus'!$F60,0,1*M74) -> 0 | P36: =SUM(I36:N36) -> 0
F38: C2 | G38: Sääntelyn yritykselle aiheuttamat muut Kertaluonteiset kustannukset
H39: Hankintakustannukset | I39: 0 | J39: 0 | K39: 0 | L39: 0 | M39: 0 | P39: =SUM(I39:N39) -> 0
H40: Välinekustannukset | I40: 0 | J40: 0 | K40: 0 | L40: 0 | M40: 0 | P40: =SUM(I40:N40) -> 0
H41: Muut kustannukset | I41: 0 | J41: 0 | K41: 0 | L41: 0 | M41: 0 | P41: =SUM(I41:N41) -> 0
H42: Kustannukset yhteensä per yritys | I42: =SUM(I39:I41) -> 0 | J42: =SUM(J39:J41) -> 0 | K42: =SUM(K39:K41) -> 0 | L42: =SUM(L39:L41) -> 0 | M42: =SUM(M39:M41) -> 0 | P42: =SUM(I42:N42) -> 0
G43: Kertaluonteiset muut kust. yht. kohdeyrityksille | I43: =IF(AND(ISBLANK(OFFSET('1_Velvoiteluettelo'!$G$17,I74,0)),I39+I40+I41>0),"Täydennä sivu 1",(SUM(I39:I41)))*I13*(1-I14) -> 0 | J43: =IF(AND(ISBLANK(OFFSET('1_Velvoiteluettelo'!$G$17,J74,0)),J39+J40+J41>0),"Täydennä sivu 1",(SUM(J39:J41)))*J13*(1-J14) -> 0 | K43: =IF(AND(ISBLANK(OFFSET('1_Velvoiteluettelo'!$G$17,K74,0)),K39+K40+K41>0),"Täydennä sivu 1",(SUM(K39:K41)))*K13*(1-K14) -> 0 | L43: =IF(AND(ISBLANK(OFFSET('1_Velvoiteluettelo'!$G$17,L74,0)),L39+L40+L41>0),"Täydennä sivu 1",(SUM(L39:L41)))*L13*(1-L14) -> 0 | M43: =IF(AND(ISBLANK(OFFSET('1_Velvoiteluettelo'!$G$17,M74,0)),M39+M40+M41>0),"Täydennä sivu 1",(SUM(M39:M41)))*M13*(1-M14) -> 0 | P43: =SUM(I43:N43) -> 0
F45: C Yht | G45: Kertaluonteiset kust. yht. kohdeyrityksille | I45: =I43+I36 -> 0 | J45: =J43+J36 -> 0 | K45: =K43+K36 -> 0 | L45: =L43+L36 -> 0 | M45: =M43+M36 -> 0 | P45: =SUM(I45:N45) -> 0
G48: Kirjoita tähän perustelut ja kuinka tiedot on hankittu, lähdeviittaukset.
I73: Apuruutuja, älä muuta | J73: ='Listat (älä muuta)'!G4+15 -> 15
I74: 0 | J74: =I74+1 -> 1 | K74: =J74+1 -> 2 | L74: =K74+1 -> 3 | M74: =L74+1 -> 4 | N74: =M74+1 -> 5

Sheet 4_Poikkeukset
B2: Poikkeus: kasvava tai supistuva yritysjoukko
B4: Käytä VAIN, mikäli on uskottavasti odotettavissa, että yritysjoukko, jota sääntely koskee, on merkittävästi joko kasvamassa tai supistumassa tulevaisuudessa | V4: ='Listat (älä muuta)'!G4+14 -> 14
C6: Yritysjoukon kasvunopeus (%) | E6: Yritysten lukumäärä | H6: =IF(AND(SUM(C8:C13)=0,SUM(E8:E13)=SUM(F8:F13)),"",IF(ISBLANK(B16),"Kirjoita perustelut!","Ok!")) -> 
C7: Vuodessa (täytä) | D7: Kymmenessä vuodessa | E7: Yrityksiä perusvuonna | F7: Yrityksiä 10 vuoden päästä
B8: =IF(ISTEXT('1_Velvoiteluettelo'!C17),'1_Velvoiteluettelo'!C17,'1_Velvoiteluettelo'!B17) -> Velvoite1 | C8: 0 | D8: =((C8+1)^10)-1 -> 0 | E8: =OFFSET('3_Muut kustannukset'!$I$13,0,'1_Velvoiteluettelo'!S17-1) -> 0 | F8: =E8+D8*E8 -> 0
B9: =IF(ISTEXT('1_Velvoiteluettelo'!C18),'1_Velvoiteluettelo'!C18,'1_Velvoiteluettelo'!B18) -> Velvoite2 | C9: 0 | D9: =((C9+1)^10)-1 -> 0 | E9: =OFFSET('3_Muut kustannukset'!$I$13,0,'1_Velvoiteluettelo'!S18-1) -> 0 | F9: =E9+D9*E9 -> 0
B10: =IF(ISTEXT('1_Velvoiteluettelo'!C19),'1_Velvoiteluettelo'!C19,'1_Velvoiteluettelo'!B19) -> Velvoite3 | C10: 0 | D10: =((C10+1)^10)-1 -> 0 | E10: =OFFSET('3_Muut kustannukset'!$I$13,0,'1_Velvoiteluettelo'!S19-1) -> 0 | F10: =E10+D10*E10 -> 0
B11: =IF(ISTEXT('1_Velvoiteluettelo'!C20),'1_Velvoiteluettelo'!C20,'1_Velvoiteluettelo'!B20) -> Velvoite4 | C11: 0 | D11: =((C11+1)^10)-1 -> 0 | E11: =OFFSET('3_Muut kustannukset'!$I$13,0,'1_Velvoiteluettelo'!S20-1) -> 0 | F11: =E11+D11*E11 -> 0
B12: =IF(ISTEXT('1_Velvoiteluettelo'!C21),'1_Velvoiteluettelo'!C21,'1_Velvoiteluettelo'!B21) -> Velvoite5 | C12: 0 | D12: =((C12+1)^10)-1 -> 0 | E12: =OFFSET('3_Muut kustannukset'!$I$13,0,'1_Velvoiteluettelo'!S21-1) -> 0 | F12: =E12+D12*E12 -> 0
B15: Perustelut (Miksi uskot yritysjoukon koon muuttuvan, lähdeviittaukset):
C25: Palaa takaisin tai siirry
C26: Ohjeisiin
C27: Tarkistuslistaan | D27: Ohjeet ja tarkistuslista
C28: Välilehdelle 1 | D28: Velvoiteluettelo
C29: Välilehdelle 2 | D29: Työkustannukset
C30: Välilehdelle 3 | D30: Muut kustannuksen ja kustannukset yhteensä
C31: Välilehdelle 5 | D31: Yhteenveto
C32: Apu2 | D32: Tehtäväkohtainen aika - apu hahmottamiseen
C33: Apu3 | D33: Laite tms kustannuksista
C34: Apu4 | D34: Yksinkertainen esimerkkilaskelma
C35: Apu5 | D35: Tietolähteitä

Sheet 5_Yhteenveto
A1: Yhteenveto ja tiedot, jotka tulee kirjata hallituksen esitykseen
A3: Ohjeet
B5: Tälle välilehdelle ei täytetä mitään tietoja. Tämä välilehti kerää muilta välilehdiltä yhteenvedon kaikista velvoitteiden aiheuttamista kustannuslisäyksistä ja -säästöistä. Välilehdellä on myös eriteltynä nettokustannukset EU-sääntelystä ja kansallisesta sääntelystä. Katso kohdat, joihin on merkitty "Kirjaa nämä hallituksen esitykseen" ja kirjoita nämä auki HE:n yritysvaikutusarvioinnin alle. Huom. ao. luvut pyöristettyjä. Kirjoita HE:een noin numeroarvon eteen. Katso tarvittaessa myös oikeusminiteriön ohje vaikutusarvioinnin laatimisesta sekä TEM:n laatima ohjeistus. (Linkit ohessa) | H5: Lisäohjeita:
H6: Oikeusministeriön ohje (2007:6) vaikutusarvioinnin laatimisesta
H7: Työ- ja elinkeinoministeriön raportit ja ohjeet
H9: *Nettonykyarvo = Sääntelyn taakkavaikutus yrityskentälle nykyhetkestä tulevaisuuteen mitattuna perusvuoden rahassa (rahan arvo laskee 4 % vuosivauhtia)
B10: Lopuksi, lähetä laskelma tarkistettavaksi ja tallennettavaksi (TEM). | H10: *Nettonykyarvo vuositasolla = Sääntelyn keskimääräinen taakkavaikutus vuositasolla lain voimassaolon ajan (oletus: 10 vuotta)
A12: Yhteenveto velvoitekohtaisesti | E12: Kirjaa nämä hallituksen esitykseen! | H12: Laskennallisia eriä | L12: Kustannukset per yritys | P12: Tarkat, ei pyöristetyt arvot | U12: per yritys, tarkat, ei pyöristetyt arvot | AA12: Apulaskuruutu: EU-sääntelyosan ja kansallisen osan erottaminen | AH12: Rivejä lisätty: | AI12: ='Listat (älä muuta)'!G4 -> 0
A13: Velvoite-numero | B13: Velvoitteen nimi | C13: Sääntelyn luonne | D13: Kuinka kauan voimassa? | E13: Yritysten määrä (A) | F13: Kertakustannus nykyrahassa (C) | G13: Toistuvat kustannukset (+) / säästöt (-) nykyrahassa (B) | H13: Kustannusten ja säästöjen kokonaissumman nettonykyarvo* | I13: Nettonykyarvo vuositasolla* | J13: Kannustin lainvalmistelijalle | L13: Velvoitteen nimi | M13: Kertakustannus nykyrahassa | N13: Toistuvat kustannukset (+) / säästöt (-) nykyrahassa vuosittain | P13: Kertakustannus nykyrahassa (C) | Q13: Toistuvat kustannukset (+) / säästöt (-) nykyrahassa (B) | R13: Kustannusten ja säästöjen kokonaissumman nettonykyarvo* | S13: Nettonykyarvo vuositasolla* | U13: Velvoitteen nimi | V13: Kertakustannus nykyrahassa | W13: Toistuvat kustannukset (+) / säästöt (-) nykyrahassa vuosittain | AA13: NPV:n EU-osuus | AB13: NPV:n Kansallinen osuus | AC13: Jos EU, arvo=1 | AD13: Jos kans., arvo=1 | AF13: Kerta- kustannusten EU-osuus | AG13: Toistuvien kustannusten EU-osuus | AH13: Kerta- kustannusten kans. osuus | AI13: Toistuvien kustannusten kans. osuus
A14: ='1_Velvoiteluettelo'!B17 -> Velvoite1 | B14: =IF(ISTEXT('1_Velvoiteluettelo'!C17),'1_Velvoiteluettelo'!C17,"") ->  | C14: =IF(ISTEXT('1_Velvoiteluettelo'!G17),'1_Velvoiteluettelo'!G17,"") ->  | D14: ='1_Velvoiteluettelo'!E17 -> toistaiseksi | E14: =IF(ISNUMBER(OFFSET('3_Muut kustannukset'!$I$13,0,AE14)),OFFSET('3_Muut kustannukset'!$I$13,0,AE14),("-")) -> 0 | F14: =IF(P14>0,IF(OR((P14=1000000),(P14<1000000)),MROUND(P14,1000),IF(P14<10000000,MROUND(P14,10000),MROUND(P14,100000))),IF(OR((ABS(P14)=1000000),(ABS(P14)<1000000)),MROUND(P14,-1000),IF(ABS(P14)<10000000,MROUND(P14,-10000),MROUND(P14,-100000)))) -> 0 | G14: =IF(Q14>0,IF(OR((Q14=1000000),(Q14<1000000)),MROUND(Q14,1000),IF(Q14<10000000,MROUND(Q14,10000),MROUND(Q14,100000))),IF(OR((ABS(Q14)=1000000),(ABS(Q14)<1000000)),MROUND(Q14,-1000),IF(ABS(Q14)<10000000,MROUND(Q14,-10000),MROUND(Q14,-100000)))) -> 0 | H14: =IF(R14>0,IF(OR((R14=100000),(R14<100000)),MROUND(R14,1000),IF(R14<1000000,MROUND(R14,10000),MROUND(R14,100000))),IF(OR((ABS(R14)=100000),(ABS(R14)<100000)),MROUND(R14,-1000),IF(ABS(R14)<1000000,MROUND(R14,-10000),MROUND(R14,-100000)))) -> 0 | I14: =IF(S14>0,IF(OR((S14=100000),(S14<100000)),MROUND(S14,1000),IF(S14<1000000,MROUND(S14,10000),MROUND(S14,100000))),IF(OR((ABS(S14)=100000),(ABS(S14)<100000)),MROUND(S14,-1000),IF(ABS(S14)<1000000,MROUND(S14,-10000),MROUND(S14,-100000)))) -> 0 | J14: =IF(ISBLANK('1_Velvoiteluettelo'!G17),"",IF(S14>0,"Voiko sääntelyä sujuvoittaa?","Hyvä, sääntelytaakka kevenee!")) ->  | L14: =IF(ISTEXT('1_Velvoiteluettelo'!C17),'1_Velvoiteluettelo'!C17,"") ->  | M14: =IF(V14>0,IF(OR((V14=1000),(V14<1000)),MROUND(V14,10),IF(V14<100000,MROUND(V14,100),MROUND(V14,1000))),IF(OR((ABS(V14)=1000),(ABS(V14)<1000)),MROUND(V14,-10),IF(ABS(V14)<100000,MROUND(V14,-100),MROUND(V14,-1000)))) -> 0 | N14: =IF(W14>0,IF(OR((W14=1000),(W14<1000)),MROUND(W14,10),IF(W14<100000,MROUND(W14,100),MROUND(W14,1000))),IF(OR((ABS(W14)=1000),(ABS(W14)<1000)),MROUND(W14,-10),IF(ABS(W14)<100000,MROUND(W14,-100),MROUND(W14,-1000)))) -> 0 | P14: =OFFSET('3_Muut kustannukset'!I$45,0,AE14) -> 0 | Q14: =OFFSET('3_Muut kustannukset'!I$30,0,AE14) -> 0 | R14: =OFFSET('Annualisoitu NPV'!$D$38,0,AE14) -> 0 | S14: =OFFSET('Annualisoitu NPV'!$D$40,0,AE14) -> 0 | U14: =IF(ISTEXT('1_Velvoiteluettelo'!C17),'1_Velvoiteluettelo'!C17,"") ->  | V14: =IF(AND(NOT(E14=0),(ISNUMBER(E14))),P14/E14,"0") -> 0 | W14: =IF(AND(NOT(E14=0),(ISNUMBER(E14))),Q14/E14,"0") -> 0 | AA14: =R14*AC14 -> 0 | AB14: =R14*AD14 -> 0 | AC14: =IF(OR(C14="EU-minimisääntelyä",C14="EU:n velvoittamaa sääntelyn keventämistä"),1,IF(ISBLANK(C14),"",0)) -> 0 | AD14: =IF(OR(C14="EU-minimisääntelyä",C14="EU:n velvoittamaa sääntelyn keventämistä"),0,IF(ISBLANK(C14),"",1)) -> 1 | AE14: 0 | AF14: =P14*$AC14 -> 0 | AG14: =Q14*$AC14 -> 0 | AH14: =P14*$AD14 -> 0 | AI14: =Q14*$AD14 -> 0
A15: ='1_Velvoiteluettelo'!B18 -> Velvoite2 | B15: =IF(ISTEXT('1_Velvoiteluettelo'!C18),'1_Velvoiteluettelo'!C18,"") ->  | C15: =IF(ISTEXT('1_Velvoiteluettelo'!G18),'1_Velvoiteluettelo'!G18,"") ->  | D15: ='1_Velvoiteluettelo'!E18 -> toistaiseksi | E15: =IF(ISNUMBER(OFFSET('3_Muut kustannukset'!$I$13,0,AE15)),OFFSET('3_Muut kustannukset'!$I$13,0,AE15),("-")) -> 0 | F15: =IF(P15>0,IF(OR((P15=1000000),(P15<1000000)),MROUND(P15,1000),IF(P15<10000000,MROUND(P15,10000),MROUND(P15,100000))),IF(OR((ABS(P15)=1000000),(ABS(P15)<1000000)),MROUND(P15,-1000),IF(ABS(P15)<10000000,MROUND(P15,-10000),MROUND(P15,-100000)))) -> 0 | G15: =IF(Q15>0,IF(OR((Q15=1000000),(Q15<1000000)),MROUND(Q15,1000),IF(Q15<10000000,MROUND(Q15,10000),MROUND(Q15,100000))),IF(OR((ABS(Q15)=1000000),(ABS(Q15)<1000000)),MROUND(Q15,-1000),IF(ABS(Q15)<10000000,MROUND(Q15,-10000),MROUND(Q15,-100000)))) -> 0 | H15: =IF(R15>0,IF(OR((R15=100000),(R15<100000)),MROUND(R15,1000),IF(R15<1000000,MROUND(R15,10000),MROUND(R15,100000))),IF(OR((ABS(R15)=100000),(ABS(R15)<100000)),MROUND(R15,-1000),IF(ABS(R15)<1000000,MROUND(R15,-10000),MROUND(R15,-100000)))) -> 0 | I15: =IF(S15>0,IF(OR((S15=100000),(S15<100000)),MROUND(S15,1000),IF(S15<1000000,MROUND(S15,10000),MROUND(S15,100000))),IF(OR((ABS(S15)=100000),(ABS(S15)<100000)),MROUND(S15,-1000),IF(ABS(S15)<1000000,MROUND(S15,-10000),MROUND(S15,-100000)))) -> 0 | J15: =IF(ISBLANK('1_Velvoiteluettelo'!G18),"",IF(I15>0,"Voiko sääntelyä sujuvoittaa?","Hyvä, sääntelytaakka kevenee!")) ->  | L15: =IF(ISTEXT('1_Velvoiteluettelo'!C18),'1_Velvoiteluettelo'!C18,"") ->  | M15: =IF(V15>0,IF(OR((V15=1000),(V15<1000)),MROUND(V15,10),IF(V15<100000,MROUND(V15,100),MROUND(V15,1000))),IF(OR((ABS(V15)=1000),(ABS(V15)<1000)),MROUND(V15,-10),IF(ABS(V15)<100000,MROUND(V15,-100),MROUND(V15,-1000)))) -> 0 | N15: =IF(W15>0,IF(OR((W15=1000),(W15<1000)),MROUND(W15,10),IF(W15<100000,MROUND(W15,100),MROUND(W15,1000))),IF(OR((ABS(W15)=1000),(ABS(W15)<1000)),MROUND(W15,-10),IF(ABS(W15)<100000,MROUND(W15,-100),MROUND(W15,-1000)))) -> 0 | P15: =OFFSET('3_Muut kustannukset'!I$45,0,AE15) -> 0 | Q15: =OFFSET('3_Muut kustannukset'!I$30,0,AE15) -> 0 | R15: =OFFSET('Annualisoitu NPV'!$D$38,0,AE15) -> 0 | S15: =OFFSET('Annualisoitu NPV'!$D$40,0,AE15) -> 0 | U15: =IF(ISTEXT('1_Velvoiteluettelo'!C18),'1_Velvoiteluettelo'!C18,"") ->  | V15: =IF(AND(NOT(E15=0),(ISNUMBER(E15))),P15/E15,"0") -> 0 | W15: =IF(AND(NOT(E15=0),(ISNUMBER(E15))),Q15/E15,"0") -> 0 | AA15: =R15*AC15 -> 0 | AB15: =R15*AD15 -> 0 | AC15: =IF(OR(C15="EU-minimisääntelyä",C15="EU:n velvoittamaa sääntelyn keventämistä"),1,IF(ISBLANK(C15),"",0)) -> 0 | AD15: =IF(OR(C15="EU-minimisääntelyä",C15="EU:n velvoittamaa sääntelyn keventämistä"),0,IF(ISBLANK(C15),"",1)) -> 1 | AE15: =AE14+1 -> 1 | AF15: =P15*$AC15 -> 0 | AG15: =Q15*$AC15 -> 0 | AH15: =P15*$AD15 -> 0 | AI15: =Q15*$AD15 -> 0
A16: ='1_Velvoiteluettelo'!B19 -> Velvoite3 | B16: =IF(ISTEXT('1_Velvoiteluettelo'!C19),'1_Velvoiteluettelo'!C19,"") ->  | C16: =IF(ISTEXT('1_Velvoiteluettelo'!G19),'1_Velvoiteluettelo'!G19,"") ->  | D16: ='1_Velvoiteluettelo'!E19 -> toistaiseksi | E16: =IF(ISNUMBER(OFFSET('3_Muut kustannukset'!$I$13,0,AE16)),OFFSET('3_Muut kustannukset'!$I$13,0,AE16),("-")) -> 0 | F16: 0 | G16: 0 | H16: 0 | I16: 0 | J16: =IF(ISBLANK('1_Velvoiteluettelo'!G19),"",IF(I16>0,"Voiko sääntelyä sujuvoittaa?","Hyvä, sääntelytaakka kevenee!")) ->  | L16: =IF(ISTEXT('1_Velvoiteluettelo'!C19),'1_Velvoiteluettelo'!C19,"") ->  | M16: 0 | N16: 0 | P16: =OFFSET('3_Muut kustannukset'!I$45,0,AE16) -> 0 | Q16: =OFFSET('3_Muut kustannukset'!I$30,0,AE16) -> 0 | R16: =OFFSET('Annualisoitu NPV'!$D$38,0,AE16) -> 0 | S16: =OFFSET('Annualisoitu NPV'!$D$40,0,AE16) -> 0 | U16: =IF(ISTEXT('1_Velvoiteluettelo'!C19),'1_Velvoiteluettelo'!C19,"") ->  | V16: 0 | W16: 0 | AA16: 0 | AB16: 0 | AC16: 0 | AD16: 1 | AE16: =AE15+1 -> 2 | AF16: 0 | AG16: 0 | AH16: 0 | AI16: 0
A17: ='1_Velvoiteluettelo'!B20 -> Velvoite4 | B17: =IF(ISTEXT('1_Velvoiteluettelo'!C20),'1_Velvoiteluettelo'!C20,"") ->  | C17: =IF(ISTEXT('1_Velvoiteluettelo'!G20),'1_Velvoiteluettelo'!G20,"") ->  | D17: ='1_Velvoiteluettelo'!E20 -> toistaiseksi | E17: =IF(ISNUMBER(OFFSET('3_Muut kustannukset'!$I$13,0,AE17)),OFFSET('3_Muut kustannukset'!$I$13,0,AE17),("-")) -> 0 | F17: 0 | G17: 0 | H17: 0 | I17: 0 | J17: =IF(ISBLANK('1_Velvoiteluettelo'!G20),"",IF(I17>0,"Voiko sääntelyä sujuvoittaa?","Hyvä, sääntelytaakka kevenee!")) ->  | L17: =IF(ISTEXT('1_Velvoiteluettelo'!C20),'1_Velvoiteluettelo'!C20,"") ->  | M17: 0 | N17: 0 | P17: =OFFSET('3_Muut kustannukset'!I$45,0,AE17) -> 0 | Q17: =OFFSET('3_Muut kustannukset'!I$30,0,AE17) -> 0 | R17: =OFFSET('Annualisoitu NPV'!$D$38,0,AE17) -> 0 | S17: =OFFSET('Annualisoitu NPV'!$D$40,0,AE17) -> 0 | U17: =IF(ISTEXT('1_Velvoiteluettelo'!C20),'1_Velvoiteluettelo'!C20,"") ->  | V17: 0 | W17: 0 | AA17: 0 | AB17: 0 | AC17: 0 | AD17: 1 | AE17: =AE16+1 -> 3 | AF17: 0 | AG17: 0 | AH17: 0 | AI17: 0
A18: ='1_Velvoiteluettelo'!B21 -> Velvoite5 | B18: =IF(ISTEXT('1_Velvoiteluettelo'!C21),'1_Velvoiteluettelo'!C21,"") ->  | C18: =IF(ISTEXT('1_Velvoiteluettelo'!G21),'1_Velvoiteluettelo'!G21,"") ->  | D18: ='1_Velvoiteluettelo'!E21 -> toistaiseksi | E18: =IF(ISNUMBER(OFFSET('3_Muut kustannukset'!$I$13,0,AE18)),OFFSET('3_Muut kustannukset'!$I$13,0,AE18),("-")) -> 0 | F18: =IF(P18>0,IF(OR((P18=1000000),(P18<1000000)),MROUND(P18,1000),IF(P18<10000000,MROUND(P18,10000),MROUND(P18,100000))),IF(OR((ABS(P18)=1000000),(ABS(P18)<1000000)),MROUND(P18,-1000),IF(ABS(P18)<10000000,MROUND(P18,-10000),MROUND(P18,-100000)))) -> 0 | G18: 0 | H18: 0 | I18: 0 | J18: =IF(ISBLANK('1_Velvoiteluettelo'!G21),"",IF(I18>0,"Voiko sääntelyä sujuvoittaa?!","Hyvä, sääntelytaakka kevenee!")) ->  | L18: =IF(ISTEXT('1_Velvoiteluettelo'!C21),'1_Velvoiteluettelo'!C21,"") ->  | M18: =IF(V18>0,IF(OR((V18=1000),(V18<1000)),MROUND(V18,10),IF(V18<100000,MROUND(V18,100),MROUND(V18,1000))),IF(OR((ABS(V18)=1000),(ABS(V18)<1000)),MROUND(V18,-10),IF(ABS(V18)<100000,MROUND(V18,-100),MROUND(V18,-1000)))) -> 0 | N18: 0 | P18: =OFFSET('3_Muut kustannukset'!I$45,0,AE18) -> 0 | Q18: =OFFSET('3_Muut kustannukset'!I$30,0,AE18) -> 0 | R18: =OFFSET('Annualisoitu NPV'!$D$38,0,AE18) -> 0 | S18: =OFFSET('Annualisoitu NPV'!$D$40,0,AE18) -> 0 | U18: =IF(ISTEXT('1_Velvoiteluettelo'!C21),'1_Velvoiteluettelo'!C21,"") ->  | V18: =IF(AND(NOT(E18=0),(ISNUMBER(E18))),P18/E18,"0") -> 0 | W18: 0 | AA18: 0 | AB18: 0 | AC18: 0 | AD18: 1 | AE18: =AE17+1 -> 4 | AF18: 0 | AG18: 0 | AH18: 0 | AI18: 0
AE19: =AE18+1 -> 5
A20: Yhteensä | E20: =IF(ISNUMBER('1_Velvoiteluettelo'!D15),'1_Velvoiteluettelo'!D15,MAX(E14:E19)) -> 0 | F20: =IF(P20>0,IF(OR((P20=1000000),(P20<1000000)),MROUND(P20,1000),IF(P20<10000000,MROUND(P20,10000),MROUND(P20,100000))),IF(OR((ABS(P20)=1000000),(ABS(P20)<1000000)),MROUND(P20,-1000),IF(ABS(P20)<10000000,MROUND(P20,-10000),MROUND(P20,-100000)))) -> 0 | G20: =IF(Q20>0,IF(OR((Q20=1000000),(Q20<1000000)),MROUND(Q20,1000),IF(Q20<10000000,MROUND(Q20,10000),MROUND(Q20,100000))),IF(OR((ABS(Q20)=1000000),(ABS(Q20)<1000000)),MROUND(Q20,-1000),IF(ABS(Q20)<10000000,MROUND(Q20,-10000),MROUND(Q20,-100000)))) -> 0 | H20: =IF(R20>0,IF(OR((R20=1000000),(R20<1000000)),MROUND(R20,1000),IF(R20<10000000,MROUND(R20,10000),MROUND(R20,100000))),IF(OR((ABS(R20)=1000000),(ABS(R20)<1000000)),MROUND(R20,-1000),IF(ABS(R20)<10000000,MROUND(R20,-10000),MROUND(R20,-100000)))) -> 0 | I20: =IF(S20>0,IF(OR((S20=1000000),(S20<1000000)),MROUND(S20,1000),IF(S20<10000000,MROUND(S20,10000),MROUND(S20,100000))),IF(OR((ABS(S20)=1000000),(ABS(S20)<1000000)),MROUND(S20,-1000),IF(ABS(S20)<10000000,MROUND(S20,-10000),MROUND(S20,-100000)))) -> 0 | J20: =IF(NOT(I20=0),IF(I20>0,"VOISIKO SÄÄNTELYÄ SUJUVOITTAA?","HYVÄ, SÄÄNTELYTAAKKA KEVENEE!"),"") ->  | L20: Yht. keskimäärin | M20: =IF(V20>0,IF(OR((V20=1000),(V20<1000)),MROUND(V20,10),IF(V20<100000,MROUND(V20,100),MROUND(V20,1000))),IF(OR((ABS(V20)=1000),(ABS(V20)<1000)),MROUND(V20,-10),IF(ABS(V20)<100000,MROUND(V20,-100),MROUND(V20,-1000)))) -> 0 | N20: =IF(W20>0,IF(OR((W20=1000),(W20<1000)),MROUND(W20,10),IF(W20<100000,MROUND(W20,100),MROUND(W20,1000))),IF(OR((ABS(W20)=1000),(ABS(W20)<1000)),MROUND(W20,-10),IF(ABS(W20)<100000,MROUND(W20,-100),MROUND(W20,-1000)))) -> 0 | P20: =SUM(P14:P19) -> 0 | Q20: =SUM(Q14:Q19) -> 0 | R20: ='Annualisoitu NPV'!$J$38 -> 0 | S20: ='Annualisoitu NPV'!$J$40 -> 0 | U20: Yht. keskimäärin | V20: =IF(AND(NOT(E20=0),(ISNUMBER(E20))),F20/E20,"0") -> 0 | W20: =IF(AND(NOT(E20=0),(ISNUMBER(E20))),G20/E20,"0") -> 0 | AA20: =SUM(AA14:AA19) -> 0 | AB20: =SUM(AB14:AB19) -> 0 | AF20: =SUM(AF14:AF19) -> 0 | AG20: =SUM(AG14:AG19) -> 0 | AH20: =SUM(AH14:AH19) -> 0 | AI20: =SUM(AI14:AI19) -> 0
B22: Kustannuslisäyksen / -säästön erittely EU-sääntelyn osalta ja kansallisen sääntelyn osalta | P22: Tarkat, ei pyöristetyt arvot
F23: Kertakustannus nykyrahassa | G23: Toistuvat kustannukset (+) / säästöt (-) nykyrahassa | H23: Kustannusten ja säästöjen kokonaissumman nettonykyarvo* | I23: Nettonykyarvo vuositasolla* | J23: Kustannus vai kustannussäästö? | R23: Kustannusten ja säästöjen kokonaissumman nettonykyarvo* | S23: Nettonykyarvo vuositasolla*
B24: EU-sääntelyn taakkavaikutus yrityksille: | F24: =IF(AF20>0,IF(OR((AF20=1000000),(AF20<1000000)),MROUND(AF20,1000),IF(AF20<10000000,MROUND(AF20,10000),MROUND(AF20,100000))),IF(OR((ABS(AF20)=1000000),(ABS(AF20)<1000000)),MROUND(AF20,-1000),IF(ABS(AF20)<10000000,MROUND(AF20,-10000),MROUND(AF20,-100000)))) -> 0 | G24: =IF(AG20>0,IF(OR((AG20=1000000),(AG20<1000000)),MROUND(AG20,1000),IF(AG20<10000000,MROUND(AG20,10000),MROUND(AG20,100000))),IF(OR((ABS(AG20)=1000000),(ABS(AG20)<1000000)),MROUND(AG20,-1000),IF(ABS(AG20)<10000000,MROUND(AG20,-10000),MROUND(AG20,-100000)))) -> 0 | H24: =IF(R24>0,IF(OR((R24=100000),(R24<100000)),MROUND(R24,1000),IF(R24<1000000,MROUND(R24,10000),MROUND(R24,100000))),IF(OR((ABS(R24)=100000),(ABS(R24)<100000)),MROUND(R24,-1000),IF(ABS(R24)<1000000,MROUND(R24,-10000),MROUND(R24,-100000)))) -> 0 | I24: =IF(S24>0,IF(OR((S24=100000),(S24<100000)),MROUND(S24,1000),IF(S24<1000000,MROUND(S24,10000),MROUND(S24,100000))),IF(OR((ABS(S24)=100000),(ABS(S24)<100000)),MROUND(S24,-1000),IF(ABS(S24)<1000000,MROUND(S24,-10000),MROUND(S24,-100000)))) -> 0 | J24: =IF(H24>0,"KUSTANNUS YRITYKSILLE",IF(H24<0,"SÄÄSTÖÄ YRITYKSILLE","")) ->  | P24: EU-sääntely | R24: =AA20 -> 0 | S24: =(AA20*'Annualisoitu NPV'!$D$24)/(1-(1+'Annualisoitu NPV'!$D$24)^(-10)) -> 0
B25: Kansallisen sääntelyn taakkavaikutus yrityksille: | F25: =IF(AH20>0,IF(OR((AH20=1000000),(AH20<1000000)),MROUND(AH20,1000),IF(AH20<10000000,MROUND(AH20,10000),MROUND(AH20,100000))),IF(OR((ABS(AH20)=1000000),(ABS(AH20)<1000000)),MROUND(AH20,-1000),IF(ABS(AH20)<10000000,MROUND(AH20,-10000),MROUND(AH20,-100000)))) -> 0 | G25: =IF(AI20>0,IF(OR((AI20=1000000),(AI20<1000000)),MROUND(AI20,1000),IF(AI20<1000000,MROUND(AI20,10000),MROUND(AI20,100000))),IF(OR((ABS(AI20)=1000000),(ABS(AI20)<1000000)),MROUND(AI20,-1000),IF(ABS(AI20)<1000000,MROUND(AI20,-10000),MROUND(AI20,-100000)))) -> 0 | H25: =IF(R25>0,IF(OR((R25=100000),(R25<100000)),MROUND(R25,1000),IF(R25<1000000,MROUND(R25,10000),MROUND(R25,100000))),IF(OR((ABS(R25)=100000),(ABS(R25)<100000)),MROUND(R25,-1000),IF(ABS(R25)<1000000,MROUND(R25,-10000),MROUND(R25,-100000)))) -> 0 | I25: =IF(S25>0,IF(OR((S25=100000),(S25<100000)),MROUND(S25,1000),IF(S25<1000000,MROUND(S25,10000),MROUND(S25,100000))),IF(OR((ABS(S25)=100000),(ABS(S25)<100000)),MROUND(S25,-1000),IF(ABS(S25)<1000000,MROUND(S25,-10000),MROUND(S25,-100000)))) -> 0 | J25: =IF(H25>0,"KUSTANNUS YRITYKSILLE",IF(H25<0,"SÄÄSTÖÄ YRITYKSILLE","")) ->  | P25: Kansallinen | R25: =AB20 -> 0 | S25: =(AB20*'Annualisoitu NPV'!$D$24)/(1-(1+'Annualisoitu NPV'!$D$24)^(-10)) -> 0
F26: Kirjaa nämä hallituksen esitykseen!

Sheet Apu1_Yritystilastot
A1: Yritykset toimialoittain muuttujina Tilastovuosi, Toimiala (TOL 2008) ja Tiedot
A2: Tiedot vuodelta: 2017 (päivitetty tammikuussa 2019)
A4: Tämä apusivu sisältää Tilastokeskuksen toimialoittaiset yritystilastot. Niiden avulla voidaan arvioida, paljonko milläkin toimialalla on yrityksiä. Toimialaluokituksen selityksen (mm. esimerkkejä kuhunkin toimialaan kuuluvista yrityksistä) oheisesta linkistä. Lisäksi Tilastokeskuksen internet-sivuilta (linkki ohessa) voi tehdä tarkempia tilastohakuja mm. henkilöstön koon tai omistajatyypin mukaan.
B5: Linkki yritysten rakenne- ja tilinpäätöstietojen tietokantaan (Tilastokeskus) | C5: Toimialaluokitus 2008
A7: OHJE: | B7: Käytä alla olevaa suodatintoimintoa haluttujen toimialojen valitsemiseen! Suodatin sisältää myös hakukentän.
C9: Yritysten lukumäärä (Y-tunnus) | D9: Yritysten lukumäärä (yritysyksikkö) | E9: Liikevaihto yhteensä, 1000 eur | F9: Henkilöstön lkm yhteensä | H9: Yritysten lukumäärä (Y-tunnus) henkilöstön koon mukaan
B10: Toimiala | H10: 1-4 hlö | I10: 5-9 hlö | J10: 10-19 hlö | K10: 20-49 hlö | L10: 50-99 hlö | M10: 100-249 hlö | N10: 250-499 hlö | O10: 500-999 hlö | P10: yli 1000 hlö
B11: 0 Toimialat yhteensä | C11: 364514 | D11: 364209 | E11: 411146587 | F11: 1452933 | H11: 325643 | I11: 18975 | J11: 10358 | K11: 6015 | L11: 1911 | M11: 995 | N11: 347 | O11: 156 | P11: 114
B12: A Maatalous, metsätalous ja kalatalous | C12: 77580 | D12: 77578 | E12: 2463721 | F12: 48776 | H12: 76323 | I12: 848 | J12: 280 | K12: 104 | L12: 18 | M12: 5 | N12: 1 | O12: 1 | P12: .
B13: 01 Kasvinviljely ja kotieläintalous, riistatalous ja niihin liittyvät palvelut | C13: 47113 | D13: 47112 | E13: ? | F13: 36545 | H13: 46392 | I13: 538 | J13: 131 | K13: 43 | L13: 5 | M13: 3 | N13: 1 | O13: . | P13: .
B14: 011 Yksivuotisten kasvien viljely | C14: 19120 | D14: 19120 | E14: ? | F14: 11499 | H14: Tietoja ei ole saatavilla tällä toimialan tarkkuustasolla
B15: 0111 Viljakasvien (pl. riisin), palkokasvien ja öljysiemenkasvien viljely | C15: 17732 | D15: 17732 | E15: ? | F15: 7404 | H15: Tietoja ei ole saatavilla tällä toimialan tarkkuustasolla
B16: 01110 Viljakasvien (pl. riisin), palkokasvien ja öljysiemenkasvien viljely | C16: 17732 | D16: 17732 | E16: ? | F16: 7404 | H16: Tietoja ei ole saatavilla tällä toimialan tarkkuustasolla
B17: 0113 Vihannesten ja melonien, juuresten ja mukulakasvien viljely | C17: 1001 | D17: 1001 | E17: ? | F17: 3046 | H17: Tietoja ei ole saatavilla tällä toimialan tarkkuustasolla
B18: 01131 Vihannesten viljely avomaalla (pl. peruna ja sokerijuurikas) | C18: 499 | D18: 499 | E18: ? | F18: 914 | H18: Tietoja ei ole saatavilla tällä toimialan tarkkuustasolla
B19: 01132 Vihannesten viljely kasvihuoneessa | C19: 328 | D19: 328 | E19: ? | F19: 1940 | H19: Tietoja ei ole saatavilla tällä toimialan tarkkuustasolla
B20: 01133 Perunan viljely | C20: 160 | D20: 160 | E20: ? | F20: 186 | H20: Tietoja ei ole saatavilla tällä toimialan tarkkuustasolla
B21: 01134 Sokerijuurikkaan viljely | C21: 14 | D21: 14 | E21: ? | F21: 7 | H21: Tietoja ei ole saatavilla tällä toimialan tarkkuustasolla
B22: 0116 Kuitukasvien viljely | C22: 1 | D22: 1 | E22: .. | F22: 0 | H22: Tietoja ei ole saatavilla tällä toimialan tarkkuustasolla
B23: 01160 Kuitukasvien viljely | C23: 1 | D23: 1 | E23: .. | F23: 0 | H23: Tietoja ei ole saatavilla tällä toimialan tarkkuustasolla
B24: 0119 Muu yksivuotisten ja koristekasvien viljely | C24: 386 | D24: 386 | E24: .. | F24: 1048 | H24: Tietoja ei ole saatavilla tällä toimialan tarkkuustasolla
B25: 01191 Koristekasvien viljely | C25: 209 | D25: 209 | E25: ? | F25: 966 | H25: Tietoja ei ole saatavilla tällä toimialan tarkkuustasolla
B26: 01199 Muiden yksivuotisten kasvien viljely | C26: 177 | D26: 177 | E26: .. | F26: 82 | H26: Tietoja ei ole saatavilla tällä toimialan tarkkuustasolla
B27: 012 Monivuotisten kasvien viljely | C27: 2067 | D27: 2067 | E27: ? | F27: 1528 | H27: Tietoja ei ole saatavilla tällä toimialan tarkkuustasolla
B28: 0124 Omenoiden, kirsikoiden, luumujen ym. kota- ja kivihedelmien viljely | C28: 29 | D28: 29 | E28: ? | F28: 30 | H28: Tietoja ei ole saatavilla tällä toimialan tarkkuustasolla
B29: 01240 Omenoiden, kirsikoiden, luumujen ym. kota- ja kivihedelmien viljely | C29: 29 | D29: 29 | E29: ? | F29: 30 | H29: Tietoja ei ole saatavilla tällä toimialan tarkkuustasolla
B30: 0125 Marjojen, pähkinöiden ja muiden puissa ja pensaissa kasvavien hedelmien viljely | C30: 401 | D30: 401 | E30: ? | F30: 692 | H30: Tietoja ei ole saatavilla tällä toimialan tarkkuustasolla
B31: 01250 Marjojen, pähkinöiden ja muiden puissa ja pensaissa kasvavien hedelmien viljely | C31: 401 | D31: 401 | E31: ? | F31: 692 | H31: Tietoja ei ole saatavilla tällä toimialan tarkkuustasolla
B32: 0128 Mauste-, aromi-, rohdos- ja lääkekasvien viljely | C32: 21 | D32: 21 | E32: ? | F32: 29 | H32: Tietoja ei ole saatavilla tällä toimialan tarkkuustasolla
B33: 01280 Mauste-, aromi-, rohdos- ja lääkekasvien viljely | C33: 21 | D33: 21 | E33: ? | F33: 29 | H33: Tietoja ei ole saatavilla tällä toimialan tarkkuustasolla
B34: 0129 Muu monivuotisten kasvien viljely | C34: 1616 | D34: 1616 | E34: ? | F34: 778 | H34: Tietoja ei ole saatavilla tällä toimialan tarkkuustasolla
B35: 01290 Muu monivuotisten kasvien viljely | C35: 1616 | D35: 1616 | E35: ? | F35: 778 | H35: Tietoja ei ole saatavilla tällä toimialan tarkkuustasolla
B36: 013 Taimien kasvatus ja muu kasvien lisääminen | C36: 83 | D36: 83 | E36: ? | F36: 443 | H36: Tietoja ei ole saatavilla tällä toimialan tarkkuustasolla
B37: 0130 Taimien kasvatus ja muu kasvien lisääminen | C37: 83 | D37: 83 | E37: ? | F37: 443 | H37: Tietoja ei ole saatavilla tällä toimialan tarkkuustasolla
B38: 01300 Taimien kasvatus ja muu kasvien lisääminen | C38: 83 | D38: 83 | E38: ? | F38: 443 | H38: Tietoja ei ole saatavilla tällä toimialan tarkkuustasolla
B39: 014 Kotieläintalous | C39: 8704 | D39: 8703 | E39: ? | F39: 10068 | H39: Tietoja ei ole saatavilla tällä toimialan tarkkuustasolla
B40: 0141 Lypsykarjan kasvatus | C40: 4322 | D40: 4322 | E40: ? | F40: 5376 | H40: Tietoja ei ole saatavilla tällä toimialan tarkkuustasolla
B41: 01410 Lypsykarjan kasvatus | C41: 4322 | D41: 4322 | E41: ? | F41: 5376 | H41: Tietoja ei ole saatavilla tällä toimialan tarkkuustasolla
B42: 0142 Muun nautakarjan ja puhvelien kasvatus | C42: 1280 | D42: 1280 | E42: ? | F42: 1124 | H42: Tietoja ei ole saatavilla tällä toimialan tarkkuustasolla
B43: 01420 Muun nautakarjan ja puhvelien kasvatus | C43: 1280 | D43: 1280 | E43: ? | F43: 1124 | H43: Tietoja ei ole saatavilla tällä toimialan tarkkuustasolla
B44: 0143 Hevosten ja muiden hevoseläinten kasvatus | C44: 536 | D44: 536 | E44: ? | F44: 337 | H44: Tietoja ei ole saatavilla tällä toimialan tarkkuustasolla
B45: 01430 Hevosten ja muiden hevoseläinten kasvatus | C45: 536 | D45: 536 | E45: ? | F45: 337 | H45: Tietoja ei ole saatavilla tällä toimialan tarkkuustasolla
B46: 0144 Kamelien ja kamelieläinten kasvatus | C46: 1 | D46: 1 | E46: .. | F46: 0 | H46: Tietoja ei ole saatavilla tällä toimialan tarkkuustasolla
B47: 01440 Kamelien ja kamelieläinten kasvatus | C47: 1 | D47: 1 | E47: .. | F47: 0 | H47: Tietoja ei ole saatavilla tällä toimialan tarkkuustasolla
B48: 0145 Lampaiden ja vuohien kasvatus | C48: 254 | D48: 254 | E48: .. | F48: 140 | H48: Tietoja ei ole saatavilla tällä toimialan tarkkuustasolla
B49: 01450 Lampaiden ja vuohien kasvatus | C49: 254 | D49: 254 | E49: .. | F49: 140 | H49: Tietoja ei ole saatavilla tällä toimialan tarkkuustasolla
B50: 0146 Sikojen kasvatus | C50: 656 | D50: 656 | E50: ? | F50: 974 | H50: Tietoja ei ole saatavilla tällä toimialan tarkkuustasolla
B51: 01461 Porsastuotanto | C51: 387 | D51: 387 | E51: ? | F51: 618 | H51: Tietoja ei ole saatavilla tällä toimialan tarkkuustasolla
B52: 01462 Lihasikojen kasvatus | C52: 269 | D52: 269 | E52: ? | F52: 356 | H52: Tietoja ei ole saatavilla tällä toimialan tarkkuustasolla
B53: 0147 Siipikarjan kasvatus | C53: 341 | D53: 340 | E53: ? | F53: 542 | H53: Tietoja ei ole saatavilla tällä toimialan tarkkuustasolla
B54: 01471 Kananmunien tuotanto | C54: 152 | D54: 151 | E54: ? | F54: 218 | H54: Tietoja ei ole saatavilla tällä toimialan tarkkuustasolla
B55: 01472 Broilerien tuotanto | C55: 125 | D55: 125 | E55: ? | F55: 216 | H55: Tietoja ei ole saatavilla tällä toimialan tarkkuustasolla
B56: 01479 Muu siipikarjatalous | C56: 64 | D56: 64 | E56: ? | F56: 108 | H56: Tietoja ei ole saatavilla tällä toimialan tarkkuustasolla
B57: 0149 Muiden eläinten kasvatus | C57: 1314 | D57: 1314 | E57: ? | F57: 1575 | H57: Tietoja ei ole saatavilla tällä toimialan tarkkuustasolla
B58: 01491 Turkistarhaus | C58: 969 | D58: 969 | E58: ? | F58: 1422 | H58: Tietoja ei ole saatavilla tällä toimialan tarkkuustasolla
B59: 01492 Poronhoito | C59: 40 | D59: 40 | E59: ? | F59: 9 | H59: Tietoja ei ole saatavilla tällä toimialan tarkkuustasolla
B60: 01499 Muu eläinten hoito | C60: 305 | D60: 305 | E60: ? | F60: 143 | H60: Tietoja ei ole saatavilla tällä toimialan tarkkuustasolla
B61: 015 Yhdistetty kasvinviljely ja kotieläintalous (sekatilat) | C61: 15804 | D61: 15804 | E61: ? | F61: 11822 | H61: Tietoja ei ole saatavilla tällä toimialan tarkkuustasolla
B62: 0150 Yhdistetty kasvinviljely ja kotieläintalous (sekatilat) | C62: 15804 | D62: 15804 | E62: ? | F62: 11822 | H62: Tietoja ei ole saatavilla tällä toimialan tarkkuustasolla
B63: 01500 Yhdistetty kasvinviljely ja kotieläintalous (sekatilat) | C63: 15804 | D63: 15804 | E63: ? | F63: 11822 | H63: Tietoja ei ole saatavilla tällä toimialan tarkkuustasolla
B64: 016 Maataloutta palveleva toiminta | C64: 1317 | D64: 1317 | E64: ? | F64: 1177 | H64: Tietoja ei ole saatavilla tällä toimialan tarkkuustasolla
B65: 0161 Kasvinviljelyä palveleva toiminta | C65: 664 | D65: 664 | E65: ? | F65: 394 | H65: Tietoja ei ole saatavilla tällä toimialan tarkkuustasolla
B66: 01611 Kasvinviljelyn tukipalvelut | C66: 595 | D66: 595 | E66: ? | F66: 385 | H66: Tietoja ei ole saatavilla tällä toimialan tarkkuustasolla
B67: 01612 Maatalousmaan pitäminen viljelykelpoisena | C67: 69 | D67: 69 | E67: ? | F67: 9 | H67: Tietoja ei ole saatavilla tällä toimialan tarkkuustasolla
B68: 0162 Kotieläintaloutta palveleva toiminta | C68: 603 | D68: 603 | E68: ? | F68: 732 | H68: Tietoja ei ole saatavilla tällä toimialan tarkkuustasolla
B69: 01620 Kotieläintaloutta palveleva toiminta | C69: 603 | D69: 603 | E69: ? | F69: 732 | H69: Tietoja ei ole saatavilla tällä toimialan tarkkuustasolla
B70: 0163 Sadon jatkokäsittely | C70: 28 | D70: 28 | E70: ? | F70: 40 | H70: Tietoja ei ole saatavilla tällä toimialan tarkkuustasolla
B71: 01630 Sadon jatkokäsittely | C71: 28 | D71: 28 | E71: ? | F71: 40 | H71: Tietoja ei ole saatavilla tällä toimialan tarkkuustasolla
B72: 0164 Siementen käsittely kasvinviljelyä varten | C72: 22 | D72: 22 | E72: ? | F72: 11 | H72: Tietoja ei ole saatavilla tällä toimialan tarkkuustasolla
B73: 01640 Siementen käsittely kasvinviljelyä varten | C73: 22 | D73: 22 | E73: ? | F73: 11 | H73: Tietoja ei ole saatavilla tällä toimialan tarkkuustasolla
B74: 017 Metsästys ja sitä palveleva toiminta | C74: 18 | D74: 18 | E74: ? | F74: 8 | H74: Tietoja ei ole saatavilla tällä toimialan tarkkuustasolla
B75: 0170 Metsästys ja sitä palveleva toiminta | C75: 18 | D75: 18 | E75: ? | F75: 8 | H75: Tietoja ei ole saatavilla tällä toimialan tarkkuustasolla
B76: 01700 Metsästys ja sitä palveleva toiminta | C76: 18 | D76: 18 | E76: ? | F76: 8 | H76: Tietoja ei ole saatavilla tällä toimialan tarkkuustasolla
B77: 02 Metsätalous ja puunkorjuu | C77: 29719 | D77: 29718 | E77: 2321485 | F77: 11543 | H77: 29212 | I77: 293 | J77: 140 | K77: 58 | L77: 13 | M77: 2 | N77: . | O77: 1 | P77: .
B78: 021 Metsänhoito | C78: 20421 | D78: 20420 | E78: 743126 | F78: 2375 | H78: Tietoja ei ole saatavilla tällä toimialan tarkkuustasolla
B79: 0210 Metsänhoito | C79: 20421 | D79: 20420 | E79: 743126 | F79: 2375 | H79: Tietoja ei ole saatavilla tällä toimialan tarkkuustasolla
B80: 02100 Metsänhoito | C80: 20421 | D80: 20420 | E80: 743126 | F80: 2375 | H80: Tietoja ei ole saatavilla tällä toimialan tarkkuustasolla
B81: 022 Puunkorjuu | C81: 7893 | D81: 7893 | E81: 1160055 | F81: 6963 | H81: Tietoja ei ole saatavilla tällä toimialan tarkkuustasolla
B82: 0220 Puunkorjuu | C82: 7893 | D82: 7893 | E82: 1160055 | F82: 6963 | H82: Tietoja ei ole saatavilla tällä toimialan tarkkuustasolla
B83: 02200 Puunkorjuu | C83: 7893 | D83: 7893 | E83: 1160055 | F83: 6963 | H83: Tietoja ei ole saatavilla tällä toimialan tarkkuustasolla
B84: 023 Luonnon tuotteiden keruu (pl. polttopuu) | C84: 267 | D84: 267 | E84: 9029 | F84: 56 | H84: Tietoja ei ole saatavilla tällä toimialan tarkkuustasolla
B85: 0230 Luonnon tuotteiden keruu (pl. polttopuu) | C85: 267 | D85: 267 | E85: 9029 | F85: 56 | H85: Tietoja ei ole saatavilla tällä toimialan tarkkuustasolla
B86: 02300 Luonnon tuotteiden keruu (pl. polttopuu) | C86: 267 | D86: 267 | E86: 9029 | F86: 56 | H86: Tietoja ei ole saatavilla tällä toimialan tarkkuustasolla
B87: 024 Metsätaloutta palveleva toiminta | C87: 1138 | D87: 1138 | E87: 409275 | F87: 2150 | H87: Tietoja ei ole saatavilla tällä toimialan tarkkuustasolla
B88: 0240 Metsätaloutta palveleva toiminta | C88: 1138 | D88: 1138 | E88: 409275 | F88: 2150 | H88: Tietoja ei ole saatavilla tällä toimialan tarkkuustasolla
B89: 02400 Metsätaloutta palveleva toiminta | C89: 1138 | D89: 1138 | E89: 409275 | F89: 2150 | H89: Tietoja ei ole saatavilla tällä toimialan tarkkuustasolla
B90: 03 Kalastus ja vesiviljely | C90: 748 | D90: 748 | E90: 142235 | F90: 688 | H90: 719 | I90: 17 | J90: 9 | K90: 3 | L90: . | M90: . | N90: . | O90: . | P90: .
B91: 031 Kalastus | C91: 598 | D91: 598 | E91: 53791 | F91: 323 | H91: Tietoja ei ole saatavilla tällä toimialan tarkkuustasolla
B92: 0311 Merikalastus | C92: 322 | D92: 322 | E92: 38779 | F92: 217 | H92: Tietoja ei ole saatavilla tällä toimialan tarkkuustasolla
B93: 03110 Merikalastus | C93: 322 | D93: 322 | E93: 38779 | F93: 217 | H93: Tietoja ei ole saatavilla tällä toimialan tarkkuustasolla
B94: 0312 Sisävesikalastus | C94: 276 | D94: 276 | E94: 15011 | F94: 105 | H94: Tietoja ei ole saatavilla tällä toimialan tarkkuustasolla
B95: 03120 Sisävesikalastus | C95: 276 | D95: 276 | E95: 15011 | F95: 105 | H95: Tietoja ei ole saatavilla tällä toimialan tarkkuustasolla
B96: 032 Vesiviljely | C96: 150 | D96: 150 | E96: 88444 | F96: 365 | H96: Tietoja ei ole saatavilla tällä toimialan tarkkuustasolla
B97: 0321 Kalanviljely meressä | C97: 60 | D97: 60 | E97: 44719 | F97: 123 | H97: Tietoja ei ole saatavilla tällä toimialan tarkkuustasolla
B98: 03210 Kalanviljely meressä | C98: 60 | D98: 60 | E98: 44719 | F98: 123 | H98: Tietoja ei ole saatavilla tällä toimialan tarkkuustasolla
B99: 0322 Kalanviljely sisävesissä | C99: 90 | D99: 90 | E99: 43725 | F99: 242 | H99: Tietoja ei ole saatavilla tällä toimialan tarkkuustasolla
B100: 03220 Kalanviljely sisävesissä | C100: 90 | D100: 90 | E100: 43725 | F100: 242 | H100: Tietoja ei ole saatavilla tällä toimialan tarkkuustasolla
B101: B Kaivostoiminta ja louhinta | C101: 947 | D101: 946 | E101: 2034158 | F101: 5890 | H101: 790 | I101: 78 | J101: 44 | K101: 21 | L101: 3 | M101: 6 | N101: 4 | O101: 1 | P101: .
B102: 07 Metallimalmien louhinta | C102: 27 | D102: 26 | E102: 958572 | F102: 2022 | H102: 16 | I102: 1 | J102: 3 | K102: 1 | L102: 1 | M102: 2 | N102: 2 | O102: 1 | P102: .
B103: 071 Rautamalmien louhinta | C103: 2 | D103: 2 | E103: .. | F103: 2 | H103: Tietoja ei ole saatavilla tällä toimialan tarkkuustasolla
B104: 0710 Rautamalmien louhinta | C104: 2 | D104: 2 | E104: .. | F104: 2 | H104: Tietoja ei ole saatavilla tällä toimialan tarkkuustasolla
B105: 07100 Rautamalmien louhinta | C105: 2 | D105: 2 | E105: .. | F105: 2 | H105: Tietoja ei ole saatavilla tällä toimialan tarkkuustasolla
B106: 072 Värimetallimalmien louhinta | C106: 25 | D106: 24 | E106: .. | F106: 2020 | H106: Tietoja ei ole saatavilla tällä toimialan tarkkuustasolla
B107: 0729 Muiden värimetallimalmien louhinta | C107: 25 | D107: 24 | E107: .. | F107: 2020 | H107: Tietoja ei ole saatavilla tällä toimialan tarkkuustasolla
B108: 07290 Muiden värimetallimalmien louhinta | C108: 25 | D108: 24 | E108: .. | F108: 2020 | H108: Tietoja ei ole saatavilla tällä toimialan tarkkuustasolla
B109: 08 Muu kaivostoiminta ja louhinta | C109: 865 | D109: 865 | E109: 899504 | F109: 2895 | H109: 735 | I109: 72 | J109: 39 | K109: 15 | L109: 1 | M109: 2 | N109: 1 | O109: . | P109: .
B110: 081 Kiven louhinta, hiekan ja saven otto | C110: 378 | D110: 378 | E110: 342923 | F110: 1268 | H110: Tietoja ei ole saatavilla tällä toimialan tarkkuustasolla
B111: 0811 Koriste- ja rakennuskiven, kalkkikiven, kipsin, liidun ja liuskekiven louhinta | C111: 62 | D111: 62 | E111: 39140 | F111: 200 | H111: Tietoja ei ole saatavilla tällä toimialan tarkkuustasolla
B112: 08111 Koriste- ja rakennuskiven louhinta | C112: 52 | D112: 52 | E112: 35149 | F112: 177 | H112: Tietoja ei ole saatavilla tällä toimialan tarkkuustasolla
B113: 08112 Kalkkikiven, kipsin, liidun ja dolomiitin louhinta | C113: 5 | D113: 5 | E113: 3052 | F113: 15 | H113: Tietoja ei ole saatavilla tällä toimialan tarkkuustasolla
B114: 08113 Liuskekiven louhinta | C114: 5 | D114: 5 | E114: 938 | F114: 8 | H114: Tietoja ei ole saatavilla tällä toimialan tarkkuustasolla
B115: 0812 Soran, hiekan, saven ja kaoliinin otto | C115: 316 | D115: 316 | E115: 303784 | F115: 1068 | H115: Tietoja ei ole saatavilla tällä toimialan tarkkuustasolla
B116: 08120 Soran, hiekan, saven ja kaoliinin otto | C116: 316 | D116: 316 | E116: 303784 | F116: 1068 | H116: Tietoja ei ole saatavilla tällä toimialan tarkkuustasolla
B117: 089 Muu mineraalien kaivu | C117: 487 | D117: 487 | E117: 556580 | F117: 1627 | H117: Tietoja ei ole saatavilla tällä toimialan tarkkuustasolla
B118: 0892 Turpeen nosto | C118: 470 | D118: 470 | E118: 458886 | F118: 1406 | H118: Tietoja ei ole saatavilla tällä toimialan tarkkuustasolla
B119: 08920 Turpeen nosto | C119: 470 | D119: 470 | E119: 458886 | F119: 1406 | H119: Tietoja ei ole saatavilla tällä toimialan tarkkuustasolla
B120: 0899 Muualla luokittelematon kaivostoiminta ja louhinta | C120: 17 | D120: 17 | E120: 97694 | F120: 221 | H120: Tietoja ei ole saatavilla tällä toimialan tarkkuustasolla
B121: 08990 Muualla luokittelematon kaivostoiminta ja louhinta | C121: 17 | D121: 17 | E121: 97694 | F121: 221 | H121: Tietoja ei ole saatavilla tällä toimialan tarkkuustasolla
B122: 09 Kaivostoimintaa palveleva toiminta | C122: 55 | D122: 55 | E122: 176083 | F122: 973 | H122: 39 | I122: 5 | J122: 2 | K122: 5 | L122: 1 | M122: 2 | N122: 1 | O122: . | P122: .
B123: 099 Muuta kaivostoimintaa ja louhintaa palveleva toiminta | C123: 55 | D123: 55 | E123: 176083 | F123: 973 | H123: Tietoja ei ole saatavilla tällä toimialan tarkkuustasolla
B124: 0990 Muuta kaivostoimintaa ja louhintaa palveleva toiminta | C124: 55 | D124: 55 | E124: 176083 | F124: 973 | H124: Tietoja ei ole saatavilla tällä toimialan tarkkuustasolla
B125: 09900 Muuta kaivostoimintaa ja louhintaa palveleva toiminta | C125: 55 | D125: 55 | E125: 176083 | F125: 973 | H125: Tietoja ei ole saatavilla tällä toimialan tarkkuustasolla
B126: C Teollisuus | C126: 20246 | D126: 20176 | E126: 132627614 | F126: 293451 | H126: 14814 | I126: 1963 | J126: 1386 | K126: 1140 | L126: 465 | M126: 292 | N126: 106 | O126: 54 | P126: 26
B127: 10 Elintarvikkeiden valmistus | C127: 1632 | D127: 1610 | E127: 9558732 | F127: 30494 | H127: 1081 | I127: 207 | J127: 126 | K127: 117 | L127: 54 | M127: 31 | N127: 9 | O127: 2 | P127: 5
B128: 101 Teurastus, lihan säilyvyyskäsittely ja lihatuotteiden valmistus | C128: 215 | D128: 197 | E128: 2481629 | F128: 7995 | H128: Tietoja ei ole saatavilla tällä toimialan tarkkuustasolla
B129: 1011 Teurastus ja lihan säilyvyyskäsittely (pl. siipikarja) | C129: 52 | D129: 44 | E129: 170049 | F129: 1176 | H129: Tietoja ei ole saatavilla tällä toimialan tarkkuustasolla
B130: 10110 Teurastus ja lihan säilyvyyskäsittely (pl. siipikarja) | C130: 52 | D130: 44 | E130: 170049 | F130: 1176 | H130: Tietoja ei ole saatavilla tällä toimialan tarkkuustasolla
B131: 1012 Siipikarjan teurastus ja lihan säilyvyyskäsittely | C131: 3 | D131: 2 | E131: 71047 | F131: 381 | H131: Tietoja ei ole saatavilla tällä toimialan tarkkuustasolla
B132: 10120 Siipikarjan teurastus ja lihan säilyvyyskäsittely | C132: 3 | D132: 2 | E132: 71047 | F132: 381 | H132: Tietoja ei ole saatavilla tällä toimialan tarkkuustasolla
B133: 1013 Liha- ja siipikarjatuotteiden valmistus | C133: 160 | D133: 151 | E133: 2240533 | F133: 6438 | H133: Tietoja ei ole saatavilla tällä toimialan tarkkuustasolla
B134: 10130 Liha- ja siipikarjatuotteiden valmistus | C134: 160 | D134: 151 | E134: 2240533 | F134: 6438 | H134: Tietoja ei ole saatavilla tällä toimialan tarkkuustasolla
B135: 102 Kalan, äyriäisten ja nilviäisten jalostus ja säilöntä | C135: 139 | D135: 139 | E135: 353342 | F135: 767 | H135: Tietoja ei ole saatavilla tällä toimialan tarkkuustasolla
B136: 1020 Kalan, äyriäisten ja nilviäisten jalostus ja säilöntä | C136: 139 | D136: 139 | E136: 353342 | F136: 767 | H136: Tietoja ei ole saatavilla tällä toimialan tarkkuustasolla
B137: 10200 Kalan, äyriäisten ja nilviäisten jalostus ja säilöntä | C137: 139 | D137: 139 | E137: 353342 | F137: 767 | H137: Tietoja ei ole saatavilla tällä toimialan tarkkuustasolla
B138: 103 Hedelmien ja kasvisten jalostus ja säilöntä | C138: 149 | D138: 149 | E138: 435437 | F138: 1710 | H138: Tietoja ei ole saatavilla tällä toimialan tarkkuustasolla
B139: 1031 Perunoiden jalostus ja säilöntä | C139: 40 | D139: 40 | E139: 66839 | F139: 294 | H139: Tietoja ei ole saatavilla tällä toimialan tarkkuustasolla
B140: 10310 Perunoiden jalostus ja säilöntä | C140: 40 | D140: 40 | E140: 66839 | F140: 294 | H140: Tietoja ei ole saatavilla tällä toimialan tarkkuustasolla
B141: 1032 Hedelmä-, marja- ja kasvismehujen valmistus | C141: 31 | D141: 31 | E141: 135446 | F141: 287 | H141: Tietoja ei ole saatavilla tällä toimialan tarkkuustasolla
B142: 10320 Hedelmä-, marja- ja kasvismehujen valmistus | C142: 31 | D142: 31 | E142: 135446 | F142: 287 | H142: Tietoja ei ole saatavilla tällä toimialan tarkkuustasolla
B143: 1039 Muu hedelmien, marjojen ja kasvisten jalostus ja säilöntä | C143: 78 | D143: 78 | E143: 233152 | F143: 1128 | H143: Tietoja ei ole saatavilla tällä toimialan tarkkuustasolla
B144: 10390 Muu hedelmien, marjojen ja kasvisten jalostus ja säilöntä | C144: 78 | D144: 78 | E144: 233152 | F144: 1128 | H144: Tietoja ei ole saatavilla tällä toimialan tarkkuustasolla
B145: 104 Kasvi- ja eläinöljyjen ja -rasvojen valmistus | C145: 17 | D145: 17 | E145: 53297 | F145: 140 | H145: Tietoja ei ole saatavilla tällä toimialan tarkkuustasolla
B146: 1041 Kasvi- ja eläinperäisten öljyjen ja -rasvojen valmistus (pl. ravintorasvat) | C146: 16 | D146: 16 | E146: .. | F146: 66 | H146: Tietoja ei ole saatavilla tällä toimialan tarkkuustasolla
B147: 10410 Kasvi- ja eläinperäisten öljyjen ja -rasvojen valmistus (pl. ravintorasvat) | C147: 16 | D147: 16 | E147: .. | F147: 66 | H147: Tietoja ei ole saatavilla tällä toimialan tarkkuustasolla
B148: 1042 Margariinin ja sen kaltaisten ravintorasvojen valmistus | C148: 1 | D148: 1 | E148: .. | F148: 74 | H148: Tietoja ei ole saatavilla tällä toimialan tarkkuustasolla
B149: 10420 Margariinin ja sen kaltaisten ravintorasvojen valmistus | C149: 1 | D149: 1 | E149: .. | F149: 74 | H149: Tietoja ei ole saatavilla tällä toimialan tarkkuustasolla
B150: 105 Maitotaloustuotteiden valmistus | C150: 65 | D150: 65 | E150: 2233102 | F150: 4932 | H150: Tietoja ei ole saatavilla tällä toimialan tarkkuustasolla
B151: 1051 Maitotaloustuotteiden ja juuston valmistus | C151: 49 | D151: 49 | E151: 2148568 | F151: 4592 | H151: Tietoja ei ole saatavilla tällä toimialan tarkkuustasolla
B152: 10510 Maitotaloustuotteiden ja juuston valmistus | C152: 49 | D152: 49 | E152: 2148568 | F152: 4592 | H152: Tietoja ei ole saatavilla tällä toimialan tarkkuustasolla
B153: 1052 Jäätelön valmistus | C153: 16 | D153: 16 | E153: 84534 | F153: 340 | H153: Tietoja ei ole saatavilla tällä toimialan tarkkuustasolla
B154: 10520 Jäätelön valmistus | C154: 16 | D154: 16 | E154: 84534 | F154: 340 | H154: Tietoja ei ole saatavilla tällä toimialan tarkkuustasolla
B155: 106 Mylly- ja tärkkelystuotteiden valmistus | C155: 59 | D155: 59 | E155: 388212 | F155: 764 | H155: Tietoja ei ole saatavilla tällä toimialan tarkkuustasolla
B156: 1061 Myllytuotteiden valmistus | C156: 53 | D156: 53 | E156: 302402 | F156: 652 | H156: Tietoja ei ole saatavilla tällä toimialan tarkkuustasolla
B157: 10610 Myllytuotteiden valmistus | C157: 53 | D157: 53 | E157: 302402 | F157: 652 | H157: Tietoja ei ole saatavilla tällä toimialan tarkkuustasolla
B158: 1062 Tärkkelyksen ja tärkkelystuotteiden valmistus | C158: 6 | D158: 6 | E158: 85810 | F158: 112 | H158: Tietoja ei ole saatavilla tällä toimialan tarkkuustasolla
B159: 10620 Tärkkelyksen ja tärkkelystuotteiden valmistus | C159: 6 | D159: 6 | E159: 85810 | F159: 112 | H159: Tietoja ei ole saatavilla tällä toimialan tarkkuustasolla
B160: 107 Leipomotuotteiden, makaronien yms. valmistus | C160: 668 | D160: 668 | E160: 1077359 | F160: 7451 | H160: Tietoja ei ole saatavilla tällä toimialan tarkkuustasolla
B161: 1071 Leivän valmistus: tuoreiden leivonnaisten ja kakkujen valmistus | C161: 642 | D161: 642 | E161: 984399 | F161: 7004 | H161: Tietoja ei ole saatavilla tällä toimialan tarkkuustasolla
B162: 10710 Leivän valmistus: tuoreiden leivonnaisten ja kakkujen valmistus | C162: 642 | D162: 642 | E162: 984399 | F162: 7004 | H162: Tietoja ei ole saatavilla tällä toimialan tarkkuustasolla
B163: 1072 Näkkileivän ja keksien valmistus: säilyvien leivonnaisten ja kakkujen valmistus | C163: 22 | D163: 22 | E163: 92372 | F163: 432 | H163: Tietoja ei ole saatavilla tällä toimialan tarkkuustasolla
B164: 10720 Näkkileivän ja keksien valmistus: säilyvien leivonnaisten ja kakkujen valmistus | C164: 22 | D164: 22 | E164: 92372 | F164: 432 | H164: Tietoja ei ole saatavilla tällä toimialan tarkkuustasolla
B165: 1073 Makaronin, nuudelien, kuskusin ja vastaavien jauhotuotteiden valmistus | C165: 4 | D165: 4 | E165: 588 | F165: 15 | H165: Tietoja ei ole saatavilla tällä toimialan tarkkuustasolla
B166: 10730 Makaronin, nuudelien, kuskusin ja vastaavien jauhotuotteiden valmistus | C166: 4 | D166: 4 | E166: 588 | F166: 15 | H166: Tietoja ei ole saatavilla tällä toimialan tarkkuustasolla
B167: 108 Muiden elintarvikkeiden valmistus | C167: 246 | D167: 244 | E167: 1903924 | F167: 5880 | H167: Tietoja ei ole saatavilla tällä toimialan tarkkuustasolla
B168: 1081 Sokerin valmistus | C168: 4 | D168: 4 | E168: 238364 | F168: 275 | H168: Tietoja ei ole saatavilla tällä toimialan tarkkuustasolla
B169: 10810 Sokerin valmistus | C169: 4 | D169: 4 | E169: 238364 | F169: 275 | H169: Tietoja ei ole saatavilla tällä toimialan tarkkuustasolla
B170: 1082 Kaakaon, suklaan ja makeisten valmistus | C170: 44 | D170: 44 | E170: 463323 | F170: 1739 | H170: Tietoja ei ole saatavilla tällä toimialan tarkkuustasolla
B171: 10820 Kaakaon, suklaan ja makeisten valmistus | C171: 44 | D171: 44 | E171: 463323 | F171: 1739 | H171: Tietoja ei ole saatavilla tällä toimialan tarkkuustasolla
B172: 1083 Teen ja kahvin valmistus | C172: 22 | D172: 22 | E172: 328659 | F172: 419 | H172: Tietoja ei ole saatavilla tällä toimialan tarkkuustasolla
B173: 10830 Teen ja kahvin valmistus | C173: 22 | D173: 22 | E173: 328659 | F173: 419 | H173: Tietoja ei ole saatavilla tällä toimialan tarkkuustasolla
B174: 1084 Mausteiden ja maustekastikkeiden valmistus | C174: 23 | D174: 23 | E174: 193368 | F174: 412 | H174: Tietoja ei ole saatavilla tällä toimialan tarkkuustasolla
B175: 10840 Mausteiden ja maustekastikkeiden valmistus | C175: 23 | D175: 23 | E175: 193368 | F175: 412 | H175: Tietoja ei ole saatavilla tällä toimialan tarkkuustasolla
B176: 1085 Einesten ja valmisruokien valmistus | C176: 65 | D176: 63 | E176: 434751 | F176: 2034 | H176: Tietoja ei ole saatavilla tällä toimialan tarkkuustasolla
B177: 10850 Einesten ja valmisruokien valmistus | C177: 65 | D177: 63 | E177: 434751 | F177: 2034 | H177: Tietoja ei ole saatavilla tällä toimialan tarkkuustasolla
B178: 1086 Homogenoitujen ravintovalmisteiden ja dieettiruokien valmistus | C178: 8 | D178: 8 | E178: 29008 | F178: 109 | H178: Tietoja ei ole saatavilla tällä toimialan tarkkuustasolla
B179: 10860 Homogenoitujen ravintovalmisteiden ja dieettiruokien valmistus | C179: 8 | D179: 8 | E179: 29008 | F179: 109 | H179: Tietoja ei ole saatavilla tällä toimialan tarkkuustasolla
B180: 1089 Muualla luokittelematon elintarvikkeiden valmistus | C180: 80 | D180: 80 | E180: 216451 | F180: 893 | H180: Tietoja ei ole saatavilla tällä toimialan tarkkuustasolla
B181: 10890 Muualla luokittelematon elintarvikkeiden valmistus | C181: 80 | D181: 80 | E181: 216451 | F181: 893 | H181: Tietoja ei ole saatavilla tällä toimialan tarkkuustasolla
B182: 109 Eläinten ruokien valmistus | C182: 74 | D182: 72 | E182: 632430 | F182: 855 | H182: Tietoja ei ole saatavilla tällä toimialan tarkkuustasolla
B183: 1091 Kotieläinten rehujen valmistus | C183: 59 | D183: 58 | E183: 600551 | F183: 724 | H183: Tietoja ei ole saatavilla tällä toimialan tarkkuustasolla
B184: 10910 Kotieläinten rehujen valmistus | C184: 59 | D184: 58 | E184: 600551 | F184: 724 | H184: Tietoja ei ole saatavilla tällä toimialan tarkkuustasolla
B185: 1092 Lemmikkieläinten ruokien valmistus | C185: 15 | D185: 14 | E185: 31878 | F185: 132 | H185: Tietoja ei ole saatavilla tällä toimialan tarkkuustasolla
B186: 10920 Lemmikkieläinten ruokien valmistus | C186: 15 | D186: 14 | E186: 31878 | F186: 132 | H186: Tietoja ei ole saatavilla tällä toimialan tarkkuustasolla
B187: 11 Juomien valmistus | C187: 139 | D187: 139 | E187: 1253226 | F187: 2778 | H187: 106 | I187: 10 | J187: 9 | K187: 5 | L187: 4 | M187: . | N187: 4 | O187: 1 | P187: .
B188: 110 Juomien valmistus | C188: 139 | D188: 139 | E188: 1253226 | F188: 2778 | H188: Tietoja ei ole saatavilla tällä toimialan tarkkuustasolla
B189: 1101 Alkoholijuomien tislaus ja sekoittaminen: etyylialkoholin valmistus käymisteitse | C189: 21 | D189: 21 | E189: .. | F189: 603 | H189: Tietoja ei ole saatavilla tällä toimialan tarkkuustasolla
B190: 11010 Alkoholijuomien tislaus ja sekoittaminen: etyylialkoholin valmistus käymisteitse | C190: 21 | D190: 21 | E190: .. | F190: 603 | H190: Tietoja ei ole saatavilla tällä toimialan tarkkuustasolla
B191: 1103 Siiderin, hedelmä- ja marjaviinien valmistus | C191: 23 | D191: 23 | E191: 22934 | F191: 103 | H191: Tietoja ei ole saatavilla tällä toimialan tarkkuustasolla
B192: 11030 Siiderin, hedelmä- ja marjaviinien valmistus | C192: 23 | D192: 23 | E192: 22934 | F192: 103 | H192: Tietoja ei ole saatavilla tällä toimialan tarkkuustasolla
B193: 1104 Muiden tislaamattomien juomien valmistus käymisteitse | C193: 2 | D193: 2 | E193: .. | F193: 1 | H193: Tietoja ei ole saatavilla tällä toimialan tarkkuustasolla
B194: 11040 Muiden tislaamattomien juomien valmistus käymisteitse | C194: 2 | D194: 2 | E194: .. | F194: 1 | H194: Tietoja ei ole saatavilla tällä toimialan tarkkuustasolla
B195: 1105 Oluen valmistus | C195: 66 | D195: 66 | E195: 857140 | F195: 1803 | H195: Tietoja ei ole saatavilla tällä toimialan tarkkuustasolla
B196: 11050 Oluen valmistus | C196: 66 | D196: 66 | E196: 857140 | F196: 1803 | H196: Tietoja ei ole saatavilla tällä toimialan tarkkuustasolla
B197: 1106 Maltaiden valmistus | C197: 4 | D197: 4 | E197: 67996 | F197: 150 | H197: Tietoja ei ole saatavilla tällä toimialan tarkkuustasolla
B198: 11060 Maltaiden valmistus | C198: 4 | D198: 4 | E198: 67996 | F198: 150 | H198: Tietoja ei ole saatavilla tällä toimialan tarkkuustasolla
B199: 1107 Virvoitusjuomien valmistus: kivennäisvesien ja muiden pullotettujen vesien tuotanto | C199: 23 | D199: 23 | E199: 41383 | F199: 117 | H199: Tietoja ei ole saatavilla tällä toimialan tarkkuustasolla
B200: 11070 Virvoitusjuomien valmistus: kivennäisvesien ja muiden pullotettujen vesien tuotanto | C200: 23 | D200: 23 | E200: 41383 | F200: 117 | H200: Tietoja ei ole saatavilla tällä toimialan tarkkuustasolla
B201: 13 Tekstiilien valmistus | C201: 647 | D201: 647 | E201: 416855 | F201: 2115 | H201: 567 | I201: 36 | J201: 18 | K201: 18 | L201: 6 | M201: 2 | N201: . | O201: . | P201: .
B202: 131 Tekstiilikuitujen valmistelu ja kehruu | C202: 18 | D202: 18 | E202: 25163 | F202: 104 | H202: Tietoja ei ole saatavilla tällä toimialan tarkkuustasolla
B203: 1310 Tekstiilikuitujen valmistelu ja kehruu | C203: 18 | D203: 18 | E203: 25163 | F203: 104 | H203: Tietoja ei ole saatavilla tällä toimialan tarkkuustasolla
... 1536 more rows

Sheet Apu2_Aika per tehtävä
A1: Aputaulukko 2 - lain edellyttämän tehtävän suorittamiseen kuluva aika vuodessa
A2: Perustuu standardikustannusmallin (SCM) mukaiseen arviointiin (ks. OM 2007:6 ja SCM Network)
A3: Ohjeet:
A4: 1 ) | B4: Sääntelytaakan laskennan perustekijänä on se työaika, jonka joku tai jotkut yrityksen työntekijöistä joutuu/joutuvat käyttämään lain edellyttämän tehtävän suorittamiseen (esim. jonkin asian ilmoittaminen viranomaiselle). Vaihtoehtoisesti yritys voi myös ulkoistaa jonkin tehtävän (esim. tilintarkastus), jolloin ulkoistuskustannus lasketaan muiden kustannusten yhteydessä (välilehti 3_Muut kustannukset).
A5: 2 ) | B5: Tätä välilehteä voit käyttää apuna arvioidessasi lain edellyttämään tehtävään käytettävää kokonaisaikaa.
A6: 3 ) | B6: Tietoa tai arviota lain edellyttämän tehtävän vaatimasta työajasta voi kysyä esimerkiksi lakia valmistelevan työryhmän jäseniltä, toimialayhdistyksiltä, toimialan sääntelyviranomaiselta tai suoraan yrityksiltä.
A7: 4 ) | B7: Ensin voi arvioida paljonko käytetty aika on tehtäväkohtaisesti (tehtävän kesto per yksi tehtäväkerta) ja tämän jälkeen taulukosta voi katsoa kokonaisajan riippuen siitä, kuinka monta kertaa vuodessa laki edellyttää tehtävän suorittamisen (frekvenssi).
A8: 5 ) | B8: Alla olevan taulukon avulla voi myös arvioida sitä, 1) kuinka paljon suurempi kustannus yrityksille aiheutuu, jos esim. jokin ilmoitusvelvollisuus on neljästi vuodessa sen sijaan, että se olisi vain kerran vuodessa tai 2) onko jokin ilmoitusvelvollisuus ylipäätään tarpeen lain tavoitteiden saavuttamiseksi (kustannus-hyöty-analyysi per lain yrityksille asettama velvoite).
A9: 6 ) | B9: Tieto tai paras mahdollinen arvio tehtävään käytettävästä ajasta syötetään laskelmaan tämän taulukon välilehdelle 2B_Työkustannus.
B12: Kuinka usein lain edellyttämä tehtävä tulee suorittaa | C12: Kuinka monta kertaa vuodessa tehtävä suoritetaan (frekvenssi) | D12: Aika tunteina | E12: Tehtävän kesto per yksi tehtäväkerta
E13: 1 min | F13: 15 min | G13: 30 min | H13: 1 tunti | I13: 2 tuntia | J13: 3 tuntia | K13: … | L13: 1 työpäivää | M13: 2 työpäivää | N13: 3 työpäivää | O13: 4 työpäivää | P13: 5 työpäivää
E14: =1/60 -> 0.01666666667 | F14: 0.25 | G14: 0.5 | H14: 1 | I14: 2 | J14: 3 | L14: ='2B_Työkustannus'!E81 -> 7.578 | M14: =2*L14 -> 15.156 | N14: =3*$L$14 -> 22.734 | O14: =4*$L$14 -> 30.312 | P14: =5*$L$14 -> 37.89
B15: joka päivä | C15: 365 | E15: =$C15*E$14 -> 6.083333333 | F15: =$C15*F$14 -> 91.25 | G15: 182.5 | H15: 365 | I15: 730 | J15: 1095 | L15: =$C15*L$14 -> 2765.97 | M15: - | N15: - | O15: - | P15: -
B16: joka viikko | C16: 52 | E16: 0.8666666667 | F16: 13 | G16: 26 | H16: 52 | I16: 104 | J16: 156 | L16: =$C16*L$14 -> 394.056 | M16: 788.112 | N16: 1182.168 | O16: 1576.224 | P16: 1970.28
B17: kerran kuukaudessa | C17: 12 | E17: 0.2 | F17: 3 | G17: 6 | H17: 12 | I17: 24 | J17: 36 | L17: 90.936 | M17: 181.872 | N17: 272.808 | O17: 363.744 | P17: 454.68
B18: neljä kertaa vuodessa | C18: 4 | E18: 0.06666666667 | F18: 1 | G18: 2 | H18: 4 | I18: 8 | J18: 12 | L18: 30.312 | M18: 60.624 | N18: 90.936 | O18: 121.248 | P18: 151.56
B19: kaksi kertaa vuodessa | C19: 2 | E19: 0.03333333333 | F19: 0.5 | G19: 1 | H19: 2 | I19: 4 | J19: 6 | L19: 15.156 | M19: 30.312 | N19: 45.468 | O19: 60.624 | P19: 75.78
B20: kerran vuodessa | C20: 1 | E20: 0.01666666667 | F20: 0.25 | G20: 0.5 | H20: 1 | I20: 2 | J20: 3 | L20: 7.578 | M20: 15.156 | N20: 22.734 | O20: 30.312 | P20: 37.89
B23: Alla esimerkki, jossa
B24: yrityksen työntekijät laativat ja toimittavat TUKESille kaivoslain edellyttämän kaivoskartan. Oletuksena on, että yrityksiltä saatujen tietojen mukaan keskimäärin | K24: Tämä vain esimerkinomaisesti.
B25: - asiantuntijalta kuluu kartan laatimiseen 2 työpäivää (15,16 tuntia) ja | K25: Tämä vain esimerkinomaisesti.
B26: - asiantuntijan apuna on avustaja, joka käyttää tehtävään puoli tuntia (0,5 h) ja | K26: Tämä vain esimerkinomaisesti.
B27: - johtaja tarkistaa ja hyväksyy laaditun kartan, johon kuluu 15 minuttia (0,25 h) | K27: Tämä vain esimerkinomaisesti.
B28: Lain mukaan kartta pitää toimittaa TUKESille kahdesti vuodessa (2 kertaa) | K28: Tämä vain esimerkinomaisesti.
B29: Siten laskelmaan merkittäisiin välilehdelle "2B_Työkustannus", Frekvenssi = 2, Johtajalle 0,25 tuntia, Asiantuntijalle 15,16 tuntia ja Avustajalle 0,5 tuntia | K29: Tämä vain esimerkinomaisesti.
B30: Laskentapohja laskee näistä keskimääräisen tuntipalkan ja lisää siihen palkan sivukulut sekä yleiskulun. | K30: Tämä vain esimerkinomaisesti.
B32: Esimerkki ja apulaskupohja (tämä vain tarvittaessa esimerkkinä, täytä yritysvaikutusarvioinnin tiedot välilehdelle 2B_Työkustannus)
E34: Työntekijä 1 | G34: Työntekijä 2 | I34: Työntekijä 3 | M34: Tehtävään käytetty työaika yhteensä
C35: Tehtävä | D35: Tehtävän kuvaus (välilehdeltä '1_Tehtäväluettelo') | E35: Tyypillisesti tehtävän hoitaa (Työntekijä 1) | F35: Työntekijän 1 tehtävään käyttämä aika (h) | G35: Tyypillisesti tehtävässä avustaa (Työntekijä 2) | H35: Työntekijän 2 tehtävään käyttämä aika (h) | I35: Tyypillisesti tehtävää ohjaa/tarkistaa (Työntekijä 3) | J35: Työntekijän 2 tehtävään käyttämä aika (h) | K35: Lisää tarvittaessa työntekijöitä | L35: Kuinka monta kertaa vuodessa tehtävä suoritetaan (frekvenssi) | M35: Työntekijä 1 | N35: Työntekijä 2 | O35: Työntekijä 3
B36: Esimerkki | C36: Tehtävä1 | D36: Kaivoskartan laatiminen ja toimittaminen TUKESille | E36: Asiantuntija | F36: 15.16 | G36: Avustaja | H36: 0.5 | I36: Johtaja | J36: 0.25 | L36: 2 | M36: =$L$36*F36 -> 30.32 | N36: =$L$36*H36 -> 1 | O36: =$L$36*J36 -> 0.5

Sheet Apu3_Laite tms kustannuksista
A1: Aputaulukko 3 - Lain edellyttämien hankintojen kustannuslaskennasta
A3: Edellyttääkö laki jonkin järjestelmän, ohjelmiston tai laitteen hankkimista tai päivittämistä? | E3: Kysy kohdejoukolta (yritykset, toimialajärjestö) miten näkevät nämä kustannuserät ja miten voisi tarvittaessa saada tarkempaa tietoa/arviota näistä.
A4: Jos kyllä, niin käytä apuna lain aiheuttamien kustannusten arvioinnissa seuraavaa:
A6: Jonkin järjestelmän, laitteen tms. (esim. maksupääte) hankkiminen voi aiheuttaa myös muita kustannuksia kuin itse laitteen. Kokonaiskustannusten arvioinnissa voi soveltaa ICT-hankinnoissa vakiintunutta omistamisen kokonaiskustannuksen laskentamallia - Total Cost of Ownership (TCO). | E6: Sovella tarvittaessa muihinkin kuin IT-hankintoihin
A8: Kokonaiskustannuksiin lasketaan mukaan lähtökohtaisesti seuraavat: | E8: Esimerkki | F8: eur/vuosi/yritys | G8: Kustannuserän toistuvuus
A9: 1 | B9: Laitteen (hardware) hankinta | E9: Laite | F9: 250 | G9: kertaluonteinen
A10: 2 | B10: Ohjelmiston (software) hankinta | E10: Ohjelmisto | F10: 100 | G10: kertaluonteinen
A11: 3 | B11: Asennus | E11: Asennus | F11: 1000 | G11: kertaluonteinen
A12: 4 | B12: Johtaminen ja tuki | E12: Johtaminen ja tuki | F12: 6000 | G12: toistuva yhteensä vuodessa
A13: 5 | B13: Tietoliikenneyhteydet | E13: Tietoliikenneyhteydet | F13: =20*12 -> 240 | G13: toistuva yhteensä vuodessa
A14: 6 | B14: Käyttäjäkustannukset | E14: Käyttäjäkustannukset | F14: 0 | G14: toistuva yhteensä vuodessa
B15: Vaihtoehtoiskustannukset
A16: 7 | C16: järjestelmän alhaallaoloajalle (downtime) | E16: Alhaallaoloaika | F16: 520 | G16: Toistuva
A17: 8 | C17: koulutukselle | E17: Koulutus | F17: 140 | G17: Kertaluonteinen
A18: 9 | C18: muulle resurssille, joka on pois tuotannosta | E18: Muu | F18: 0
E19: Yhteensä 1. vuosi | F19: =SUM(F9:F18) -> 8250 | G19: Kertaluonteiset + toistuvat 1. vuodelta
A20: Toisaalta laite tai järjestelmä (esim. maksupääte) voi olla käytössä joka tapauksessa (business as usual). Tällöin hankinnasta tulee kohdistaa kustannuksiin vain se osa, joka arvioidaan johtuvan nimenomaan lain velvoitteista, esimerkiksi 1 % kokonaisuudesta tai 10 %, 20 %, ... jne. tilanteen edellyttämällä tavalla. | E20: Yhteensä seuraavat vuodet | F20: =F12+F13+F16 -> 6760 | G20: Toistuvat yhteensä
E21: Huomion kiinnittäminen laitehankinnasta henkilöstökuluihin. Huom. esimerkkilaskelmassa on valittu tarkoituksella tilanne, jossa itse laite- tms. hankinta on pieni, mutta henkilöstökuluina syntyy vuosittain merkittävä kustannus.

Sheet Apu4_Yksinkert. esim. laskelma
A1: Yksinkertaistettu esimerkkilaskelma - VAIN ESIMERKINLUONTEINEN LASKELMA KOKONAISUUDEN HAHMOTTAMISEKSI
A2: Perustuu standardikustannusmallin (SCM) mukaiseen arviointiin (ks. OM 2007:6 ja SCM Network)
B4: Oletuksena velvoite, jonka hoitaa Asiantuntija (kuukausipalkka 3600 eur/kk)
B5: Esim. jokin ilmoitus kvartaaleittain, johon kuluu á 2 tuntia
B6: Toimialalla 400 yritystä
B7: Lisäksi ensimmäisenä vuonna jokaiselle yritykselle aiheutuu kertaluontoinen 1000 euron koulutuskustannus.
B9: Laskentatekijä | C9: Arvo | D9: Yksikkö | E9: Selite, huomautus
B10: Vuodessa velvoitteeseen käytetyt tunnit | C10: 8 | D10: tuntia | E10: Tehtävä 4 x á 2h = 8h. Ts. Frekvenssi = 4 ja asiantuntijan työtunnit 2,0h per kerta. Nämä syötetään välilehdelle 2.
B11: Tuntipalkkakustannus sivu- ja yleiskuluineen | C11: 34.46 | D11: euroa | E11: Saat tämän taulukon välilehden 2 avulla, kun syötät asiantuntijan kohdalle 2 tuntia (muut 0)
B12: Työntekijäkustannus vuodessa | C12: 275.7071907 | D12: euroa | E12: Tämä näkyy välilehden 2 alaosassa. Laskee automaattisesti heti, kun olet syöttänyt em. tuntimäärän välilehdelle 2
B14: Koulutuskustannus | C14: 1000 | D14: euroa
B16: Yritysten lukumäärä, kohdejoukko | C16: 400 | D16: kappaletta | E16: Lain kohteena olevien yritysten määrä. Tämä syötetään välilehdellä 2.
B18: Toistuva kustannus yhteensä koko toimialalle | C18: =C16*C12 -> 110282.8763 | E18: =275,71 euroa x 400 yritystä
B19: Kertaluontoinen kustannus koko toimialalle | C19: =C16*C14 -> 400000 | E19: =1000,00 euroa x 400 yritystä
B21: Kokonaiskustannus toimialalle ensimmäisenä vuotena | C21: =C18+C19 -> 510282.8763 | D21: euroa | E21: 1. vuoden kokonaiskustannus (kertaluonteinen + toistuva ensimmäisen vuoden osalta)
B22: Kokonaiskustannus toimialalle seuraavina vuosina | C22: =C12*C16 -> 110282.8763 | D22: euroa | E22: Vuotuinen kokonaiskustannus
B24: Vastaavasti laskettaisiin yrityksille kohdistuva säästö, jos esimerkin mukainen velvoite poistettaisiin.
B26: Nettonykyarvo
B27: Alla on esitetty myös nettonykyarvon laskenta yllä olevasta esimerkistä. Tätä lain valmistelijan ei tarvitse laskea, vaan taulukkolaskentapohja laskee sen automaattisesti. Tämä vain informaatiotarkoituksessa, jotta tulee esille lain vaikutus yli ajan (10 vuoden vaikutusjakso).
B29: Oletetaan seuraavat
B30: Palkat nousevat vuosittain reaalisesti (ei inflaatiota) | C30: 0.017 | F30: Vuosi
B31: Käytetään diskonttauskorkona reaalista sosiaalista diskonttokorkoa | C31: 0.04 | F31: 1 | G31: 2 | H31: 3 | I31: 4 | J31: 5 | K31: 6 | L31: 7 | M31: 8 | N31: 9 | O31: 10
B32: (ks. TEM:n Yksi yhdestä -loppuraportti (19.12.2017), jossa nämä perusteltu) | E32: Kustannus | F32: =C21 -> 510282.8763 | G32: =$C$18*(1+$C$30)^G31 -> 114064.3658 | H32: =$C$18*(1+$C$30)^H31 -> 116003.46 | I32: 117975.5189 | J32: 119981.1027 | K32: 122020.7814 | L32: 124095.1347 | M32: =$C$18*(1+$C$30)^M31 -> 126204.752 | N32: 128350.2328 | O32: =$C$18*(1+$C$30)^O31 -> 130532.1867 | P32: Huomioitu palkkojen reaalikasvu
E33: Nykyarvo | F33: =F32/(1+$C$31)^$F$31 -> 490656.6118 | G33: =G32/(1+$C$31)^F31 -> 109677.2748 | H33: =H32/(1+$C$31)^G31 -> 107251.7197 | I33: 104879.8067 | J33: 102560.3494 | K33: 100292.1878 | L33: 98074.18753 | M33: 95905.23915 | N33: 93784.2579 | O33: 91710.18296
E34: Yhteensä 10 v | F34: =SUM(F33:O33) -> 1394791.818
E36: Nykyarvo on | F36: =F34 -> 1394791.818
B38: Ja vielä aivan yksinkertainen esimerkki nykyarvon laskemisesta
B39: Kustannus euroa joka vuosi. | C39: 100
B40: Diskonttauskorko | C40: 0.1
F41: Vuosi
F42: 1 | G42: 2 | H42: 3
E43: Kustannus | F43: 100 | G43: 100 | H43: 100
E44: Nykyarvo | F44: =F43/(1+$C$40)^F31 -> 90.90909091 | G44: =G43/(1+$C$40)^G31 -> 82.6446281 | H44: =H43/(1+$C$40)^H31 -> 75.13148009
E45: Yhteensä | F45: =SUM(F44:O44) -> 248.6851991
E47: Nykyarvo on | F47: =F45 -> 248.6851991 | H47: Toisin sanoen, on samanarvoista saada tänään 248,7 euroa kuin saada vuoden, kahden ja kolmen kuluttua 100 euroa.
H48: Tämän voi ajatella myös niin, että jos tänään aiheutetaan yrityksille n. 250 euron kustannus, niin vuosittain toistuvana säästönä
H49: pitäisi olla 100 euroa seuraavan 3 vuoden aikana, jotta aiheutettu kustannus ja säästö olisivat nykyarvoltaan samansuuruisia.
B50: Annualisoidulla nettonykyarvolla tarkoitetaan puolestaan seuraavaa (esimerkki):
F52: Vuosittain
B53: Tarkastellaan 10 vuoden ajanjaksoa kahdessa eri tapauksessa A ja B. | D53: Kertaluonteinen kustannus | F53: toistuva kustannus | I53: Kesto (n)
B54: Tapauksessa A aiheutuu vuosittain toistuva 100 euron kustannussäästö 10 vuodelle. | D54: 0 | E54: euroa | F54: -100 | G54: euroa | H54: 10 | I54: vuotta
B55: Tapauksessa B aiheutuu 500 euron kertaluontein kustannus ensimmäisenä vuonna ja 74 euron toistuva kustannus 5 vuoden ajan, jonka jälkeen ei kustannuksia. | D55: 500 | E55: euroa | F55: 74 | G55: euroa | H55: 10 | I55: vuotta
B56: Oletetaan diskonttauskoroksi (r) | C56: 0.04
B58: Tapauksen A ja B kustannuserät kohdentuvat hyvin eri tavalla 10 vuoden ajanjaksolle. Tapauksen B toistuva erä on tapausta A itseisarvoltaan pienempi ja tapauksessa B ei aiheudu kustannuksia enää viidennen vuoden jälkeen. Tapauksessa B on merkittävämpi kertaluonteinen erä ensimmäiselle vuoden. Tapausten nykyarvot ovat itseisarvoltaan samansuuruiset (811, pyöristys huomioiden). Annualisoidun nettonykyarvon avulla myös Tapauksen B kustannuserät voidaan jakaa tasaisesti 10 vuoden ajanjaksolle, jolloin vuosittaisista eristä saadaan vertailukelpoiset. Tässä esimerkissä Tapauksen B kustannuserät on tarkoituksella valittu siten, että ne muodostavat Tapauksen A kanssa itseisarvoltaan yhtäsuuren 100 euron vuosittaisen kustannuserän 10 vuodelle. Annualisoidun nykyarvon avulla voidaan vertailla 10 vuoden ajanjaksolta vuositason kustannuseriä lakiehdotuksista, jotka lähtökohtaisesti aiheuttavat kustannuksia eri aikaan ja eri tavalla jaksottuneina. | D58: Tapaus A | F58: 1 | G58: 2 | H58: 3 | I58: 4 | J58: 5 | K58: 6 | L58: 7 | M58: 8 | N58: 9 | O58: 10
E59: Kustannus | F59: =$F$54 -> -100 | G59: =$F$54 -> -100 | H59: -100 | I59: -100 | J59: -100 | K59: -100 | L59: -100 | M59: -100 | N59: -100 | O59: -100
E60: Nykyarvo | F60: =F59/(1+$C$56)^F58 -> -96.15384615 | G60: =G59/(1+$C$56)^G58 -> -92.4556213 | H60: =H59/(1+$C$56)^H58 -> -88.89963587 | I60: =I59/(1+$C$56)^I58 -> -85.4804191 | J60: =J59/(1+$C$56)^J58 -> -82.19271068 | K60: -79.03145257 | L60: -75.99178132 | M60: -73.0690205 | N60: -70.25867356 | O60: -67.55641688
E61: Yhteensä 10 vuodelta | F61: =SUM(F60:O60) -> -811.0895779
D63: Tapaus B | F63: 1 | G63: 2 | H63: 3 | I63: 4 | J63: 5 | K63: 6 | L63: 7 | M63: 8 | N63: 9 | O63: 10
E64: Kustannus | F64: =D55+F55 -> 574 | G64: =$F$55 -> 74 | H64: =$F$55 -> 74 | I64: 74 | J64: 74 | K64: 0 | L64: 0 | M64: 0 | N64: 0 | O64: 0
E65: Nykyarvo | F65: =F64/(1+$C$56)^F63 -> 551.9230769 | G65: =G64/(1+$C$56)^G63 -> 68.41715976 | H65: 65.78573054 | I65: 63.25551014 | J65: 60.8226059 | K65: 0 | L65: 0 | M65: 0 | N65: 0 | O65: 0
E66: Yhteensä 10 vuodelta | F66: =SUM(F65:O65) -> 810.2040833
D68: Annualisoidut nykyarvot
E69: Tapaus A | F69: =($C$56*$F$61)/(1-(1+$C$56)^(-H54)) -> -100
E70: Tapaus B | F70: =($C$56*$F$66)/(1-(1+$C$56)^(-H55)) -> 99.89082653
I75: =($F$61*$C$56)/(1-(1+$C$56)^-$H$54) -> -100
I81: =($F$66*$C$56)/(1-(1+$C$56)^-$H$55) -> 99.89082653 | K81: Jossa | L81: PV | M81: Nykyarvo
L82: A | M82: Vuotuinen vakioerä
L83: r | M83: korko
L84: n | M84: Aika vuosina
B90: Huom. nykyarvon laskemisesta aiheutuu seuraava:
B92: Jos nykytilanteessa yrityksille aiheutuu 100 euron kustannus seuraavalle 4 vuodelle, | E92: Vuosi | F92: 2017 | G92: 2018 | H92: 2019 | I92: 2020 | J92: 2021 | K92: 2022
B93: täytyy se korvata vuosittaisella 108 euron säästöllä, jos säästö tulee voimaan vasta | F93: 0 | G93: 1 | H93: 2 | I93: 3 | J93: 4 | K93: 5
B94: 2 vuotta nykytilanteen jälkeen. | E94: Kustannuslisäys | F94: 100 | G94: 100 | H94: 100 | I94: 100
E95: Nykyarvo | F95: =F94/(1+$F$107)^F93 -> 100 | G95: =G94/(1+$F$107)^G93 -> 96.15384615 | H95: =H94/(1+$F$107)^H93 -> 92.4556213 | I95: =I94/(1+$F$107)^I93 -> 88.89963587
B96: Laskennassa huomioitu Annualisoitu NPV -välilehdellä myös inflaatio, mutta tässä | E96: Yhteensä | F96: =SUM(F95:N95) -> 377.5091033
B97: yksinkertaisessa esimerkissä ei ole deflatoitu elinkustannusindeksillä siten kuin
B98: varsinaisessa laskennassa tehdään deflatointi vuoden 2019 hinnoista perusvuoden | E98: Kustannussäästö_A | H98: -100 | I98: -100 | J98: -100 | K98: -100
B99: 2017 hintoihin. | E99: Nykyarvo | H99: =H98/(1+$F$107)^H93 -> -92.4556213 | I99: =I98/(1+$F$107)^I93 -> -88.89963587 | J99: =J98/(1+$F$107)^J93 -> -85.4804191 | K99: =K98/(1+$F$107)^K93 -> -82.19271068
E100: Yhteensä | F100: =SUM(F99:K99) -> -349.0283869
E102: Kustannussäästö_B | H102: -108.3006466 | I102: =H102 -> -108.3006466 | J102: =I102 -> -108.3006466 | K102: -108.3006466
E103: Nykyarvo | H103: =H102/(1+$F$107)^H93 -> -100.1300357 | I103: =I102/(1+$F$107)^I93 -> -96.2788805 | J103: =J102/(1+$F$107)^J93 -> -92.57584663 | K103: =K102/(1+$F$107)^K93 -> -89.01523715
E104: Yhteensä | F104: =SUM(F103:K103) -> -378
E107: Korko | F107: 0.04

Sheet Apu5_Tietolähteitä
A1: Tietolähteitä
A4: Tietokannat
O5: Palaa takaisin tai siirry
B6: Tilastokeskus | P6: Ohjeisiin
C7: Tilastotietokannat | P7: Tarkistuslistaan | Q7: Ohjeet ja tarkistuslista
C8: Tilastot | P8: Välilehdelle 1 | Q8: Velvoiteluettelo
D9: Esim. Yritykset | P9: Välilehdelle 2 | Q9: Työkustannukset
D10: Esim. Kauppa | P10: Välilehdelle 3 | Q10: Muut kustannuksen ja kustannukset yhteensä
D11: Esim. Rakentaminen | P11: Välilehdelle 4 | Q11: Vuosittaiset poikkeukset kustannuserissä
D12: Esim. Teollisuus | P12: Välilehdelle 5 | Q12: Yhteenveto
D13: Esim. Työmarkkinat | P13: Apu2 | Q13: Tehtäväkohtainen aika - apu hahmottamiseen
D14: Esim. Palkat ja työvoimakustannukset | P14: Apu3 | Q14: Laite tms kustannuksista
B15: Tulli - ULJAS - Tavaroiden ulkomaankauppatilastot | P15: Apu4 | Q15: Yksinkertainen esimerkkilaskelma
P16: Apu5 | Q16: Tietolähteitä
A18: Muut lähteet
B19: Toimialavirastot
B20: Yritykset
C21: Suorat yhteydet yrityksiin
C22: Kyselytutkimuksen teettäminen
D23: Käytettävissä oleva aika ja raha?
B24: Toimialaliitot ja -yhdistykset
C25: EK
C26: Suomen yrittäjät
C27: Toimialayhdistykset
B28: Aiemmat selvitykset ja lakihankkeet
B29: Kansainväliset esimerkit

Sheet Annualisoitu NPV
A1: Annualisoidun nettonykyarvon (AENPV) laskenta
A2: AENPV = Annual Equivalent Net Present Value
D4: ="Velvoite"&D18+1 -> Velvoite1 | E4: ="Velvoite"&E18+1 -> Velvoite2 | F4: Velvoite3 | G4: Velvoite4 | H4: Velvoite5 | J4: Yhteensä
C5: Sääntelyn luonne | D5: =OFFSET('1_Velvoiteluettelo'!$G$17,D18,0) -> 0 | E5: =OFFSET('1_Velvoiteluettelo'!$G$17,E18,0) -> 0 | F5: =OFFSET('1_Velvoiteluettelo'!$G$17,F18,0) -> 0 | G5: =OFFSET('1_Velvoiteluettelo'!$G$17,G18,0) -> 0 | H5: =OFFSET('1_Velvoiteluettelo'!$G$17,H18,0) -> 0
C6: Frekvenssi | D6: =OFFSET('2B_Työkustannus'!$F13,0,D18) -> 0 | E6: =OFFSET('2B_Työkustannus'!$F13,0,E18) -> 0 | F6: =OFFSET('2B_Työkustannus'!$F13,0,F18) -> 0 | G6: =OFFSET('2B_Työkustannus'!$F13,0,G18) -> 0 | H6: =OFFSET('2B_Työkustannus'!$F13,0,H18) -> 0
C7: Yritysjoukon suuruus | D7: =OFFSET('2B_Työkustannus'!$F11,0,D18) -> 0 | E7: =OFFSET('2B_Työkustannus'!$F11,0,E18) -> 0 | F7: =OFFSET('2B_Työkustannus'!$F11,0,F18) -> 0 | G7: =OFFSET('2B_Työkustannus'!$F11,0,G18) -> 0 | H7: =OFFSET('2B_Työkustannus'!$F11,0,H18) -> 0
C8: Toistuvat henkilöstömenot | D8: =IF(ISNUMBER(OFFSET('1_Velvoiteluettelo'!$F$17,D18,0)),'3_Muut kustannukset'!I21,0) -> 0 | E8: =IF(ISNUMBER(OFFSET('1_Velvoiteluettelo'!$F$17,E18,0)),'3_Muut kustannukset'!J21,0) -> 0 | F8: =IF(ISNUMBER(OFFSET('1_Velvoiteluettelo'!$F$17,F18,0)),'3_Muut kustannukset'!K21,0) -> 0 | G8: =IF(ISNUMBER(OFFSET('1_Velvoiteluettelo'!$F$17,G18,0)),'3_Muut kustannukset'!L21,0) -> 0 | H8: =IF(ISNUMBER(OFFSET('1_Velvoiteluettelo'!$F$17,H18,0)),'3_Muut kustannukset'!M21,0) -> 0 | J8: =SUM(D8:I8) -> 0
C9: josta palkat | D9: =IF(ISNUMBER(OFFSET('1_Velvoiteluettelo'!$F$17,D18,0)),D8/(1+'2B_Työkustannus'!$E$70),0) -> 0 | E9: =IF(ISNUMBER(OFFSET('1_Velvoiteluettelo'!$F$17,E18,0)),E8/(1+'2B_Työkustannus'!$E$70),0) -> 0 | F9: =IF(ISNUMBER(OFFSET('1_Velvoiteluettelo'!$F$17,F18,0)),F8/(1+'2B_Työkustannus'!$E$70),0) -> 0 | G9: =IF(ISNUMBER(OFFSET('1_Velvoiteluettelo'!$F$17,G18,0)),G8/(1+'2B_Työkustannus'!$E$70),0) -> 0 | H9: =IF(ISNUMBER(OFFSET('1_Velvoiteluettelo'!$F$17,H18,0)),H8/(1+'2B_Työkustannus'!$E$70),0) -> 0 | J9: 0
C10: josta sivu- ja yleiskulu | D10: =IF(ISNUMBER(OFFSET('1_Velvoiteluettelo'!$F$17,D18,0)),D8-D9,0) -> 0 | E10: =IF(ISNUMBER(OFFSET('1_Velvoiteluettelo'!$F$17,E18,0)),E8-E9,0) -> 0 | F10: =IF(ISNUMBER(OFFSET('1_Velvoiteluettelo'!$F$17,F18,0)),F8-F9,0) -> 0 | G10: =IF(ISNUMBER(OFFSET('1_Velvoiteluettelo'!$F$17,G18,0)),G8-G9,0) -> 0 | H10: =IF(ISNUMBER(OFFSET('1_Velvoiteluettelo'!$F$17,H18,0)),H8-H9,0) -> 0 | J10: 0
C11: Toistuvat muut kulut | D11: =IF(ISNUMBER(OFFSET('1_Velvoiteluettelo'!$F$17,D18,0)),'3_Muut kustannukset'!I28,0) -> 0 | E11: =IF(ISNUMBER(OFFSET('1_Velvoiteluettelo'!$F$17,E18,0)),'3_Muut kustannukset'!J28,0) -> 0 | F11: =IF(ISNUMBER(OFFSET('1_Velvoiteluettelo'!$F$17,F18,0)),'3_Muut kustannukset'!K28,0) -> 0 | G11: =IF(ISNUMBER(OFFSET('1_Velvoiteluettelo'!$F$17,G18,0)),'3_Muut kustannukset'!L28,0) -> 0 | H11: =IF(ISNUMBER(OFFSET('1_Velvoiteluettelo'!$F$17,H18,0)),'3_Muut kustannukset'!M28,0) -> 0 | J11: 0
C12: Kertaluontoiset henkilöstökulut | D12: =IF(ISNUMBER(OFFSET('1_Velvoiteluettelo'!$F$17,D18,0)),'3_Muut kustannukset'!I36,0) -> 0 | E12: =IF(ISNUMBER(OFFSET('1_Velvoiteluettelo'!$F$17,E18,0)),'3_Muut kustannukset'!J36,0) -> 0 | F12: =IF(ISNUMBER(OFFSET('1_Velvoiteluettelo'!$F$17,F18,0)),'3_Muut kustannukset'!K36,0) -> 0 | G12: =IF(ISNUMBER(OFFSET('1_Velvoiteluettelo'!$F$17,G18,0)),'3_Muut kustannukset'!L36,0) -> 0 | H12: =IF(ISNUMBER(OFFSET('1_Velvoiteluettelo'!$F$17,H18,0)),'3_Muut kustannukset'!M36,0) -> 0 | J12: 0
C13: josta palkat | D13: =IF(ISNUMBER(OFFSET('1_Velvoiteluettelo'!$F$17,D18,0)),D12/(1+'2B_Työkustannus'!$E$70),0) -> 0 | E13: =IF(ISNUMBER(OFFSET('1_Velvoiteluettelo'!$F$17,E18,0)),E12/(1+'2B_Työkustannus'!$E$70),0) -> 0 | F13: =IF(ISNUMBER(OFFSET('1_Velvoiteluettelo'!$F$17,F18,0)),F12/(1+'2B_Työkustannus'!$E$70),0) -> 0 | G13: =IF(ISNUMBER(OFFSET('1_Velvoiteluettelo'!$F$17,G18,0)),G12/(1+'2B_Työkustannus'!$E$70),0) -> 0 | H13: =IF(ISNUMBER(OFFSET('1_Velvoiteluettelo'!$F$17,H18,0)),H12/(1+'2B_Työkustannus'!$E$70),0) -> 0 | J13: 0
C14: josta sivu- ja yleiskulu | D14: =IF(ISNUMBER(OFFSET('1_Velvoiteluettelo'!$F$17,D18,0)),D12-D13,0) -> 0 | E14: =IF(ISNUMBER(OFFSET('1_Velvoiteluettelo'!$F$17,E18,0)),E12-E13,0) -> 0 | F14: =IF(ISNUMBER(OFFSET('1_Velvoiteluettelo'!$F$17,F18,0)),F12-F13,0) -> 0 | G14: =IF(ISNUMBER(OFFSET('1_Velvoiteluettelo'!$F$17,G18,0)),G12-G13,0) -> 0 | H14: =IF(ISNUMBER(OFFSET('1_Velvoiteluettelo'!$F$17,H18,0)),H12-H13,0) -> 0 | J14: 0
C15: Kertaluontoiset muut kulut | D15: =IF(ISNUMBER(OFFSET('1_Velvoiteluettelo'!$F$17,D18,0)),'3_Muut kustannukset'!I43,0) -> 0 | E15: =IF(ISNUMBER(OFFSET('1_Velvoiteluettelo'!$F$17,E18,0)),'3_Muut kustannukset'!J43,0) -> 0 | F15: =IF(ISNUMBER(OFFSET('1_Velvoiteluettelo'!$F$17,F18,0)),'3_Muut kustannukset'!K43,0) -> 0 | G15: =IF(ISNUMBER(OFFSET('1_Velvoiteluettelo'!$F$17,G18,0)),'3_Muut kustannukset'!L43,0) -> 0 | H15: =IF(ISNUMBER(OFFSET('1_Velvoiteluettelo'!$F$17,H18,0)),'3_Muut kustannukset'!M43,0) -> 0 | J15: 0
C16: Yrityskentän kasvuvauhti | D16: =OFFSET('4_Poikkeukset'!$C8,D18,0) -> 0 | E16: =OFFSET('4_Poikkeukset'!$C8,E18,0) -> 0 | F16: =OFFSET('4_Poikkeukset'!$C8,F18,0) -> 0 | G16: =OFFSET('4_Poikkeukset'!$C8,G18,0) -> 0 | H16: =OFFSET('4_Poikkeukset'!$C8,H18,0) -> 0
C17: apulaskuja | D17: =IF(D16>0,D16,0) -> 0 | E17: =IF(E16>0,E16,0) -> 0 | F17: =IF(F16>0,F16,0) -> 0 | G17: =IF(G16>0,G16,0) -> 0 | H17: =IF(H16>0,H16,0) -> 0
C18: apulaskuja | D18: 0 | E18: =D18+1 -> 1 | F18: =E18+1 -> 2 | G18: =F18+1 -> 3 | H18: =G18+1 -> 4 | I18: =H18+1 -> 5
C19: Perusvuosi | D19: ='1_Velvoiteluettelo'!$B$13 -> 2017 | E19: ='1_Velvoiteluettelo'!$B$13 -> 2017 | F19: ='1_Velvoiteluettelo'!$B$13 -> 2017 | G19: ='1_Velvoiteluettelo'!$B$13 -> 2017 | H19: ='1_Velvoiteluettelo'!$B$13 -> 2017
C20: Voimaantulovuosi | D20: =OFFSET('1_Velvoiteluettelo'!$F$17,D18,0) -> 0 | E20: =OFFSET('1_Velvoiteluettelo'!$F$17,E18,0) -> 0 | F20: =OFFSET('1_Velvoiteluettelo'!$F$17,F18,0) -> 0 | G20: =OFFSET('1_Velvoiteluettelo'!$F$17,G18,0) -> 0 | H20: =OFFSET('1_Velvoiteluettelo'!$F$17,H18,0) -> 0
C22: Tarkastelujakso vuosina: | D22: =IF(ISNUMBER(OFFSET('1_Velvoiteluettelo'!$E17,D18,0)),OFFSET('1_Velvoiteluettelo'!$E17,D18,0),10) -> 10 | E22: =IF(ISNUMBER(OFFSET('1_Velvoiteluettelo'!$E17,E18,0)),OFFSET('1_Velvoiteluettelo'!$E17,E18,0),10) -> 10 | F22: =IF(ISNUMBER(OFFSET('1_Velvoiteluettelo'!$E17,F18,0)),OFFSET('1_Velvoiteluettelo'!$E17,F18,0),10) -> 10 | G22: =IF(ISNUMBER(OFFSET('1_Velvoiteluettelo'!$E17,G18,0)),OFFSET('1_Velvoiteluettelo'!$E17,G18,0),10) -> 10 | H22: =IF(ISNUMBER(OFFSET('1_Velvoiteluettelo'!$E17,H18,0)),OFFSET('1_Velvoiteluettelo'!$E17,H18,0),10) -> 10
L23: Nettonykyarvon laskentakaavat
C24: Sosiaalinen diskonttokorko (reaalinen): | D24: 0.04 | L24: Toistuvat kustannuserät annuiteettina perusvuoden nykyarvoon, ml. deflatointi
C25: EKI=1951 indeksiluku 2 v. ennen perusvuotta, vka (2015) | D25: 1906
C26: EKI=1951 indeksiluku HE:n valmisteluvuotta ed v. vka | D26: 1968 | E26: vuosi 2019
C27: Kokonaiskasvu (palkkojen nousu ja yrityskentän kasvu) | D27: =(1+'Taustatietoa ATI ja EKI'!$G30)*(1+D16)-1 -> 0.01668210661 | E27: =(1+'Taustatietoa ATI ja EKI'!$G30)*(1+E16)-1 -> 0.01668210661 | F27: =(1+'Taustatietoa ATI ja EKI'!$G30)*(1+F16)-1 -> 0.01668210661 | G27: =(1+'Taustatietoa ATI ja EKI'!$G30)*(1+G16)-1 -> 0.01668210661 | H27: =(1+'Taustatietoa ATI ja EKI'!$G30)*(1+H16)-1 -> 0.01668210661
C28: NPV | D28: =D4 -> Velvoite1 | E28: =E4 -> Velvoite2 | F28: =F4 -> Velvoite3 | G28: =G4 -> Velvoite4 | H28: =H4 -> Velvoite5 | J28: Yhteensä | L28: Kertaluonteiset voimaantulovuodesta perusvuoteen, ml. deflatointi
C29: =C8 -> Toistuvat henkilöstömenot | D29: =IF(ISNUMBER(D$20),IF(D27=$D$24,D8*($D$25/$D$26)*D22*(1+$D$24)^-(D$20-D$19+1),(((D8)*($D$25/$D$26))*((1-((1+D$27)/(1+$D$24))^D$22)/($D$24-D$27))*((1+$D$24)^-(D$20-D$19)))),0) -> 0 | E29: =IF(ISNUMBER(E$20),IF(E27=$D$24,E8*($D$25/$D$26)*E22*(1+$D$24)^-(E$20-E$19+1),(((E8)*($D$25/$D$26))*((1-((1+E$27)/(1+$D$24))^E$22)/($D$24-E$27))*((1+$D$24)^-(E$20-E$19)))),0) -> 0 | F29: 0 | G29: 0 | H29: 0 | J29: =SUM(D29:I29) -> 0
C30: josta palkat | D30: =IF(ISNUMBER(D$20),IF(D27=$D$24,D9*($D$25/$D$26)*D22*(1+$D$24)^-(D$20-D$19+1),(((D9)*($D$25/$D$26))*((1-((1+D$27)/(1+$D$24))^D$22)/($D$24-D$27))*((1+$D$24)^-(D$20-D$19)))),0) -> 0 | E30: =IF(ISNUMBER(E$20),IF(E27=$D$24,E9*($D$25/$D$26)*E22*(1+$D$24)^-(E$20-E$19+1),(((E9)*($D$25/$D$26))*((1-((1+E$27)/(1+$D$24))^E$22)/($D$24-E$27))*((1+$D$24)^-(E$20-E$19)))),0) -> 0 | F30: 0 | G30: 0 | H30: 0 | J30: =SUM(D30:I30) -> 0
C31: josta sivu- ja yleiskulu | D31: =IF(ISNUMBER(D$20),IF(D27=$D$24,D10*($D$25/$D$26)*D22*(1+$D$24)^-(D$20-D$19+1),(((D10)*($D$25/$D$26))*((1-((1+D$27)/(1+$D$24))^D$22)/($D$24-D$27))*((1+$D$24)^-(D$20-D$19)))),0) -> 0 | E31: =IF(ISNUMBER(E$20),IF(E27=$D$24,E10*($D$25/$D$26)*E22*(1+$D$24)^-(E$20-E$19+1),(((E10)*($D$25/$D$26))*((1-((1+E$27)/(1+$D$24))^E$22)/($D$24-E$27))*((1+$D$24)^-(E$20-E$19)))),0) -> 0 | F31: 0 | G31: 0 | H31: 0 | J31: 0
C32: Toistuvat muut kulut | D32: =IF(ISNUMBER(D$20),IF(D16=$D$24,D11*($D$25/$D$26)*D22*(1+$D$24)^-(D$20-D$19+1),(((D11)*($D$25/$D$26))*((1-((1+D$16)/(1+$D$24))^D$22)/($D$24-D$16))*((1+$D$24)^-(D$20-D$19)))),0) -> 0 | E32: =IF(ISNUMBER(E$20),IF(E16=$D$24,E11*($D$25/$D$26)*E22*(1+$D$24)^-(E$20-E$19+1),(((E11)*($D$25/$D$26))*((1-((1+E$16)/(1+$D$24))^E$22)/($D$24-E$16))*((1+$D$24)^-(E$20-E$19)))),0) -> 0 | F32: 0 | G32: 0 | H32: 0 | J32: 0 | L32: Kertaluonteiset, jos kasvava yritysjoukko (kertaluonteiset uusille alalle tuleville yrityksille -> annuiteetti tältä osin)
C33: Kertaluontoiset henkilöstökulut | D33: =IF(AND(ISNUMBER(D$20),(D$27>0)),((D12*($D$25/$D$26))*((1+$D$24)^-(D$20-D$19+1))+((D$27*D12)*($D$25/$D$26)*(1-((1+D$27)/(1+$D$24))^D$22)/($D$24-D$27))*((1+$D$24)^-(D$20-D$19))),((D12*($D$25/$D$26))*((1+$D$24)^-(D$20-D$19+1)))) -> 0 | E33: =IF(AND(ISNUMBER(E$20),(E$27>0)),((E12*($D$25/$D$26))*((1+$D$24)^-(E$20-E$19+1))+((E$27*E12)*($D$25/$D$26)*(1-((1+E$27)/(1+$D$24))^E$22)/($D$24-E$27))*((1+$D$24)^-(E$20-E$19))),((E12*($D$25/$D$26))*((1+$D$24)^-(E$20-E$19+1)))) -> 0 | F33: 0 | G33: 0 | H33: 0 | J33: 0
C34: josta palkat | D34: =IF(AND(ISNUMBER(D$20),(D$27>0)),((D13*($D$25/$D$26))*((1+$D$24)^-(D$20-D$19+1))+((D$27*D13)*($D$25/$D$26)*(1-((1+D$27)/(1+$D$24))^D$22)/($D$24-D$27))*((1+$D$24)^-(D$20-D$19))),((D13*($D$25/$D$26))*((1+$D$24)^-(D$20-D$19+1)))) -> 0 | E34: =IF(AND(ISNUMBER(E$20),(E$27>0)),((E13*($D$25/$D$26))*((1+$D$24)^-(E$20-E$19+1))+((E$27*E13)*($D$25/$D$26)*(1-((1+E$27)/(1+$D$24))^E$22)/($D$24-E$27))*((1+$D$24)^-(E$20-E$19))),((E13*($D$25/$D$26))*((1+$D$24)^-(E$20-E$19+1)))) -> 0 | F34: 0 | G34: 0 | H34: 0 | J34: 0
C35: josta sivu- ja yleiskulu | D35: =IF(AND(ISNUMBER(D$20),(D$27>0)),((D14*($D$25/$D$26))*((1+$D$24)^-(D$20-D$19+1))+((D$27*D14)*($D$25/$D$26)*(1-((1+D$27)/(1+$D$24))^D$22)/($D$24-D$27))*((1+$D$24)^-(D$20-D$19))),((D14*($D$25/$D$26))*((1+$D$24)^-(D$20-D$19+1)))) -> 0 | E35: =IF(AND(ISNUMBER(E$20),(E$27>0)),((E14*($D$25/$D$26))*((1+$D$24)^-(E$20-E$19+1))+((E$27*E14)*($D$25/$D$26)*(1-((1+E$27)/(1+$D$24))^E$22)/($D$24-E$27))*((1+$D$24)^-(E$20-E$19))),((E14*($D$25/$D$26))*((1+$D$24)^-(E$20-E$19+1)))) -> 0 | F35: 0 | G35: 0 | H35: 0 | J35: 0
C36: Kertaluontoiset muut kulut | D36: =IF(AND(ISNUMBER(D$20),(D$16>0)),IF(D16=$D$24,(D15*($D$25/$D$26))*((1+$D$24)^-(D$20-D$19+1))+D15*$D$24*($D$25/$D$26)*D22*(1+$D$24)^-(D$20-D$19+1),((D15*($D$25/$D$26))*((1+$D$24)^-(D$20-D$19+1))+((D$16*D15)*($D$25/$D$26)*(1-((1+D$16)/(1+$D$24))^D$22)/($D$24-D$16))*((1+$D$24)^-(D$20-D$19)))),((D15*($D$25/$D$26))*((1+$D$24)^-(D$20-D$19+1)))) -> 0 | E36: =IF(AND(ISNUMBER(E$20),(E$16>0)),IF(E16=$D$24,(E15*($D$25/$D$26))*((1+$D$24)^-(E$20-E$19+1))+E15*$D$24*($D$25/$D$26)*E22*(1+$D$24)^-(E$20-E$19+1),((E15*($D$25/$D$26))*((1+$D$24)^-(E$20-E$19+1))+((E$16*E15)*($D$25/$D$26)*(1-((1+E$16)/(1+$D$24))^E$22)/($D$24-E$16))*((1+$D$24)^-(E$20-E$19)))),((E15*($D$25/$D$26))*((1+$D$24)^-(E$20-E$19+1)))) -> 0 | F36: 0 | G36: 0 | H36: 0 | J36: 0
C38: Yhteensä | D38: =D29+D32+D33+D36 -> 0 | E38: =E29+E32+E33+E36 -> 0 | F38: 0 | G38: 0 | H38: 0 | J38: =J29+J32+J33+J36 -> 0
C40: ANNUALISOITU NPV (NPV per vuosi, 1:1 -vertailuluku) | D40: =(D38*($D$24))/(1-(1+$D$24)^(-10)) -> 0 | E40: =(E38*($D$24))/(1-(1+$D$24)^(-10)) -> 0 | F40: =(F38*($D$24))/(1-(1+$D$24)^(-10)) -> 0 | G40: =(G38*($D$24))/(1-(1+$D$24)^(-10)) -> 0 | H40: =(H38*($D$24))/(1-(1+$D$24)^(-10)) -> 0 | J40: =SUM(D40:I40) -> 0
L43: PV = nykyarvo, tarkoittaa myös nettonykyarvoa NPV
L44: A = kustannuserä valmisteluvuoden nykyrahassa
L45: r = korko, reaalinen sosiaalinen diskonttokorko
L46: g = kasvutekijä = yritysjoukin %-kasvu vuodessa (jos tarpeen, ks. välilehti 4) ja palkkojen reaalikasvu (jos relevantti)
L47: T = oletettu lain voimassaoloaika, lähtökohtaisesti 10 vuotta.
L48: AENPV-kaavassa T = 10, jotta vuositasolle jyvitetyt kustannuserät ovat vertailukelpoisia.
L49: t0 = perusvuosi (2017)
L50: tf = velvoitteen tai muutoksen voimaantulovuosi
L51: C = kertaluonteinen kustannuserä valmisteluvuoden nykyrahassa

Sheet Listat (älä muuta)
B4: 1 | F4: Rivejä lisätty: | G4: =0 -> 0
B5: 2 | D5: EU-minimisääntelyä
B6: 3 | D6: Kansallista tai EU-minimin ylittävää lisäsääntelyä
B7: 4 | D7: EU:n velvoittamaa sääntelyn keventämistä
B8: 5 | D8: Kansallisen tai EU-minimin ylittävän sääntelyn keventämistä
B9: 6
B10: 7
B11: 8
B12: 9
B13: toistaiseksi

Sheet Taustatietoa ATI ja EKI
A1: Taustatietoa elinkustannusindeksi (EKI) ja ansiotasoindeksi (ATI)
F4: Muutos | G4: Reaalinen muutos
E5: Yksityinen | F5: Yksityinen | G5: Yksityinen | J5: Muutos
E6: ATI 1995=100 | F6: ATI 1995=100 | G6: ATI 1995=100 | I6: EKI 1951=100 | J6: EKI 1951=100 | K6: CAGR 1995-2016
D7: 1995 | E7: 100 | I7: 1390
C8: =D8-$D$7 -> 1 | D8: 1996 | E8: 104.2 | F8: =E8/E7-1 -> 0.042 | G8: =(1+F8)/(1+J8)-1 -> 0.03603719599 | I8: 1398 | J8: =I8/I7-1 -> 0.005755395683 | K8: =$J$30 -> 0.0153242757
C9: =D9-$D$7 -> 2 | D9: 1997 | E9: 107 | F9: 0.02687140115 | G9: 0.01453443025 | I9: 1415 | J9: =I9/I8-1 -> 0.0121602289 | K9: =$J$30 -> 0.0153242757
C10: 3 | D10: 1998 | E10: 110.9 | F10: 0.03644859813 | G10: 0.0220033215 | I10: 1435 | J10: 0.01413427562 | K10: 0.0153242757
C11: 4 | D11: 1999 | E11: 114.1 | F11: 0.02885482417 | G11: 0.01680900322 | I11: 1452 | J11: 0.0118466899 | K11: 0.0153242757
C12: 5 | D12: 2000 | E12: 119.1 | F12: 0.04382120947 | G12: 0.009745766918 | I12: 1501 | J12: 0.03374655647 | K12: 0.0153242757
C13: 6 | D13: 2001 | E13: 124.8 | F13: 0.04785894207 | G13: 0.02198588177 | I13: 1539 | J13: 0.0253164557 | K13: 0.0153242757
C14: 7 | D14: 2002 | E14: 129.3 | F14: 0.03605769231 | G14: 0.02014893696 | I14: 1563 | J14: 0.01559454191 | K14: 0.0153242757
C15: 8 | D15: 2003 | E15: 134.4 | F15: 0.03944315545 | G15: 0.03021537855 | I15: 1577 | J15: 0.008957133717 | K15: 0.0153242757
C16: 9 | D16: 2004 | E16: 139.4 | F16: 0.03720238095 | G16: 0.03523300934 | I16: 1580 | J16: 0.001902346227 | K16: 0.0153242757
C17: 10 | D17: 2005 | E17: 144.8 | F17: 0.0387374462 | G17: 0.02961428168 | I17: 1594 | J17: 0.008860759494 | K17: 0.0153242757
C18: 11 | D18: 2006 | E18: 149.2 | F18: 0.03038674033 | G18: 0.01259954629 | I18: 1622 | J18: 0.01756587202 | K18: 0.0153242757
C19: 12 | D19: 2007 | E19: 154 | F19: 0.03217158177 | G19: 0.007329907118 | I19: 1662 | J19: 0.02466091245 | K19: 0.0153242757
C20: 13 | D20: 2008 | E20: 162.3 | F20: 0.0538961039 | G20: 0.01247128594 | I20: 1730 | J20: 0.04091456077 | K20: 0.0153242757
C21: 14 | D21: 2009 | E21: 168.9 | F21: 0.04066543438 | G21: 0.04066543438 | I21: 1730 | J21: 0 | K21: 0.0153242757
C22: 15 | D22: 2010 | E22: 172.8 | F22: 0.02309058615 | G22: 0.01082051058 | I22: 1751 | J22: 0.01213872832 | K22: 0.0153242757
C23: 16 | D23: 2011 | E23: 177.2 | F23: 0.02546296296 | G23: -0.009058693075 | I23: 1812 | J23: 0.03483723587 | K23: 0.0153242757
C24: 17 | D24: 2012 | E24: 182.5 | F24: 0.02990970655 | G24: 0.001715721021 | I24: 1863 | J24: 0.02814569536 | K24: 0.0153242757
C25: 18 | D25: 2013 | E25: 186.5 | F25: 0.02191780822 | G25: 0.007318982387 | I25: 1890 | J25: 0.01449275362 | K25: 0.0153242757
C26: 19 | D26: 2014 | E26: 189.6 | F26: 0.01662198391 | G26: 0.005976727538 | I26: 1910 | J26: 0.01058201058 | K26: 0.0153242757
C27: 20 | D27: 2015 | E27: 192.5 | F27: 0.01529535865 | G27: 0.01742609393 | I27: 1906 | J27: -0.002094240838 | K27: 0.0153242757
C28: =D28-$D$7 -> 21 | D28: 2016 | E28: 194.8 | F28: =E28/E27-1 -> 0.01194805195 | G28: 0.008245157874 | I28: 1913 | J28: 0.003672612802 | K28: 0.0153242757
C30: CAGR | F30: =(E28/E7)^(1/$C$28)-1 -> 0.03226202351 | G30: =(1+F30)/(1+J30)-1 -> 0.01668210661 | J30: =(I28/I7)^(1/$C$28)-1 -> 0.0153242757
C33: Muuttuja | D33: Arvo | E33: Lähde
C34: Ansiotasoindeksin nimellismuutos keskimäärin 1995 - 2016 | D34: =F30 -> 0.03226202351 | E34: Tilastokeskus, ATI=1995, laatijan laskelmat
C35: Ansiotasoindeksin reaalimuutos keskimäärin 1995 - 2016 | D35: =G30 -> 0.01668210661 | E35: Tilastokeskus, ATI=1995 ja EKI=1951, laatijan laskelmat Fisherin relaatiolla
C36: Inflaatio keskimäärin 1995 - 2016 | D36: =J30 -> 0.0153242757 | E36: Tilastokeskus, EKI=1951, vuosikeskiarvo, laatijan laskelmat
E38: ks. myös esim.
E39: http://stat.fi/til/ati/2017/01/ati_2017_01_2017-05-30_tie_001_fi.html

Sheet Taustatietoa palkat am lk
A1: Yksityisen sektorin kuukausipalkkaisten ansiot ammattiluokituksen (AML 2010) mukaan vuonna 2018
A3: Ammattiluokka | B3: Säännöllisen työajan keskiansio (€)
A4: S Yhteensä | B4: 3596
A5: 1 Johtajat | B5: 6752
A6: 11 Johtajat, ylimmät virkamiehet ja järjestöjen johtajat | B6: 7191
A7: 111 Ylimmät virkamiehet ja järjestöjen johtajat | B7: 5702
A8: 1112 Julkishallinnon ylimmät virkamiehet | B8: .
A9: 11122 Alue- ja paikallishallinnon johtajat ja ylimmät virkamiehet | B9: .
A10: 1114 Järjestöjen johtajat | B10: 5700
A11: 11141 Työmarkkina- ja elinkeinoelämän järjestöjen johtajat | B11: 8384
A12: 11142 Muiden järjestöjen johtajat | B12: 4479
A13: 12 Hallintojohtajat ja kaupalliset johtajat | B13: 7097
A14: 121 Liiketoiminta- ja hallintojohtajat | B14: 7298
A15: 1211 Talousjohtajat | B15: 7266
A16: 1212 Henkilöstöjohtajat | B16: 7129
A17: 1213 Politiikka- ja suunnittelujohtajat | B17: 7533
A18: 1219 Muut hallintojohtajat ja kaupalliset johtajat | B18: 7266
A19: 122 Myynti-, markkinointi- ja kehitysjohtajat | B19: 6958
A20: 1221 Myynti- ja markkinointijohtajat | B20: 7134
A21: 1222 Mainos- ja tiedotusjohtajat | B21: 6639
A22: 1223 Tutkimus- ja kehitysjohtajat | B22: 6731
A23: 13 Tuotantotoiminnan ja yhteiskunnan peruspalvelujen johtajat | B23: 6323
A24: 131 Maa-, metsä- ja kalatalouden johtajat | B24: 4240
A25: 1311 Maa- ja metsätalouden johtajat | B25: 4268
A26: 1312 Vesiviljely- ja kalatalouden johtajat | B26: .
A27: 132 Teollisuuden tuotantojohtajat sekä kaivos-, rakennus- ja jakelujohtajat | B27: 6095
A28: 1321 Teollisuuden tuotantojohtajat | B28: 6042
A29: 1322 Kaivostoiminnan tuotantojohtajat | B29: .
A30: 1323 Rakennustoiminnan tuotantojohtajat | B30: 6011
A31: 1324 Hankinta- ja jakelujohtajat | B31: 6314
A32: 133 Tieto- ja viestintäteknologiajohtajat | B32: 6985
A33: 1330 Tieto- ja viestintäteknologiajohtajat | B33: 6985
A34: 134 Yhteiskunnan peruspalvelujen sekä rahoitus- ja vakuutuspalvelujen johtajat | B34: 6278
A35: 1341 Lastenhoidon johtajat | B35: 3230
A36: 1342 Terveydenhuollon johtajat | B36: 6532
A37: 1343 Vanhustenhuollon johtajat | B37: 3716
A38: 1344 Sosiaalihuollon johtajat | B38: 4355
A39: 1345 Opetusalan johtajat | B39: 5956
A40: 1346 Rahoitus- ja vakuutuspalvelujen johtajat | B40: 8196
A41: 1349 Muut yhteiskunnan palvelujen johtajat | B41: 6332
A42: 14 Hotelli- ja ravintola-alan, vähittäiskaupan ja muiden palvelualojen johtajat | B42: 6236
A43: 141 Hotellin- ja ravintolanjohtajat | B43: 4491
A44: 1411 Hotellinjohtajat | B44: 4376
A45: 1412 Ravintolanjohtajat | B45: 4693
A46: 142 Vähittäis- ja tukkukaupan johtajat | B46: 7216
A47: 1420 Vähittäis- ja tukkukaupan johtajat | B47: 7216
A48: 143 Muiden palvelualojen johtajat | B48: 5303
A49: 1431 Urheilu-, vapaa-aika- ja kulttuurikeskusten johtajat | B49: 4875
A50: 1439 Muut palvelualojen johtajat | B50: 5610
A51: 2 Erityisasiantuntijat | B51: 4482
A52: 21 Luonnontieteiden ja tekniikan erityisasiantuntijat | B52: 4537
A53: 211 Luonnon- ja geotieteen erityisasiantuntijat | B53: 4115
A54: 2111 Fyysikot ja astronomit | B54: 3582
A55: 2112 Meteorologit | B55: .
A56: 2113 Kemistit | B56: 4449
A57: 2114 Geologit ja geofyysikot | B57: 4245
A58: 212 Matematiikan ja tilastotieteen erityisasiantuntijat | B58: 4351
A59: 2120 Matemaatikot, aktuaarit ja tilastotieteilijät | B59: 4351
A60: 213 Biotieteiden erityisasiantuntijat | B60: 3936
A61: 2131 Biologit, kasvi- ja eläintieteilijät ym. erityisasiantuntijat | B61: 4087
A62: 2132 Maa-, metsä- ja kalatalouden erityisasiantuntijat | B62: 3627
A63: 21321 Maa- ja kalatalouden erityisasiantuntijat | B63: 3355
A64: 21322 Metsätalouden erityisasiantuntijat | B64: 3683
A65: 2133 Ympäristön- ja luonnonsuojelun erityisasiantuntijat | B65: 4276
A66: 214 Tekniikan erityisasiantuntijat (pl. sähköteknologia) | B66: 4640
A67: 2141 Teollisen valmistuksen ja tuotantotekniikan erityisasiantuntijat | B67: 4759
A68: 2142 Maa- ja vesirakentamisen erityisasiantuntijat | B68: 4692
A69: 2143 Ympäristötekniikan erityisasiantuntijat | B69: 3512
A70: 2144 Konetekniikan erityisasiantuntijat | B70: 4439
A71: 2145 Puunjalostuksen ja kemian prosessitekniikan erityisasiantuntijat | B71: 4841
A72: 2146 Kaivosteollisuuden, metallurgian ym. erityisasiantuntijat | B72: 4523
A73: 2149 Muut tekniikan erityisasiantuntijat | B73: 4720
A74: 215 Sähköteknologian erityisasiantuntijat | B74: 4775
A75: 2151 Sähkötekniikan erityisasiantuntijat | B75: 4614
A76: 2152 Elektroniikan erityisasiantuntijat | B76: 4879
A77: 2153 ICT-alan erityisasiantuntijat | B77: 4965
A78: 21531 Tietoliikenneteknologian tutkijat | B78: 5090
A79: 21532 Tietotekniikka-alan tutkijat | B79: 3730
A80: 216 Arkkitehdit, suunnittelijat ja maanmittaajat | B80: 4069
A81: 2161 Talonrakennuksen arkkitehdit | B81: 3891
A82: 2162 Maisema-arkkitehdit | B82: 4082
A83: 2163 Tuote- ja vaatesuunnittelijat | B83: 3919
A84: 2164 Yhdyskunta- ja liikennesuunnittelijat | B84: 4746
A85: 2165 Kartoituksen ja maanmittauksen erityisasiantuntijat | B85: 4404
A86: 2166 Graafiset ja multimediasuunnittelijat | B86: 3541
A87: 22 Terveydenhuollon erityisasiantuntijat | B87: 5347
A88: 221 Lääkärit | B88: 7385
A89: 2211 Yleislääkärit | B89: 7806
A90: 2212 Ylilääkärit ja erikoislääkärit | B90: 6994
A91: 22121 Ylilääkärit | B91: 8557
A92: 22122 Erikoislääkärit | B92: 6695
A93: 222 Hoitotyön erityisasiantuntijat | B93: 3470
A94: 2221 Ylihoitajat ja osastonhoitajat | B94: 3470
A95: 22211 Ylihoitajat | B95: 4078
A96: 22212 Osastonhoitajat | B96: 3408
A97: 225 Eläinlääkärit | B97: 4069
A98: 2250 Eläinlääkärit | B98: 4069
A99: 226 Muut terveydenhuollon erityisasiantuntijat | B99: 4623
A100: 2261 Hammaslääkärit | B100: 6726
A101: 2262 Proviisorit | B101: 4456
A102: 2263 Ympäristöterveyden ja työsuojelun erityisasiantuntijat | B102: 4859
A103: 2265 Ravitsemusalan erityisasiantuntijat | B103: 3367
A104: 2266 Kuulontutkijat ja puheterapeutit | B104: 3646
A105: 2269 Muut muualla luokittelemattomat terveydenhuollon erityisasiantuntijat | B105: 4053
A106: 23 Opettajat ja muut opetusalan erityisasiantuntijat | B106: 3972
A107: 231 Yliopisto- ja korkeakouluopettajat | B107: 4614
A108: 2310 Yliopistojen ja ammattikorkeakoulujen opettajat | B108: 4614
A109: 23101 Professorit | B109: 6600
A110: 23102 Lehtorit ja yliassistentit (yliopisto) | B110: 4201
A111: 23103 Assistentit ja tuntiopettajat (yliopisto) | B111: 3162
A112: 23104 Yliopettajat (AMK) | B112: 5624
A113: 23105 Lehtorit (AMK) | B113: 4666
A114: 23106 Tuntiopettajat ym. (AMK) | B114: 4103
A115: 232 Ammatillisen koulutuksen opettajat | B115: 3778
A116: 2320 Ammatillisen koulutuksen opettajat | B116: 3778
A117: 233 Lukion ja peruskoulun yläluokkien opettajat | B117: 4006
A118: 2330 Lukion ja peruskoulun yläluokkien opettajat | B118: 4006
A119: 23304 Muut peruskoulun yläluokkien ja lukion opettajat | B119: 4008
A120: 234 Peruskoulun alaluokkien opettajat ja lastentarhanopettajat | B120: 2657
A121: 2341 Peruskoulun alaluokkien opettajat | B121: 3343
A122: 23411 Luokanopettajat | B122: 3232
A123: 23412 Aineenopettajat (peruskoulun alaluokat) | B123: 3492
A124: 2342 Lastentarhanopettajat | B124: 2442
A125: 235 Muut opetusalan erityisasiantuntijat | B125: 3299
A126: 2351 Opetusmenetelmien erityisasiantuntijat | B126: 3608
A127: 2352 Erityisopettajat | B127: 3819
A128: 2353 Muut kieltenopettajat | B128: .
A129: 2354 Muut musiikin opettajat | B129: 2940
A130: 2355 Muut taideaineiden opettajat | B130: 2915
A131: 2356 Muut tietotekniikan opettajat ja kouluttajat | B131: 3554
A132: 2359 Opinto-ohjaajat ja muut opetuksen erityisasiantuntijat | B132: 3087
A133: 23591 Opinto-ohjaajat | B133: 2655
A134: 23592 Muut opetuksen erityisasiantuntijat | B134: 3463
A135: 24 Liike-elämän ja hallinnon erityisasiantuntijat | B135: 4732
A136: 241 Rahoitusalan erityisasiantuntijat | B136: 4796
A137: 2411 Laskentatoimen erityisasiantuntijat ja tilintarkastajat | B137: 4724
A138: 2412 Rahoitus- ja sijoitusneuvojat | B138: 4922
A139: 2413 Rahoitusanalyytikot | B139: 5289
A140: 242 Hallinnon erityisasiantuntijat | B140: 4565
A141: 2421 Johtamisen ja organisaatioiden erityisasiantuntijat | B141: 5089
A142: 2422 Hallinnon ja elinkeinojen kehittämisen erityisasiantuntijat | B142: 4293
A143: 2423 Henkilöstöhallinnon erityisasiantuntijat ja urasuunnittelijat | B143: 4224
A144: 2424 Henkilöstön kehittämisen erityisasiantuntijat ja kouluttajat | B144: 4167
A145: 243 Myynnin, markkinoinnin ja tiedotuksen erityisasiantuntijat | B145: 4795
A146: 2431 Mainonnan ja markkinoinnin erityisasiantuntijat | B146: 4580
A147: 2432 Tiedottajat | B147: 3983
A148: 2433 Myynti-insinöörit ja lääke-esittelijät (pl. tieto- ja viestintätekniikka) | B148: 5118
A149: 2434 Tieto- ja viestintätekniikan myynnin erityisasiantuntijat | B149: 5736
A150: 25 Tieto- ja viestintäteknologian erityisasiantuntijat | B150: 4514
A151: 251 Systeemityön erityisasiantuntijat | B151: 4530
A152: 2511 Sovellusarkkitehdit | B152: 4879
A153: 2512 Sovellussuunnittelijat | B153: 4338
A154: 2513 Web- ja multimediakehittäjät | B154: 4252
A155: 2514 Sovellusohjelmoijat | B155: 3586
A156: 2519 Muut ohjelmisto- ja sovelluskehittäjät | B156: 4406
A157: 252 Tietokantojen,- verkkojen ja järjestelmäohjelmistojen erityisasiantuntijat | B157: 4418
A158: 2521 Tietokantasuunnittelijat ja -vastaavat | B158: 3671
A159: 2522 Tietojärjestelmien ylläpitäjät | B159: 4288
A160: 2523 Tietoverkkojen erityisasiantuntijat | B160: 4777
A161: 2529 Muut tietokanta- ja tietoverkkojen erityisasiantuntijat | B161: 4875
A162: 26 Lainopilliset, sosiaalialan ja kulttuurialan erityisasiantuntijat | B162: 4132
A163: 261 Lainopilliset erityisasiantuntijat | B163: 6097
A164: 2611 Asianajajat | B164: 6258
A165: 2619 Muut lainopilliset erityisasiantuntijat | B165: 5610
A166: 262 Kirjaston- ja arkistonhoitajat sekä museoalan erityisasiantuntijat | B166: 3298
A167: 2621 Arkistonhoitajat ja museoalan erityisasiantuntijat | B167: 2945
A168: 26211 Arkistonhoitajat | B168: 2731
A169: 26212 Museoalan erityisasiantuntijat | B169: 3018
A170: 2622 Kirjastonhoitajat, informaatikot ym. | B170: 3630
A171: 263 Yhteiskunta- ja sosiaalialan sekä uskonnollisen elämän erityisasiantuntijat | B171: 3660
A172: 2631 Ekonomistit | B172: 4960
A173: 2632 Yhteiskunta- ja kulttuuritutkijat | B173: 3467
A174: 2633 Historioitsijat, politiikan tutkijat ja filosofit | B174: 3241
A175: 2634 Psykologit | B175: 3889
A176: 2635 Sosiaalityön erityisasiantuntijat | B176: 3270
A177: 26351 Sosiaalityöntekijät ym. | B177: 3270
A178: 26352 Sosiaalialan suunnittelijat ym. | B178: 3267
A179: 2636 Papit ym. uskonnollisen elämän erityisasiantuntijat | B179: 3688
A180: 264 Toimittajat, kirjailijat ja kielitieteilijät | B180: 3879
A181: 2641 Kirjailijat ym. | B181: 3629
A182: 2642 Toimittajat | B182: 3974
A183: 26421 Toimituspäälliköt ja -sihteerit, ohjelmapäälliköt | B183: 4093
A184: 26422 Lehtien yms. toimittajat | B184: 3856
A185: 2643 Kääntäjät, tulkit ja muut kielitieteilijät | B185: 3231
A186: 265 Taiteilijat | B186: 3362
A187: 2651 Kuvataiteilijat | B187: 3628
A188: 2652 Muusikot, laulajat ja säveltäjät | B188: 3026
A189: 2653 Tanssitaiteilijat ja koreografit | B189: 2614
A190: 2654 Ohjaajat ja tuottajat | B190: 3963
A191: 2655 Näyttelijät | B191: 3259
A192: 2659 Muut taiteilijat | B192: .
A193: 3 Asiantuntijat | B193: 3578
A194: 31 Luonnontieteiden ja tekniikan asiantuntijat | B194: 3653
A195: 311 Fysiikan, kemian ja teknisten alojen asiantuntijat | B195: 3639
A196: 3111 Luonnontieteen tekniset asiantuntijat | B196: 2934
A197: 3112 Rakentamisen asiantuntijat | B197: 3609
A198: 31121 Talonrakentamisen asiantuntijat | B198: 3630
A199: 31122 Maa- ja vesirakentamisen asiantuntijat | B199: 3600
A200: 31123 Kartoituksen ja maanmittauksen asiantuntijat | B200: 3439
A201: 3113 Sähkötekniikan asiantuntijat | B201: 3870
... 382 more rows

Sheet Päivityshistoria
A1: Päivityshistoria
A3: Päivitys versiosta 1.13 (2019) versioon 1.15 (2020) / 28.2.2020 ja 9.4.2020
A4: • Lisätty mahdollisuus muuttaa Business-as-Usual-oletusta
A5: • Päivitetty EKI ja palkkatilastot v. 2019 ja 2018
A6: • Päivitetty ohjeistuksia
A7: • Korjattu kaavavirhe 4.9.2020
A9: Päivitys versiosta 1.13 (2018) versioon 1.14 (2019) / 17.1.2019
A10: • Päivitetty EKI ja palkkatilastot v. 2018 ja 2017
A11: • Päivitetty välilehti Apu1_Yritystilastot vuoden 2017 tilastoilla. Samalla täydennetty tilastoja liikevaihdolla, henkilöstön määrällä ja yritysten koon jakaumalla
A13: Päivitys versiosta 1.12 versioon 1.13 (2018) / 22.1.2018
A14: • Korjattu rivinlisäysmakro niin, että uusi tyhjä rivi päätyy aina viimeiseksi.
A15: • Laskentavälilehdeltä 1 muutettu esimerkkivuosi (2018->2019) ja perusvuoden taustaväri sekä oheisen selitystekstin fontti
A16: • Lisätty välilehti ”Päivityshistoria”
A18: Päivitys versiosta 1.11 versioon 1.12 / 18.1.2018
A19: • Lisätty apuvälilehti 1, jossa TK:n yritystilastot
A20: • Muokattu välilehtien nimiä
A21: • Päivitetty erillinen käyttöohje
A22: • Päivitetty EKI v. 2017
A24: Päivitys versiosta 1.1 versioon 1.11 / 8.12.2017
A25: • Korjattu epäjohdonmukainen arvo Yhteenveto-välilehdellä kohdassa ”Kustannukset yhteensä per yritys”
A26: • Lisätty Velvoiteluettelo-välilehdelle täydentävä kysymys muutoksen kohteena yritysjoukon koosta
A27: • Korjattu nettonykyarvon annualisointi niin, että annualisointi tehdään AINA 10 vuoden aikajänteellä velvoitteen kestosta riippumatta
A28: • Lisätty ensimmäiselle sivulle otsikko ja laskurin tekijöiden nimet
A29: • Päivitetty Ohjeistus
A30: • Päivitetty lähdeviitteitä, perustelulaattikkoja, otsikoita ja muuta ulkoasua
A32: Päivitys versiosta 1.02 versioon 1.1 / 13.10.2017
A33: • Laskuria on selkiytetty: valmistelijan tarvitsemat keltaiset täyttösolut on pyritty tuomaan paremmin esille ja muita seikkoja on siirretty sivuun. Välilaskutietoja yms. on säilytetty kuitenkin sivujen alaosissa tai oikealla, jotta tiedot ja laskukaavat ovat tarkistettavissa.
A34: • Muutettu inflaation ja kasvun huomioiminen nykyarvon laskennassa. Inflaatio: valmisteluvuoden rahassa lasketut kustannukset deflatoidaan elinkustannusindeksillä perusvuoteen. Perusvuodeksi on valittu 2017. Kaikki kustannuserät vertaillaan tämän perusvuoden rahassa ja arvossa. Diskonttaus tapahtuu vuoden 2017 alkuun. Diskonttaus reaalisella korolla, koska inflaatio puhdistettu edellä esitetysti.
A35: • Yhteenvetotaulukkoon (Välilehti 5_Yhteeveto) on tehty pyöristyskaavat. Tarkemmat arvot ovat edelleen nähtävissä välilehden oikeassa reunassa.
A36: • Muokattu velvoitenimet päivittymään kaikille syöttövälilehdille. Ulkoasua selkiytetty.
